{"text_format":"1","workbook":"xlsx","n_sheets":4,"sheets":["BASIS-415","Z_SAP_TARIFE-3","Formeln_415","Formeln_3"],"not_rendered":{"charts":0,"images":0,"macros":0,"external_links":0,"defined_names":0,"comments":0,"pivot_tables":0},"unopened":[],"bounds":{"document_bytes":16777216,"sheet_cells":100000,"rows_first":2000,"rows_last":500,"rows_between":2000,"halvings":0,"cell_chars":16384,"cell_head_chars":4096},"cells_cut":0,"cells_raw":0,"read":"whole","date_system":"1900"}

{"sheet":"BASIS-415","index":0,"n_rows":185,"n_cols":71,"rows_kept":185,"cut":false,"hidden":false,"merged":[]}
["A","Löschen","RESERVE","D","E","BE-Code","G","IHK-Wurzel","IHK-Code","J","IHKP","Format-Code","M","FormatMMxMM","O","Reserve_006","Reserve_007","AzArtPlaz-Code","S","T","U","V","W","X","Y","Z","AA","AB","AC","Tarif sw 2022","Tarif fg 2022","Tarif sw 2023","Tarif fg 2023","AH","SFSP","Blattb.","AK","AL","AM","AN","AO","AP","SAP_Tarif_Tabelle","AR","AS","AT","AU","AV","AW","Reserve_002","Reserve_003","Reserve_004","Anz_WDH","Sperre_Verkauf","BC","BD","BE","BF","BG","BH","Farbcode_0","Farbcode_1","KNUMH_0","KNUMH_1","zz_Tarif_SAP_sw","zz_Tarif_SAP_col","DATBI","Temp_Sort","Temp_Tarif_SW_Diff","Temp_Tarif_col_Diff","Temp_Tarif_Kommentar"]
[null,null,null,null,null,"102Z170MNA",null,null,"EMTXR",null,"EMTXR","F245",null,null,null,null,null,"B209",null,null,null,null,null,null,null,null,null,null,null,296,296,null,null,null,null,null,null,null,null,null,null,null,879,null,null,null,null,null,null,null,null,null,"","",null,null,null,null,null,null,0,1,{"$f":"+IF(B2=\"x\",\"\",IF(BB2=\"x\",\"\",IF(AQ2=0,\"\",IF(BO2<=TODAY(),\"\",INDEX(Tabelle3[KNUMH],MATCH(F2&BI2&K2&L2&R2&AQ2&BO2,Tabelle3[BEINH]&Tabelle3[ZZFARBIG]&Tabelle3[IHKOMP]&Tabelle3[AZAFOV]&Tabelle3[AZAPLZ]&Tabelle3[TABELLENo]&Tabelle3[DATBI],0))))))","v":"0000219766"},{"$f":"+IF(B2=\"x\",\"\",IF(BB2=\"x\",\"\",IF(AQ2=0,\"\",IF(BO2<=TODAY(),\"\",INDEX(Tabelle3[KNUMH],MATCH(F2&BJ2&K2&L2&R2&AQ2&BO2,Tabelle3[BEINH]&Tabelle3[ZZFARBIG]&Tabelle3[IHKOMP]&Tabelle3[AZAFOV]&Tabelle3[AZAPLZ]&Tabelle3[TABELLENo]&Tabelle3[DATBI],0))))))","v":"0000219767"},{"$f":"+IF(Tabelle415[[#This Row],[KNUMH_0]]=\"\",\"\",+INDEX(Tabelle3[BETRAG],MATCH(BK2,Tabelle3[KNUMH],0)))","v":296},{"$f":"+IF(Tabelle415[[#This Row],[KNUMH_1]]=\"\",\"\",+INDEX(Tabelle3[BETRAG],MATCH(BL2,Tabelle3[KNUMH],0)))","v":296},"9999-12-31",12938]
[null,null,null,null,null,"102Z170MNA",null,null,"EMTXR",null,null,"F349",null,null,null,null,null,"B209",null,null,null,null,null,null,null,null,null,null,null,592,592,null,null,null,null,null,null,null,null,null,null,null,857,null,null,null,null,null,null,null,null,null,"","",null,null,null,null,null,null,0,1,{"$f":"+IF(B3=\"x\",\"\",IF(BB3=\"x\",\"\",IF(AQ3=0,\"\",IF(BO3<=TODAY(),\"\",INDEX(Tabelle3[KNUMH],MATCH(F3&BI3&L3&R3&AQ3&BO3,Tabelle3[BEINH]&Tabelle3[ZZFARBIG]&Tabelle3[AZAFOV]&Tabelle3[AZAPLZ]&Tabelle3[TABELLENo]&Tabelle3[DATBI],0))))))","v":"0000191830"},{"$f":"+IF(B3=\"x\",\"\",IF(BB3=\"x\",\"\",IF(AQ3=0,\"\",IF(BO3<=TODAY(),\"\",INDEX(Tabelle3[KNUMH],MATCH(F3&BJ3&L3&R3&AQ3&BO3,Tabelle3[BEINH]&Tabelle3[ZZFARBIG]&Tabelle3[AZAFOV]&Tabelle3[AZAPLZ]&Tabelle3[TABELLENo]&Tabelle3[DATBI],0))))))","v":"0000191835"},{"$f":"+IF(Tabelle415[[#This Row],[KNUMH_0]]=\"\",\"\",+INDEX(Tabelle3[BETRAG],MATCH(BK3,Tabelle3[KNUMH],0)))","v":592},{"$f":"+IF(Tabelle415[[#This Row],[KNUMH_1]]=\"\",\"\",+INDEX(Tabelle3[BETRAG],MATCH(BL3,Tabelle3[KNUMH],0)))","v":592},"9999-12-31",12939]
[null,null,null,null,null,"102Z170MNA",null,null,"EMTXR",null,null,"F347",null,null,null,null,null,"B209",null,null,null,null,null,null,null,null,null,null,null,592,592,null,null,null,null,null,null,null,null,null,null,null,857,null,null,null,null,null,null,null,null,null,"","",null,null,null,null,null,null,0,1,{"$f":"+IF(B4=\"x\",\"\",IF(BB4=\"x\",\"\",IF(AQ4=0,\"\",IF(BO4<=TODAY(),\"\",INDEX(Tabelle3[KNUMH],MATCH(F4&BI4&L4&R4&AQ4&BO4,Tabelle3[BEINH]&Tabelle3[ZZFARBIG]&Tabelle3[AZAFOV]&Tabelle3[AZAPLZ]&Tabelle3[TABELLENo]&Tabelle3[DATBI],0))))))","v":"0000191825"},{"$f":"+IF(B4=\"x\",\"\",IF(BB4=\"x\",\"\",IF(AQ4=0,\"\",IF(BO4<=TODAY(),\"\",INDEX(Tabelle3[KNUMH],MATCH(F4&BJ4&L4&R4&AQ4&BO4,Tabelle3[BEINH]&Tabelle3[ZZFARBIG]&Tabelle3[AZAFOV]&Tabelle3[AZAPLZ]&Tabelle3[TABELLENo]&Tabelle3[DATBI],0))))))","v":"0000191831"},{"$f":"+IF(Tabelle415[[#This Row],[KNUMH_0]]=\"\",\"\",+INDEX(Tabelle3[BETRAG],MATCH(BK4,Tabelle3[KNUMH],0)))","v":592},{"$f":"+IF(Tabelle415[[#This Row],[KNUMH_1]]=\"\",\"\",+INDEX(Tabelle3[BETRAG],MATCH(BL4,Tabelle3[KNUMH],0)))","v":592},"9999-12-31",12940]
[null,null,null,null,null,"102Z170MNA",null,null,"EMTX",null,"EMTX","F235",null,null,null,null,null,"B220",null,null,null,null,null,null,null,null,null,null,null,2880,2880,null,null,null,null,null,null,null,null,null,null,null,878,null,null,null,null,null,null,null,null,null,"","",null,null,null,null,null,null,0,1,{"$f":"+IF(B5=\"x\",\"\",IF(BB5=\"x\",\"\",IF(AQ5=0,\"\",IF(BO5<=TODAY(),\"\",INDEX(Tabelle3[KNUMH],MATCH(F5&BI5&K5&R5&AQ5&BO5,Tabelle3[BEINH]&Tabelle3[ZZFARBIG]&Tabelle3[IHKOMP]&Tabelle3[AZAPLZ]&Tabelle3[TABELLENo]&Tabelle3[DATBI],0))))))","v":"0000208739"},{"$f":"+IF(B5=\"x\",\"\",IF(BB5=\"x\",\"\",IF(AQ5=0,\"\",IF(BO5<=TODAY(),\"\",INDEX(Tabelle3[KNUMH],MATCH(F5&BJ5&K5&R5&AQ5&BO5,Tabelle3[BEINH]&Tabelle3[ZZFARBIG]&Tabelle3[IHKOMP]&Tabelle3[AZAPLZ]&Tabelle3[TABELLENo]&Tabelle3[DATBI],0))))))","v":"0000208740"},{"$f":"+IF(Tabelle415[[#This Row],[KNUMH_0]]=\"\",\"\",+INDEX(Tabelle3[BETRAG],MATCH(BK5,Tabelle3[KNUMH],0)))","v":2880},{"$f":"+IF(Tabelle415[[#This Row],[KNUMH_1]]=\"\",\"\",+INDEX(Tabelle3[BETRAG],MATCH(BL5,Tabelle3[KNUMH],0)))","v":2880},"9999-12-31",12942]
[null,null,null,null,null,"102Z170MNA",null,null,"EMTXR",null,null,"F347",null,null,null,null,null,"B249",null,null,null,null,null,null,null,null,null,null,null,592,592,null,null,null,null,null,null,null,null,null,null,null,857,null,null,null,null,null,null,null,null,null,"","",null,null,null,null,null,null,0,1,{"$f":"+IF(B6=\"x\",\"\",IF(BB6=\"x\",\"\",IF(AQ6=0,\"\",IF(BO6<=TODAY(),\"\",INDEX(Tabelle3[KNUMH],MATCH(F6&BI6&L6&R6&AQ6&BO6,Tabelle3[BEINH]&Tabelle3[ZZFARBIG]&Tabelle3[AZAFOV]&Tabelle3[AZAPLZ]&Tabelle3[TABELLENo]&Tabelle3[DATBI],0))))))","v":"0000191826"},{"$f":"+IF(B6=\"x\",\"\",IF(BB6=\"x\",\"\",IF(AQ6=0,\"\",IF(BO6<=TODAY(),\"\",INDEX(Tabelle3[KNUMH],MATCH(F6&BJ6&L6&R6&AQ6&BO6,Tabelle3[BEINH]&Tabelle3[ZZFARBIG]&Tabelle3[AZAFOV]&Tabelle3[AZAPLZ]&Tabelle3[TABELLENo]&Tabelle3[DATBI],0))))))","v":"0000191832"},{"$f":"+IF(Tabelle415[[#This Row],[KNUMH_0]]=\"\",\"\",+INDEX(Tabelle3[BETRAG],MATCH(BK6,Tabelle3[KNUMH],0)))","v":592},{"$f":"+IF(Tabelle415[[#This Row],[KNUMH_1]]=\"\",\"\",+INDEX(Tabelle3[BETRAG],MATCH(BL6,Tabelle3[KNUMH],0)))","v":592},"9999-12-31",12943]
[null,null,null,null,null,"102Z170MNA",null,null,"EMTXR",null,"EMTXR","F245",null,null,null,null,null,"B249",null,null,null,null,null,null,null,null,null,null,null,296,296,null,null,null,null,null,null,null,null,null,null,null,879,null,null,null,null,null,null,null,null,null,"","",null,null,null,null,null,null,0,1,{"$f":"+IF(B7=\"x\",\"\",IF(BB7=\"x\",\"\",IF(AQ7=0,\"\",IF(BO7<=TODAY(),\"\",INDEX(Tabelle3[KNUMH],MATCH(F7&BI7&K7&L7&R7&AQ7&BO7,Tabelle3[BEINH]&Tabelle3[ZZFARBIG]&Tabelle3[IHKOMP]&Tabelle3[AZAFOV]&Tabelle3[AZAPLZ]&Tabelle3[TABELLENo]&Tabelle3[DATBI],0))))))","v":"0000219850"},{"$f":"+IF(B7=\"x\",\"\",IF(BB7=\"x\",\"\",IF(AQ7=0,\"\",IF(BO7<=TODAY(),\"\",INDEX(Tabelle3[KNUMH],MATCH(F7&BJ7&K7&L7&R7&AQ7&BO7,Tabelle3[BEINH]&Tabelle3[ZZFARBIG]&Tabelle3[IHKOMP]&Tabelle3[AZAFOV]&Tabelle3[AZAPLZ]&Tabelle3[TABELLENo]&Tabelle3[DATBI],0))))))","v":"0000219851"},{"$f":"+IF(Tabelle415[[#This Row],[KNUMH_0]]=\"\",\"\",+INDEX(Tabelle3[BETRAG],MATCH(BK7,Tabelle3[KNUMH],0)))","v":296},{"$f":"+IF(Tabelle415[[#This Row],[KNUMH_1]]=\"\",\"\",+INDEX(Tabelle3[BETRAG],MATCH(BL7,Tabelle3[KNUMH],0)))","v":296},"9999-12-31",12944]
[null,null,null,null,null,"102Z170MNA",null,null,"EMTXR",null,null,"F349",null,null,null,null,null,"B249",null,null,null,null,null,null,null,null,null,null,null,592,592,null,null,null,null,null,null,null,null,null,null,null,857,null,null,null,null,null,null,null,null,null,"","",null,null,null,null,null,null,0,1,{"$f":"+IF(B8=\"x\",\"\",IF(BB8=\"x\",\"\",IF(AQ8=0,\"\",IF(BO8<=TODAY(),\"\",INDEX(Tabelle3[KNUMH],MATCH(F8&BI8&L8&R8&AQ8&BO8,Tabelle3[BEINH]&Tabelle3[ZZFARBIG]&Tabelle3[AZAFOV]&Tabelle3[AZAPLZ]&Tabelle3[TABELLENo]&Tabelle3[DATBI],0))))))","v":"0000191829"},{"$f":"+IF(B8=\"x\",\"\",IF(BB8=\"x\",\"\",IF(AQ8=0,\"\",IF(BO8<=TODAY(),\"\",INDEX(Tabelle3[KNUMH],MATCH(F8&BJ8&L8&R8&AQ8&BO8,Tabelle3[BEINH]&Tabelle3[ZZFARBIG]&Tabelle3[AZAFOV]&Tabelle3[AZAPLZ]&Tabelle3[TABELLENo]&Tabelle3[DATBI],0))))))","v":"0000191836"},{"$f":"+IF(Tabelle415[[#This Row],[KNUMH_0]]=\"\",\"\",+INDEX(Tabelle3[BETRAG],MATCH(BK8,Tabelle3[KNUMH],0)))","v":592},{"$f":"+IF(Tabelle415[[#This Row],[KNUMH_1]]=\"\",\"\",+INDEX(Tabelle3[BETRAG],MATCH(BL8,Tabelle3[KNUMH],0)))","v":592},"9999-12-31",12945]
[null,null,null,null,null,"102Z170MNA",null,null,"EMEM",null,null,0,null,null,null,null,null,"-",null,null,null,null,null,null,null,null,null,null,null,1.5,1.95,1.5,1.95,null,null,null,null,null,null,null,null,null,850,null,null,null,null,null,null,null,null,null,"","",null,null,null,null,null,null,0,1,{"$f":"+IF(B9=\"x\",\"\",IF(BB9=\"x\",\"\",IF(AQ9=0,\"\",IF(BO9<=TODAY(),\"\",INDEX(Tabelle3[KNUMH],MATCH(F9&BI9&AQ9&BO9,Tabelle3[BEINH]&Tabelle3[ZZFARBIG]&Tabelle3[TABELLENo]&Tabelle3[DATBI],0))))))","v":"0000192667"},{"$f":"+IF(B9=\"x\",\"\",IF(BB9=\"x\",\"\",IF(AQ9=0,\"\",IF(BO9<=TODAY(),\"\",INDEX(Tabelle3[KNUMH],MATCH(F9&BJ9&AQ9&BO9,Tabelle3[BEINH]&Tabelle3[ZZFARBIG]&Tabelle3[TABELLENo]&Tabelle3[DATBI],0))))))","v":"0000192668"},{"$f":"+IF(Tabelle415[[#This Row],[KNUMH_0]]=\"\",\"\",+INDEX(Tabelle3[BETRAG],MATCH(BK9,Tabelle3[KNUMH],0)))","v":1.5},{"$f":"+IF(Tabelle415[[#This Row],[KNUMH_1]]=\"\",\"\",+INDEX(Tabelle3[BETRAG],MATCH(BL9,Tabelle3[KNUMH],0)))","v":1.95},"9999-12-31",12947]
[null,null,null,null,null,"102Z170MNA",null,null,"EMEM",null,null,11,null,null,null,null,null,"-",null,null,null,null,null,null,null,null,null,null,null,8630,8630,7700,7700,null,null,null,null,null,null,null,null,null,867,null,null,null,null,null,null,null,null,null,"","",null,null,null,null,null,null,0,1,{"$f":"+IF(B10=\"x\",\"\",IF(BB10=\"x\",\"\",IF(AQ10=0,\"\",IF(BO10<=TODAY(),\"\",INDEX(Tabelle3[KNUMH],MATCH(F10&BI10&L10&AQ10&BO10,Tabelle3[BEINH]&Tabelle3[ZZFARBIG]&Tabelle3[AZAFOV]&Tabelle3[TABELLENo]&Tabelle3[DATBI],0))))))","v":"0000227018"},{"$f":"+IF(B10=\"x\",\"\",IF(BB10=\"x\",\"\",IF(AQ10=0,\"\",IF(BO10<=TODAY(),\"\",INDEX(Tabelle3[KNUMH],MATCH(F10&BJ10&L10&AQ10&BO10,Tabelle3[BEINH]&Tabelle3[ZZFARBIG]&Tabelle3[AZAFOV]&Tabelle3[TABELLENo]&Tabelle3[DATBI],0))))))","v":"0000227020"},{"$f":"+IF(Tabelle415[[#This Row],[KNUMH_0]]=\"\",\"\",+INDEX(Tabelle3[BETRAG],MATCH(BK10,Tabelle3[KNUMH],0)))","v":7700},{"$f":"+IF(Tabelle415[[#This Row],[KNUMH_1]]=\"\",\"\",+INDEX(Tabelle3[BETRAG],MATCH(BL10,Tabelle3[KNUMH],0)))","v":7700},"9999-12-31",12948]
[null,null,null,null,null,"102Z170MNA",null,null,"EMEM",null,null,21,null,null,null,null,null,"-",null,null,null,null,null,null,null,null,null,null,null,null,null,15400,15400,null,null,null,null,null,null,null,null,null,867,null,null,null,null,null,null,null,null,null,"","",null,null,null,null,null,null,0,1,{"$f":"+IF(B11=\"x\",\"\",IF(BB11=\"x\",\"\",IF(AQ11=0,\"\",IF(BO11<=TODAY(),\"\",INDEX(Tabelle3[KNUMH],MATCH(F11&BI11&L11&AQ11&BO11,Tabelle3[BEINH]&Tabelle3[ZZFARBIG]&Tabelle3[AZAFOV]&Tabelle3[TABELLENo]&Tabelle3[DATBI],0))))))","v":"0000228039"},{"$f":"+IF(B11=\"x\",\"\",IF(BB11=\"x\",\"\",IF(AQ11=0,\"\",IF(BO11<=TODAY(),\"\",INDEX(Tabelle3[KNUMH],MATCH(F11&BJ11&L11&AQ11&BO11,Tabelle3[BEINH]&Tabelle3[ZZFARBIG]&Tabelle3[AZAFOV]&Tabelle3[TABELLENo]&Tabelle3[DATBI],0))))))","v":"0000228040"},{"$f":"+IF(Tabelle415[[#This Row],[KNUMH_0]]=\"\",\"\",+INDEX(Tabelle3[BETRAG],MATCH(BK11,Tabelle3[KNUMH],0)))","v":15400},{"$f":"+IF(Tabelle415[[#This Row],[KNUMH_1]]=\"\",\"\",+INDEX(Tabelle3[BETRAG],MATCH(BL11,Tabelle3[KNUMH],0)))","v":15400},"9999-12-31",12948]
[null,null,null,null,null,"102Z170MNA",null,null,"EMEM",null,null,"14B",null,null,null,null,null,"-",null,null,null,null,null,null,null,null,null,null,null,null,null,2125,2125,null,null,null,null,null,null,null,null,null,867,null,null,null,null,null,null,null,null,null,"","",null,null,null,null,null,null,0,1,{"$f":"+IF(B12=\"x\",\"\",IF(BB12=\"x\",\"\",IF(AQ12=0,\"\",IF(BO12<=TODAY(),\"\",INDEX(Tabelle3[KNUMH],MATCH(F12&BI12&L12&AQ12&BO12,Tabelle3[BEINH]&Tabelle3[ZZFARBIG]&Tabelle3[AZAFOV]&Tabelle3[TABELLENo]&Tabelle3[DATBI],0))))))","v":"0000228079"},{"$f":"+IF(B12=\"x\",\"\",IF(BB12=\"x\",\"\",IF(AQ12=0,\"\",IF(BO12<=TODAY(),\"\",INDEX(Tabelle3[KNUMH],MATCH(F12&BJ12&L12&AQ12&BO12,Tabelle3[BEINH]&Tabelle3[ZZFARBIG]&Tabelle3[AZAFOV]&Tabelle3[TABELLENo]&Tabelle3[DATBI],0))))))","v":"0000228080"},{"$f":"+IF(Tabelle415[[#This Row],[KNUMH_0]]=\"\",\"\",+INDEX(Tabelle3[BETRAG],MATCH(BK12,Tabelle3[KNUMH],0)))","v":2125},{"$f":"+IF(Tabelle415[[#This Row],[KNUMH_1]]=\"\",\"\",+INDEX(Tabelle3[BETRAG],MATCH(BL12,Tabelle3[KNUMH],0)))","v":2125},"9999-12-31",12948]
[null,null,null,null,null,"102Z170MNA",null,null,"EMEM",null,null,"14Q",null,null,null,null,null,"-",null,null,null,null,null,null,null,null,null,null,null,null,null,2125,2125,null,null,null,null,null,null,null,null,null,867,null,null,null,null,null,null,null,null,null,"","",null,null,null,null,null,null,0,1,{"$f":"+IF(B13=\"x\",\"\",IF(BB13=\"x\",\"\",IF(AQ13=0,\"\",IF(BO13<=TODAY(),\"\",INDEX(Tabelle3[KNUMH],MATCH(F13&BI13&L13&AQ13&BO13,Tabelle3[BEINH]&Tabelle3[ZZFARBIG]&Tabelle3[AZAFOV]&Tabelle3[TABELLENo]&Tabelle3[DATBI],0))))))","v":"0000228043"},{"$f":"+IF(B13=\"x\",\"\",IF(BB13=\"x\",\"\",IF(AQ13=0,\"\",IF(BO13<=TODAY(),\"\",INDEX(Tabelle3[KNUMH],MATCH(F13&BJ13&L13&AQ13&BO13,Tabelle3[BEINH]&Tabelle3[ZZFARBIG]&Tabelle3[AZAFOV]&Tabelle3[TABELLENo]&Tabelle3[DATBI],0))))))","v":"0000228044"},{"$f":"+IF(Tabelle415[[#This Row],[KNUMH_0]]=\"\",\"\",+INDEX(Tabelle3[BETRAG],MATCH(BK13,Tabelle3[KNUMH],0)))","v":2125},{"$f":"+IF(Tabelle415[[#This Row],[KNUMH_1]]=\"\",\"\",+INDEX(Tabelle3[BETRAG],MATCH(BL13,Tabelle3[KNUMH],0)))","v":2125},"9999-12-31",12948]
[null,null,null,null,null,"102Z170MNA",null,null,"EMEM",null,null,"12Q",null,null,null,null,null,"-",null,null,null,null,null,null,null,null,null,null,null,4290,4290,4250,4250,null,null,null,null,null,null,null,null,null,867,null,null,null,null,null,null,null,null,null,"","",null,null,null,null,null,null,0,1,{"$f":"+IF(B14=\"x\",\"\",IF(BB14=\"x\",\"\",IF(AQ14=0,\"\",IF(BO14<=TODAY(),\"\",INDEX(Tabelle3[KNUMH],MATCH(F14&BI14&L14&AQ14&BO14,Tabelle3[BEINH]&Tabelle3[ZZFARBIG]&Tabelle3[AZAFOV]&Tabelle3[TABELLENo]&Tabelle3[DATBI],0))))))","v":"0000227019"},{"$f":"+IF(B14=\"x\",\"\",IF(BB14=\"x\",\"\",IF(AQ14=0,\"\",IF(BO14<=TODAY(),\"\",INDEX(Tabelle3[KNUMH],MATCH(F14&BJ14&L14&AQ14&BO14,Tabelle3[BEINH]&Tabelle3[ZZFARBIG]&Tabelle3[AZAFOV]&Tabelle3[TABELLENo]&Tabelle3[DATBI],0))))))","v":"0000227021"},{"$f":"+IF(Tabelle415[[#This Row],[KNUMH_0]]=\"\",\"\",+INDEX(Tabelle3[BETRAG],MATCH(BK14,Tabelle3[KNUMH],0)))","v":4250},{"$f":"+IF(Tabelle415[[#This Row],[KNUMH_1]]=\"\",\"\",+INDEX(Tabelle3[BETRAG],MATCH(BL14,Tabelle3[KNUMH],0)))","v":4250},"9999-12-31",12949]
[null,null,null,null,null,"102Z170MNA",null,null,"EMTX",null,"EMTX",0,null,null,null,null,null,"-",null,null,null,null,null,null,null,null,null,null,null,2.4,2.4,2.5299999999999998,2.5299999999999998,null,null,null,null,null,null,null,null,null,859,null,null,null,null,null,null,null,null,null,"","",null,null,null,null,null,null,0,1,{"$f":"+IF(B15=\"x\",\"\",IF(BB15=\"x\",\"\",IF(AQ15=0,\"\",IF(BO15<=TODAY(),\"\",INDEX(Tabelle3[KNUMH],MATCH(F15&BI15&K15&AQ15&BO15,Tabelle3[BEINH]&Tabelle3[ZZFARBIG]&Tabelle3[IHKOMP]&Tabelle3[TABELLENo]&Tabelle3[DATBI],0))))))","v":"0000227684"},{"$f":"+IF(B15=\"x\",\"\",IF(BB15=\"x\",\"\",IF(AQ15=0,\"\",IF(BO15<=TODAY(),\"\",INDEX(Tabelle3[KNUMH],MATCH(F15&BJ15&K15&AQ15&BO15,Tabelle3[BEINH]&Tabelle3[ZZFARBIG]&Tabelle3[IHKOMP]&Tabelle3[TABELLENo]&Tabelle3[DATBI],0))))))","v":"0000227685"},{"$f":"+IF(Tabelle415[[#This Row],[KNUMH_0]]=\"\",\"\",+INDEX(Tabelle3[BETRAG],MATCH(BK15,Tabelle3[KNUMH],0)))","v":2.5299999999999998},{"$f":"+IF(Tabelle415[[#This Row],[KNUMH_1]]=\"\",\"\",+INDEX(Tabelle3[BETRAG],MATCH(BL15,Tabelle3[KNUMH],0)))","v":2.5299999999999998},"9999-12-31",12952]
[null,null,null,null,null,"102Z170MNA",null,null,"EMTX",null,"EMTX","12Q",null,null,null,null,null,"-",null,null,null,null,null,null,null,null,null,null,null,5280,5280,5500,5500,null,null,null,null,null,null,null,null,null,848,null,null,null,null,null,null,null,null,null,"","",null,null,null,null,null,null,0,1,{"$f":"+IF(B16=\"x\",\"\",IF(BB16=\"x\",\"\",IF(AQ16=0,\"\",IF(BO16<=TODAY(),\"\",INDEX(Tabelle3[KNUMH],MATCH(F16&BI16&K16&L16&AQ16&BO16,Tabelle3[BEINH]&Tabelle3[ZZFARBIG]&Tabelle3[IHKOMP]&Tabelle3[AZAFOV]&Tabelle3[TABELLENo]&Tabelle3[DATBI],0))))))","v":"0000227010"},{"$f":"+IF(B16=\"x\",\"\",IF(BB16=\"x\",\"\",IF(AQ16=0,\"\",IF(BO16<=TODAY(),\"\",INDEX(Tabelle3[KNUMH],MATCH(F16&BJ16&K16&L16&AQ16&BO16,Tabelle3[BEINH]&Tabelle3[ZZFARBIG]&Tabelle3[IHKOMP]&Tabelle3[AZAFOV]&Tabelle3[TABELLENo]&Tabelle3[DATBI],0))))))","v":"0000227011"},{"$f":"+IF(Tabelle415[[#This Row],[KNUMH_0]]=\"\",\"\",+INDEX(Tabelle3[BETRAG],MATCH(BK16,Tabelle3[KNUMH],0)))","v":5500},{"$f":"+IF(Tabelle415[[#This Row],[KNUMH_1]]=\"\",\"\",+INDEX(Tabelle3[BETRAG],MATCH(BL16,Tabelle3[KNUMH],0)))","v":5500},"9999-12-31",12953]
[null,null,null,null,null,"102Z170MNA",null,null,"EMTX",null,null,"14Q",null,null,null,null,null,"-",null,null,null,null,null,null,null,null,null,null,null,null,null,2750,2750,null,null,null,null,null,null,null,null,null,866,null,null,null,null,null,null,null,null,null,"","",null,null,null,null,null,null,0,1,{"$f":"+IF(B17=\"x\",\"\",IF(BB17=\"x\",\"\",IF(AQ17=0,\"\",IF(BO17<=TODAY(),\"\",INDEX(Tabelle3[KNUMH],MATCH(F17&BI17&I17&L17&AQ17&BO17,Tabelle3[BEINH]&Tabelle3[ZZFARBIG]&Tabelle3[INHK_KFM]&Tabelle3[AZAFOV]&Tabelle3[TABELLENo]&Tabelle3[DATBI],0))))))","v":"0000228047"},{"$f":"+IF(B17=\"x\",\"\",IF(BB17=\"x\",\"\",IF(AQ17=0,\"\",IF(BO17<=TODAY(),\"\",INDEX(Tabelle3[KNUMH],MATCH(F17&BJ17&I17&L17&AQ17&BO17,Tabelle3[BEINH]&Tabelle3[ZZFARBIG]&Tabelle3[INHK_KFM]&Tabelle3[AZAFOV]&Tabelle3[TABELLENo]&Tabelle3[DATBI],0))))))","v":"0000228048"},{"$f":"+IF(Tabelle415[[#This Row],[KNUMH_0]]=\"\",\"\",+INDEX(Tabelle3[BETRAG],MATCH(BK17,Tabelle3[KNUMH],0)))","v":2750},{"$f":"+IF(Tabelle415[[#This Row],[KNUMH_1]]=\"\",\"\",+INDEX(Tabelle3[BETRAG],MATCH(BL17,Tabelle3[KNUMH],0)))","v":2750},"9999-12-31",12953]
[null,null,null,null,null,"102Z170MNA",null,null,"IMK00",null,null,0,null,null,null,null,null,"-",null,null,null,null,null,null,null,null,null,null,null,1.5,1.95,null,null,null,null,null,null,null,null,null,null,null,850,null,null,null,null,null,null,null,null,null,"","",null,null,null,null,null,null,0,1,{"$f":"+IF(B18=\"x\",\"\",IF(BB18=\"x\",\"\",IF(AQ18=0,\"\",IF(BO18<=TODAY(),\"\",INDEX(Tabelle3[KNUMH],MATCH(F18&BI18&AQ18&BO18,Tabelle3[BEINH]&Tabelle3[ZZFARBIG]&Tabelle3[TABELLENo]&Tabelle3[DATBI],0))))))","v":"0000192667"},{"$f":"+IF(B18=\"x\",\"\",IF(BB18=\"x\",\"\",IF(AQ18=0,\"\",IF(BO18<=TODAY(),\"\",INDEX(Tabelle3[KNUMH],MATCH(F18&BJ18&AQ18&BO18,Tabelle3[BEINH]&Tabelle3[ZZFARBIG]&Tabelle3[TABELLENo]&Tabelle3[DATBI],0))))))","v":"0000192668"},{"$f":"+IF(Tabelle415[[#This Row],[KNUMH_0]]=\"\",\"\",+INDEX(Tabelle3[BETRAG],MATCH(BK18,Tabelle3[KNUMH],0)))","v":1.5},{"$f":"+IF(Tabelle415[[#This Row],[KNUMH_1]]=\"\",\"\",+INDEX(Tabelle3[BETRAG],MATCH(BL18,Tabelle3[KNUMH],0)))","v":1.95},"9999-12-31",12960]
[null,null,null,null,null,"102Z170MNA",null,null,"IMK95",null,null,0,null,null,null,null,null,"-",null,null,null,null,null,null,null,null,null,null,null,1.5,1.95,null,null,null,null,null,null,null,null,null,null,null,850,null,null,null,null,null,null,null,null,null,"","",null,null,null,null,null,null,0,1,{"$f":"+IF(B19=\"x\",\"\",IF(BB19=\"x\",\"\",IF(AQ19=0,\"\",IF(BO19<=TODAY(),\"\",INDEX(Tabelle3[KNUMH],MATCH(F19&BI19&AQ19&BO19,Tabelle3[BEINH]&Tabelle3[ZZFARBIG]&Tabelle3[TABELLENo]&Tabelle3[DATBI],0))))))","v":"0000192667"},{"$f":"+IF(B19=\"x\",\"\",IF(BB19=\"x\",\"\",IF(AQ19=0,\"\",IF(BO19<=TODAY(),\"\",INDEX(Tabelle3[KNUMH],MATCH(F19&BJ19&AQ19&BO19,Tabelle3[BEINH]&Tabelle3[ZZFARBIG]&Tabelle3[TABELLENo]&Tabelle3[DATBI],0))))))","v":"0000192668"},{"$f":"+IF(Tabelle415[[#This Row],[KNUMH_0]]=\"\",\"\",+INDEX(Tabelle3[BETRAG],MATCH(BK19,Tabelle3[KNUMH],0)))","v":1.5},{"$f":"+IF(Tabelle415[[#This Row],[KNUMH_1]]=\"\",\"\",+INDEX(Tabelle3[BETRAG],MATCH(BL19,Tabelle3[KNUMH],0)))","v":1.95},"9999-12-31",12961]
[null,null,null,null,null,"102Z170MNA",null,null,"IMKOM",null,null,0,null,null,null,null,null,"-",null,null,null,null,null,null,null,null,null,null,null,1.5,1.95,null,null,null,null,null,null,null,null,null,null,null,850,null,null,null,null,null,null,null,null,null,"","",null,null,null,null,null,null,0,1,{"$f":"+IF(B20=\"x\",\"\",IF(BB20=\"x\",\"\",IF(AQ20=0,\"\",IF(BO20<=TODAY(),\"\",INDEX(Tabelle3[KNUMH],MATCH(F20&BI20&AQ20&BO20,Tabelle3[BEINH]&Tabelle3[ZZFARBIG]&Tabelle3[TABELLENo]&Tabelle3[DATBI],0))))))","v":"0000192667"},{"$f":"+IF(B20=\"x\",\"\",IF(BB20=\"x\",\"\",IF(AQ20=0,\"\",IF(BO20<=TODAY(),\"\",INDEX(Tabelle3[KNUMH],MATCH(F20&BJ20&AQ20&BO20,Tabelle3[BEINH]&Tabelle3[ZZFARBIG]&Tabelle3[TABELLENo]&Tabelle3[DATBI],0))))))","v":"0000192668"},{"$f":"+IF(Tabelle415[[#This Row],[KNUMH_0]]=\"\",\"\",+INDEX(Tabelle3[BETRAG],MATCH(BK20,Tabelle3[KNUMH],0)))","v":1.5},{"$f":"+IF(Tabelle415[[#This Row],[KNUMH_1]]=\"\",\"\",+INDEX(Tabelle3[BETRAG],MATCH(BL20,Tabelle3[KNUMH],0)))","v":1.95},"9999-12-31",12962]
[null,null,null,null,null,"102Z170MNA",null,null,"IMM00",null,null,0,null,null,null,null,null,"-",null,null,null,null,null,null,null,null,null,null,null,1.5,1.95,null,null,null,null,null,null,null,null,null,null,null,850,null,null,null,null,null,null,null,null,null,"","",null,null,null,null,null,null,0,1,{"$f":"+IF(B21=\"x\",\"\",IF(BB21=\"x\",\"\",IF(AQ21=0,\"\",IF(BO21<=TODAY(),\"\",INDEX(Tabelle3[KNUMH],MATCH(F21&BI21&AQ21&BO21,Tabelle3[BEINH]&Tabelle3[ZZFARBIG]&Tabelle3[TABELLENo]&Tabelle3[DATBI],0))))))","v":"0000192667"},{"$f":"+IF(B21=\"x\",\"\",IF(BB21=\"x\",\"\",IF(AQ21=0,\"\",IF(BO21<=TODAY(),\"\",INDEX(Tabelle3[KNUMH],MATCH(F21&BJ21&AQ21&BO21,Tabelle3[BEINH]&Tabelle3[ZZFARBIG]&Tabelle3[TABELLENo]&Tabelle3[DATBI],0))))))","v":"0000192668"},{"$f":"+IF(Tabelle415[[#This Row],[KNUMH_0]]=\"\",\"\",+INDEX(Tabelle3[BETRAG],MATCH(BK21,Tabelle3[KNUMH],0)))","v":1.5},{"$f":"+IF(Tabelle415[[#This Row],[KNUMH_1]]=\"\",\"\",+INDEX(Tabelle3[BETRAG],MATCH(BL21,Tabelle3[KNUMH],0)))","v":1.95},"9999-12-31",12963]
[null,null,null,null,null,"102Z170MNA",null,null,"IMM95",null,null,0,null,null,null,null,null,"-",null,null,null,null,null,null,null,null,null,null,null,1.5,1.95,null,null,null,null,null,null,null,null,null,null,null,850,null,null,null,null,null,null,null,null,null,"","",null,null,null,null,null,null,0,1,{"$f":"+IF(B22=\"x\",\"\",IF(BB22=\"x\",\"\",IF(AQ22=0,\"\",IF(BO22<=TODAY(),\"\",INDEX(Tabelle3[KNUMH],MATCH(F22&BI22&AQ22&BO22,Tabelle3[BEINH]&Tabelle3[ZZFARBIG]&Tabelle3[TABELLENo]&Tabelle3[DATBI],0))))))","v":"0000192667"},{"$f":"+IF(B22=\"x\",\"\",IF(BB22=\"x\",\"\",IF(AQ22=0,\"\",IF(BO22<=TODAY(),\"\",INDEX(Tabelle3[KNUMH],MATCH(F22&BJ22&AQ22&BO22,Tabelle3[BEINH]&Tabelle3[ZZFARBIG]&Tabelle3[TABELLENo]&Tabelle3[DATBI],0))))))","v":"0000192668"},{"$f":"+IF(Tabelle415[[#This Row],[KNUMH_0]]=\"\",\"\",+INDEX(Tabelle3[BETRAG],MATCH(BK22,Tabelle3[KNUMH],0)))","v":1.5},{"$f":"+IF(Tabelle415[[#This Row],[KNUMH_1]]=\"\",\"\",+INDEX(Tabelle3[BETRAG],MATCH(BL22,Tabelle3[KNUMH],0)))","v":1.95},"9999-12-31",12964]
[null,null,null,null,null,"102Z170MNA",null,null,"KN0201",null,null,11,null,null,null,null,null,"-",null,null,null,null,null,null,null,null,null,null,null,null,null,null,null,null,null,null,null,null,null,null,null,null,866,null,null,null,null,null,null,null,null,null,"","",null,null,null,null,null,null,0,1,{"$f":"+IF(B23=\"x\",\"\",IF(BB23=\"x\",\"\",IF(AQ23=0,\"\",IF(BO23<=TODAY(),\"\",INDEX(Tabelle3[KNUMH],MATCH(F23&BI23&I23&L23&AQ23&BO23,Tabelle3[BEINH]&Tabelle3[ZZFARBIG]&Tabelle3[INHK_KFM]&Tabelle3[AZAFOV]&Tabelle3[TABELLENo]&Tabelle3[DATBI],0))))))","v":""},{"$f":"+IF(B23=\"x\",\"\",IF(BB23=\"x\",\"\",IF(AQ23=0,\"\",IF(BO23<=TODAY(),\"\",INDEX(Tabelle3[KNUMH],MATCH(F23&BJ23&I23&L23&AQ23&BO23,Tabelle3[BEINH]&Tabelle3[ZZFARBIG]&Tabelle3[INHK_KFM]&Tabelle3[AZAFOV]&Tabelle3[TABELLENo]&Tabelle3[DATBI],0))))))","v":""},{"$f":"+IF(Tabelle415[[#This Row],[KNUMH_0]]=\"\",\"\",+INDEX(Tabelle3[BETRAG],MATCH(BK23,Tabelle3[KNUMH],0)))","v":""},{"$f":"+IF(Tabelle415[[#This Row],[KNUMH_1]]=\"\",\"\",+INDEX(Tabelle3[BETRAG],MATCH(BL23,Tabelle3[KNUMH],0)))","v":""},"2021-12-31",13063]
[null,null,null,null,null,"102Z170MNA",null,null,"PN0002",null,null,"116L",null,null,null,null,null,"-",null,null,null,null,null,null,null,null,null,null,null,290,290,null,null,null,null,null,null,null,null,null,null,null,866,null,null,null,null,null,null,null,null,null,"","",null,null,null,null,null,null,0,1,{"$f":"+IF(B24=\"x\",\"\",IF(BB24=\"x\",\"\",IF(AQ24=0,\"\",IF(BO24<=TODAY(),\"\",INDEX(Tabelle3[KNUMH],MATCH(F24&BI24&I24&L24&AQ24&BO24,Tabelle3[BEINH]&Tabelle3[ZZFARBIG]&Tabelle3[INHK_KFM]&Tabelle3[AZAFOV]&Tabelle3[TABELLENo]&Tabelle3[DATBI],0))))))","v":"0000209796"},{"$f":"+IF(B24=\"x\",\"\",IF(BB24=\"x\",\"\",IF(AQ24=0,\"\",IF(BO24<=TODAY(),\"\",INDEX(Tabelle3[KNUMH],MATCH(F24&BJ24&I24&L24&AQ24&BO24,Tabelle3[BEINH]&Tabelle3[ZZFARBIG]&Tabelle3[INHK_KFM]&Tabelle3[AZAFOV]&Tabelle3[TABELLENo]&Tabelle3[DATBI],0))))))","v":"0000209805"},{"$f":"+IF(Tabelle415[[#This Row],[KNUMH_0]]=\"\",\"\",+INDEX(Tabelle3[BETRAG],MATCH(BK24,Tabelle3[KNUMH],0)))","v":290},{"$f":"+IF(Tabelle415[[#This Row],[KNUMH_1]]=\"\",\"\",+INDEX(Tabelle3[BETRAG],MATCH(BL24,Tabelle3[KNUMH],0)))","v":290},"9999-12-31",13064]
[null,null,null,null,null,"102Z170MNA",null,null,"PN0002",null,null,"116Q",null,null,null,null,null,"-",null,null,null,null,null,null,null,null,null,null,null,290,290,null,null,null,null,null,null,null,null,null,null,null,866,null,null,null,null,null,null,null,null,null,"","",null,null,null,null,null,null,0,1,{"$f":"+IF(B25=\"x\",\"\",IF(BB25=\"x\",\"\",IF(AQ25=0,\"\",IF(BO25<=TODAY(),\"\",INDEX(Tabelle3[KNUMH],MATCH(F25&BI25&I25&L25&AQ25&BO25,Tabelle3[BEINH]&Tabelle3[ZZFARBIG]&Tabelle3[INHK_KFM]&Tabelle3[AZAFOV]&Tabelle3[TABELLENo]&Tabelle3[DATBI],0))))))","v":"0000209797"},{"$f":"+IF(B25=\"x\",\"\",IF(BB25=\"x\",\"\",IF(AQ25=0,\"\",IF(BO25<=TODAY(),\"\",INDEX(Tabelle3[KNUMH],MATCH(F25&BJ25&I25&L25&AQ25&BO25,Tabelle3[BEINH]&Tabelle3[ZZFARBIG]&Tabelle3[INHK_KFM]&Tabelle3[AZAFOV]&Tabelle3[TABELLENo]&Tabelle3[DATBI],0))))))","v":"0000209806"},{"$f":"+IF(Tabelle415[[#This Row],[KNUMH_0]]=\"\",\"\",+INDEX(Tabelle3[BETRAG],MATCH(BK25,Tabelle3[KNUMH],0)))","v":290},{"$f":"+IF(Tabelle415[[#This Row],[KNUMH_1]]=\"\",\"\",+INDEX(Tabelle3[BETRAG],MATCH(BL25,Tabelle3[KNUMH],0)))","v":290},"9999-12-31",13065]
[null,null,null,null,null,"102Z170MNA",null,null,"PN0002",null,null,"12Q",null,null,null,null,null,"-",null,null,null,null,null,null,null,null,null,null,null,1950,1950,null,null,null,null,null,null,null,null,null,null,null,866,null,null,null,null,null,null,null,null,null,"","",null,null,null,null,null,null,0,1,{"$f":"+IF(B26=\"x\",\"\",IF(BB26=\"x\",\"\",IF(AQ26=0,\"\",IF(BO26<=TODAY(),\"\",INDEX(Tabelle3[KNUMH],MATCH(F26&BI26&I26&L26&AQ26&BO26,Tabelle3[BEINH]&Tabelle3[ZZFARBIG]&Tabelle3[INHK_KFM]&Tabelle3[AZAFOV]&Tabelle3[TABELLENo]&Tabelle3[DATBI],0))))))","v":"0000209798"},{"$f":"+IF(B26=\"x\",\"\",IF(BB26=\"x\",\"\",IF(AQ26=0,\"\",IF(BO26<=TODAY(),\"\",INDEX(Tabelle3[KNUMH],MATCH(F26&BJ26&I26&L26&AQ26&BO26,Tabelle3[BEINH]&Tabelle3[ZZFARBIG]&Tabelle3[INHK_KFM]&Tabelle3[AZAFOV]&Tabelle3[TABELLENo]&Tabelle3[DATBI],0))))))","v":"0000209807"},{"$f":"+IF(Tabelle415[[#This Row],[KNUMH_0]]=\"\",\"\",+INDEX(Tabelle3[BETRAG],MATCH(BK26,Tabelle3[KNUMH],0)))","v":1950},{"$f":"+IF(Tabelle415[[#This Row],[KNUMH_1]]=\"\",\"\",+INDEX(Tabelle3[BETRAG],MATCH(BL26,Tabelle3[KNUMH],0)))","v":1950},"9999-12-31",13066]
[null,null,null,null,null,"102Z170MNA",null,null,"PN0002",null,null,"132Q",null,null,null,null,null,"-",null,null,null,null,null,null,null,null,null,null,null,160,160,null,null,null,null,null,null,null,null,null,null,null,866,null,null,null,null,null,null,null,null,null,"","",null,null,null,null,null,null,0,1,{"$f":"+IF(B27=\"x\",\"\",IF(BB27=\"x\",\"\",IF(AQ27=0,\"\",IF(BO27<=TODAY(),\"\",INDEX(Tabelle3[KNUMH],MATCH(F27&BI27&I27&L27&AQ27&BO27,Tabelle3[BEINH]&Tabelle3[ZZFARBIG]&Tabelle3[INHK_KFM]&Tabelle3[AZAFOV]&Tabelle3[TABELLENo]&Tabelle3[DATBI],0))))))","v":"0000209799"},{"$f":"+IF(B27=\"x\",\"\",IF(BB27=\"x\",\"\",IF(AQ27=0,\"\",IF(BO27<=TODAY(),\"\",INDEX(Tabelle3[KNUMH],MATCH(F27&BJ27&I27&L27&AQ27&BO27,Tabelle3[BEINH]&Tabelle3[ZZFARBIG]&Tabelle3[INHK_KFM]&Tabelle3[AZAFOV]&Tabelle3[TABELLENo]&Tabelle3[DATBI],0))))))","v":"0000209808"},{"$f":"+IF(Tabelle415[[#This Row],[KNUMH_0]]=\"\",\"\",+INDEX(Tabelle3[BETRAG],MATCH(BK27,Tabelle3[KNUMH],0)))","v":160},{"$f":"+IF(Tabelle415[[#This Row],[KNUMH_1]]=\"\",\"\",+INDEX(Tabelle3[BETRAG],MATCH(BL27,Tabelle3[KNUMH],0)))","v":160},"9999-12-31",13067]
[null,null,null,null,null,"102Z170MNA",null,null,"PN0002",null,null,"14B",null,null,null,null,null,"-",null,null,null,null,null,null,null,null,null,null,null,1030,1030,null,null,null,null,null,null,null,null,null,null,null,866,null,null,null,null,null,null,null,null,null,"","",null,null,null,null,null,null,0,1,{"$f":"+IF(B28=\"x\",\"\",IF(BB28=\"x\",\"\",IF(AQ28=0,\"\",IF(BO28<=TODAY(),\"\",INDEX(Tabelle3[KNUMH],MATCH(F28&BI28&I28&L28&AQ28&BO28,Tabelle3[BEINH]&Tabelle3[ZZFARBIG]&Tabelle3[INHK_KFM]&Tabelle3[AZAFOV]&Tabelle3[TABELLENo]&Tabelle3[DATBI],0))))))","v":"0000209800"},{"$f":"+IF(B28=\"x\",\"\",IF(BB28=\"x\",\"\",IF(AQ28=0,\"\",IF(BO28<=TODAY(),\"\",INDEX(Tabelle3[KNUMH],MATCH(F28&BJ28&I28&L28&AQ28&BO28,Tabelle3[BEINH]&Tabelle3[ZZFARBIG]&Tabelle3[INHK_KFM]&Tabelle3[AZAFOV]&Tabelle3[TABELLENo]&Tabelle3[DATBI],0))))))","v":"0000209809"},{"$f":"+IF(Tabelle415[[#This Row],[KNUMH_0]]=\"\",\"\",+INDEX(Tabelle3[BETRAG],MATCH(BK28,Tabelle3[KNUMH],0)))","v":1030},{"$f":"+IF(Tabelle415[[#This Row],[KNUMH_1]]=\"\",\"\",+INDEX(Tabelle3[BETRAG],MATCH(BL28,Tabelle3[KNUMH],0)))","v":1030},"9999-12-31",13068]
[null,null,null,null,null,"102Z170MNA",null,null,"PN0002",null,null,"14Q",null,null,null,null,null,"-",null,null,null,null,null,null,null,null,null,null,null,1030,1030,null,null,null,null,null,null,null,null,null,null,null,866,null,null,null,null,null,null,null,null,null,"","",null,null,null,null,null,null,0,1,{"$f":"+IF(B29=\"x\",\"\",IF(BB29=\"x\",\"\",IF(AQ29=0,\"\",IF(BO29<=TODAY(),\"\",INDEX(Tabelle3[KNUMH],MATCH(F29&BI29&I29&L29&AQ29&BO29,Tabelle3[BEINH]&Tabelle3[ZZFARBIG]&Tabelle3[INHK_KFM]&Tabelle3[AZAFOV]&Tabelle3[TABELLENo]&Tabelle3[DATBI],0))))))","v":"0000209801"},{"$f":"+IF(B29=\"x\",\"\",IF(BB29=\"x\",\"\",IF(AQ29=0,\"\",IF(BO29<=TODAY(),\"\",INDEX(Tabelle3[KNUMH],MATCH(F29&BJ29&I29&L29&AQ29&BO29,Tabelle3[BEINH]&Tabelle3[ZZFARBIG]&Tabelle3[INHK_KFM]&Tabelle3[AZAFOV]&Tabelle3[TABELLENo]&Tabelle3[DATBI],0))))))","v":"0000209810"},{"$f":"+IF(Tabelle415[[#This Row],[KNUMH_0]]=\"\",\"\",+INDEX(Tabelle3[BETRAG],MATCH(BK29,Tabelle3[KNUMH],0)))","v":1030},{"$f":"+IF(Tabelle415[[#This Row],[KNUMH_1]]=\"\",\"\",+INDEX(Tabelle3[BETRAG],MATCH(BL29,Tabelle3[KNUMH],0)))","v":1030},"9999-12-31",13069]
[null,null,null,null,null,"102Z170MNA",null,null,"PN0002",null,null,"18L",null,null,null,null,null,"-",null,null,null,null,null,null,null,null,null,null,null,550,550,null,null,null,null,null,null,null,null,null,null,null,866,null,null,null,null,null,null,null,null,null,"","",null,null,null,null,null,null,0,1,{"$f":"+IF(B30=\"x\",\"\",IF(BB30=\"x\",\"\",IF(AQ30=0,\"\",IF(BO30<=TODAY(),\"\",INDEX(Tabelle3[KNUMH],MATCH(F30&BI30&I30&L30&AQ30&BO30,Tabelle3[BEINH]&Tabelle3[ZZFARBIG]&Tabelle3[INHK_KFM]&Tabelle3[AZAFOV]&Tabelle3[TABELLENo]&Tabelle3[DATBI],0))))))","v":"0000209802"},{"$f":"+IF(B30=\"x\",\"\",IF(BB30=\"x\",\"\",IF(AQ30=0,\"\",IF(BO30<=TODAY(),\"\",INDEX(Tabelle3[KNUMH],MATCH(F30&BJ30&I30&L30&AQ30&BO30,Tabelle3[BEINH]&Tabelle3[ZZFARBIG]&Tabelle3[INHK_KFM]&Tabelle3[AZAFOV]&Tabelle3[TABELLENo]&Tabelle3[DATBI],0))))))","v":"0000209811"},{"$f":"+IF(Tabelle415[[#This Row],[KNUMH_0]]=\"\",\"\",+INDEX(Tabelle3[BETRAG],MATCH(BK30,Tabelle3[KNUMH],0)))","v":550},{"$f":"+IF(Tabelle415[[#This Row],[KNUMH_1]]=\"\",\"\",+INDEX(Tabelle3[BETRAG],MATCH(BL30,Tabelle3[KNUMH],0)))","v":550},"9999-12-31",13070]
[null,null,null,null,null,"102Z170MNA",null,null,"PN0002",null,null,"18Q",null,null,null,null,null,"-",null,null,null,null,null,null,null,null,null,null,null,550,550,null,null,null,null,null,null,null,null,null,null,null,866,null,null,null,null,null,null,null,null,null,"","",null,null,null,null,null,null,0,1,{"$f":"+IF(B31=\"x\",\"\",IF(BB31=\"x\",\"\",IF(AQ31=0,\"\",IF(BO31<=TODAY(),\"\",INDEX(Tabelle3[KNUMH],MATCH(F31&BI31&I31&L31&AQ31&BO31,Tabelle3[BEINH]&Tabelle3[ZZFARBIG]&Tabelle3[INHK_KFM]&Tabelle3[AZAFOV]&Tabelle3[TABELLENo]&Tabelle3[DATBI],0))))))","v":"0000209803"},{"$f":"+IF(B31=\"x\",\"\",IF(BB31=\"x\",\"\",IF(AQ31=0,\"\",IF(BO31<=TODAY(),\"\",INDEX(Tabelle3[KNUMH],MATCH(F31&BJ31&I31&L31&AQ31&BO31,Tabelle3[BEINH]&Tabelle3[ZZFARBIG]&Tabelle3[INHK_KFM]&Tabelle3[AZAFOV]&Tabelle3[TABELLENo]&Tabelle3[DATBI],0))))))","v":"0000209812"},{"$f":"+IF(Tabelle415[[#This Row],[KNUMH_0]]=\"\",\"\",+INDEX(Tabelle3[BETRAG],MATCH(BK31,Tabelle3[KNUMH],0)))","v":550},{"$f":"+IF(Tabelle415[[#This Row],[KNUMH_1]]=\"\",\"\",+INDEX(Tabelle3[BETRAG],MATCH(BL31,Tabelle3[KNUMH],0)))","v":550},"9999-12-31",13071]
[null,null,null,null,null,"102Z170MNA",null,null,"PN0002",null,null,11,null,null,null,null,null,"-",null,null,null,null,null,null,null,null,null,null,null,3890,3890,null,null,null,null,null,null,null,null,null,null,null,866,null,null,null,null,null,null,null,null,null,"","",null,null,null,null,null,null,0,1,{"$f":"+IF(B32=\"x\",\"\",IF(BB32=\"x\",\"\",IF(AQ32=0,\"\",IF(BO32<=TODAY(),\"\",INDEX(Tabelle3[KNUMH],MATCH(F32&BI32&I32&L32&AQ32&BO32,Tabelle3[BEINH]&Tabelle3[ZZFARBIG]&Tabelle3[INHK_KFM]&Tabelle3[AZAFOV]&Tabelle3[TABELLENo]&Tabelle3[DATBI],0))))))","v":"0000209795"},{"$f":"+IF(B32=\"x\",\"\",IF(BB32=\"x\",\"\",IF(AQ32=0,\"\",IF(BO32<=TODAY(),\"\",INDEX(Tabelle3[KNUMH],MATCH(F32&BJ32&I32&L32&AQ32&BO32,Tabelle3[BEINH]&Tabelle3[ZZFARBIG]&Tabelle3[INHK_KFM]&Tabelle3[AZAFOV]&Tabelle3[TABELLENo]&Tabelle3[DATBI],0))))))","v":"0000209804"},{"$f":"+IF(Tabelle415[[#This Row],[KNUMH_0]]=\"\",\"\",+INDEX(Tabelle3[BETRAG],MATCH(BK32,Tabelle3[KNUMH],0)))","v":3890},{"$f":"+IF(Tabelle415[[#This Row],[KNUMH_1]]=\"\",\"\",+INDEX(Tabelle3[BETRAG],MATCH(BL32,Tabelle3[KNUMH],0)))","v":3890},"9999-12-31",13072]
[null,null,null,null,null,"102Z170MNA",null,null,"ST",null,"ST",0,null,null,null,null,null,"-",null,null,null,null,null,null,null,null,null,null,null,2.09,2.09,null,null,null,null,null,null,null,null,null,null,null,859,null,null,null,null,null,null,null,null,null,"","",null,null,null,null,null,null,0,1,{"$f":"+IF(B33=\"x\",\"\",IF(BB33=\"x\",\"\",IF(AQ33=0,\"\",IF(BO33<=TODAY(),\"\",INDEX(Tabelle3[KNUMH],MATCH(F33&BI33&K33&AQ33&BO33,Tabelle3[BEINH]&Tabelle3[ZZFARBIG]&Tabelle3[IHKOMP]&Tabelle3[TABELLENo]&Tabelle3[DATBI],0))))))","v":"0000199532"},{"$f":"+IF(B33=\"x\",\"\",IF(BB33=\"x\",\"\",IF(AQ33=0,\"\",IF(BO33<=TODAY(),\"\",INDEX(Tabelle3[KNUMH],MATCH(F33&BJ33&K33&AQ33&BO33,Tabelle3[BEINH]&Tabelle3[ZZFARBIG]&Tabelle3[IHKOMP]&Tabelle3[TABELLENo]&Tabelle3[DATBI],0))))))","v":"0000199533"},{"$f":"+IF(Tabelle415[[#This Row],[KNUMH_0]]=\"\",\"\",+INDEX(Tabelle3[BETRAG],MATCH(BK33,Tabelle3[KNUMH],0)))","v":2.09},{"$f":"+IF(Tabelle415[[#This Row],[KNUMH_1]]=\"\",\"\",+INDEX(Tabelle3[BETRAG],MATCH(BL33,Tabelle3[KNUMH],0)))","v":2.09},"9999-12-31",13073]
[null,null,null,null,null,"102Z170MNA",null,null,"EMTX",null,"EMTX","F235",null,null,null,null,null,"B009",null,null,null,null,null,null,null,null,null,null,null,1700,1700,null,null,null,null,null,null,null,null,null,null,null,879,null,null,null,null,null,null,null,null,null,"","",null,null,null,null,null,null,0,1,{"$f":"+IF(B34=\"x\",\"\",IF(BB34=\"x\",\"\",IF(AQ34=0,\"\",IF(BO34<=TODAY(),\"\",INDEX(Tabelle3[KNUMH],MATCH(F34&BI34&K34&L34&R34&AQ34&BO34,Tabelle3[BEINH]&Tabelle3[ZZFARBIG]&Tabelle3[IHKOMP]&Tabelle3[AZAFOV]&Tabelle3[AZAPLZ]&Tabelle3[TABELLENo]&Tabelle3[DATBI],0))))))","v":"0000219930"},{"$f":"+IF(B34=\"x\",\"\",IF(BB34=\"x\",\"\",IF(AQ34=0,\"\",IF(BO34<=TODAY(),\"\",INDEX(Tabelle3[KNUMH],MATCH(F34&BJ34&K34&L34&R34&AQ34&BO34,Tabelle3[BEINH]&Tabelle3[ZZFARBIG]&Tabelle3[IHKOMP]&Tabelle3[AZAFOV]&Tabelle3[AZAPLZ]&Tabelle3[TABELLENo]&Tabelle3[DATBI],0))))))","v":"0000219931"},{"$f":"+IF(Tabelle415[[#This Row],[KNUMH_0]]=\"\",\"\",+INDEX(Tabelle3[BETRAG],MATCH(BK34,Tabelle3[KNUMH],0)))","v":1700},{"$f":"+IF(Tabelle415[[#This Row],[KNUMH_1]]=\"\",\"\",+INDEX(Tabelle3[BETRAG],MATCH(BL34,Tabelle3[KNUMH],0)))","v":1700},"9999-12-31",20912]
[null,null,null,null,null,"102Z170MNA",null,null,"KN0216",null,null,11,null,null,null,null,null,"-",null,null,null,null,null,null,null,null,null,null,null,3890,3890,3890,3890,null,null,null,null,null,null,null,null,null,866,null,null,null,null,null,null,null,null,null,"","",null,null,null,null,null,null,0,1,{"$f":"+IF(B35=\"x\",\"\",IF(BB35=\"x\",\"\",IF(AQ35=0,\"\",IF(BO35<=TODAY(),\"\",INDEX(Tabelle3[KNUMH],MATCH(F35&BI35&I35&L35&AQ35&BO35,Tabelle3[BEINH]&Tabelle3[ZZFARBIG]&Tabelle3[INHK_KFM]&Tabelle3[AZAFOV]&Tabelle3[TABELLENo]&Tabelle3[DATBI],0))))))","v":"0000223789"},{"$f":"+IF(B35=\"x\",\"\",IF(BB35=\"x\",\"\",IF(AQ35=0,\"\",IF(BO35<=TODAY(),\"\",INDEX(Tabelle3[KNUMH],MATCH(F35&BJ35&I35&L35&AQ35&BO35,Tabelle3[BEINH]&Tabelle3[ZZFARBIG]&Tabelle3[INHK_KFM]&Tabelle3[AZAFOV]&Tabelle3[TABELLENo]&Tabelle3[DATBI],0))))))","v":"0000223798"},{"$f":"+IF(Tabelle415[[#This Row],[KNUMH_0]]=\"\",\"\",+INDEX(Tabelle3[BETRAG],MATCH(BK35,Tabelle3[KNUMH],0)))","v":3890},{"$f":"+IF(Tabelle415[[#This Row],[KNUMH_1]]=\"\",\"\",+INDEX(Tabelle3[BETRAG],MATCH(BL35,Tabelle3[KNUMH],0)))","v":3890},"9999-12-31",21288]
[null,null,null,null,null,"102Z170MNA",null,null,"KN0216",null,null,11,null,null,null,null,null,"-",null,null,null,null,null,null,null,null,null,null,null,3890,3890,3890,3890,null,null,null,null,null,null,null,null,null,866,null,null,null,null,null,null,null,null,null,"","",null,null,null,null,null,null,0,1,{"$f":"+IF(B36=\"x\",\"\",IF(BB36=\"x\",\"\",IF(AQ36=0,\"\",IF(BO36<=TODAY(),\"\",INDEX(Tabelle3[KNUMH],MATCH(F36&BI36&I36&L36&AQ36&BO36,Tabelle3[BEINH]&Tabelle3[ZZFARBIG]&Tabelle3[INHK_KFM]&Tabelle3[AZAFOV]&Tabelle3[TABELLENo]&Tabelle3[DATBI],0))))))","v":"0000223789"},{"$f":"+IF(B36=\"x\",\"\",IF(BB36=\"x\",\"\",IF(AQ36=0,\"\",IF(BO36<=TODAY(),\"\",INDEX(Tabelle3[KNUMH],MATCH(F36&BJ36&I36&L36&AQ36&BO36,Tabelle3[BEINH]&Tabelle3[ZZFARBIG]&Tabelle3[INHK_KFM]&Tabelle3[AZAFOV]&Tabelle3[TABELLENo]&Tabelle3[DATBI],0))))))","v":"0000223798"},{"$f":"+IF(Tabelle415[[#This Row],[KNUMH_0]]=\"\",\"\",+INDEX(Tabelle3[BETRAG],MATCH(BK36,Tabelle3[KNUMH],0)))","v":3890},{"$f":"+IF(Tabelle415[[#This Row],[KNUMH_1]]=\"\",\"\",+INDEX(Tabelle3[BETRAG],MATCH(BL36,Tabelle3[KNUMH],0)))","v":3890},"9999-12-31",21288]
[null,null,null,null,null,"102Z170MNA",null,null,"KN0216",null,null,11,null,null,null,null,null,"-",null,null,null,null,null,null,null,null,null,null,null,3890,3890,3890,3890,null,null,null,null,null,null,null,null,null,866,null,null,null,null,null,null,null,null,null,"","",null,null,null,null,null,null,0,1,{"$f":"+IF(B37=\"x\",\"\",IF(BB37=\"x\",\"\",IF(AQ37=0,\"\",IF(BO37<=TODAY(),\"\",INDEX(Tabelle3[KNUMH],MATCH(F37&BI37&I37&L37&AQ37&BO37,Tabelle3[BEINH]&Tabelle3[ZZFARBIG]&Tabelle3[INHK_KFM]&Tabelle3[AZAFOV]&Tabelle3[TABELLENo]&Tabelle3[DATBI],0))))))","v":"0000223789"},{"$f":"+IF(B37=\"x\",\"\",IF(BB37=\"x\",\"\",IF(AQ37=0,\"\",IF(BO37<=TODAY(),\"\",INDEX(Tabelle3[KNUMH],MATCH(F37&BJ37&I37&L37&AQ37&BO37,Tabelle3[BEINH]&Tabelle3[ZZFARBIG]&Tabelle3[INHK_KFM]&Tabelle3[AZAFOV]&Tabelle3[TABELLENo]&Tabelle3[DATBI],0))))))","v":"0000223798"},{"$f":"+IF(Tabelle415[[#This Row],[KNUMH_0]]=\"\",\"\",+INDEX(Tabelle3[BETRAG],MATCH(BK37,Tabelle3[KNUMH],0)))","v":3890},{"$f":"+IF(Tabelle415[[#This Row],[KNUMH_1]]=\"\",\"\",+INDEX(Tabelle3[BETRAG],MATCH(BL37,Tabelle3[KNUMH],0)))","v":3890},"9999-12-31",21288]
[null,null,null,null,null,"102Z170MNA",null,null,"KN0216",null,null,11,null,null,null,null,null,"-",null,null,null,null,null,null,null,null,null,null,null,3890,3890,3890,3890,null,null,null,null,null,null,null,null,null,866,null,null,null,null,null,null,null,null,null,"","",null,null,null,null,null,null,0,1,{"$f":"+IF(B38=\"x\",\"\",IF(BB38=\"x\",\"\",IF(AQ38=0,\"\",IF(BO38<=TODAY(),\"\",INDEX(Tabelle3[KNUMH],MATCH(F38&BI38&I38&L38&AQ38&BO38,Tabelle3[BEINH]&Tabelle3[ZZFARBIG]&Tabelle3[INHK_KFM]&Tabelle3[AZAFOV]&Tabelle3[TABELLENo]&Tabelle3[DATBI],0))))))","v":"0000223789"},{"$f":"+IF(B38=\"x\",\"\",IF(BB38=\"x\",\"\",IF(AQ38=0,\"\",IF(BO38<=TODAY(),\"\",INDEX(Tabelle3[KNUMH],MATCH(F38&BJ38&I38&L38&AQ38&BO38,Tabelle3[BEINH]&Tabelle3[ZZFARBIG]&Tabelle3[INHK_KFM]&Tabelle3[AZAFOV]&Tabelle3[TABELLENo]&Tabelle3[DATBI],0))))))","v":"0000223798"},{"$f":"+IF(Tabelle415[[#This Row],[KNUMH_0]]=\"\",\"\",+INDEX(Tabelle3[BETRAG],MATCH(BK38,Tabelle3[KNUMH],0)))","v":3890},{"$f":"+IF(Tabelle415[[#This Row],[KNUMH_1]]=\"\",\"\",+INDEX(Tabelle3[BETRAG],MATCH(BL38,Tabelle3[KNUMH],0)))","v":3890},"9999-12-31",21288]
[null,null,null,null,null,"102Z170MNA",null,null,"KN0216",null,null,11,null,null,null,null,null,"-",null,null,null,null,null,null,null,null,null,null,null,3890,3890,3890,3890,null,null,null,null,null,null,null,null,null,866,null,null,null,null,null,null,null,null,null,"","",null,null,null,null,null,null,0,1,{"$f":"+IF(B39=\"x\",\"\",IF(BB39=\"x\",\"\",IF(AQ39=0,\"\",IF(BO39<=TODAY(),\"\",INDEX(Tabelle3[KNUMH],MATCH(F39&BI39&I39&L39&AQ39&BO39,Tabelle3[BEINH]&Tabelle3[ZZFARBIG]&Tabelle3[INHK_KFM]&Tabelle3[AZAFOV]&Tabelle3[TABELLENo]&Tabelle3[DATBI],0))))))","v":"0000223789"},{"$f":"+IF(B39=\"x\",\"\",IF(BB39=\"x\",\"\",IF(AQ39=0,\"\",IF(BO39<=TODAY(),\"\",INDEX(Tabelle3[KNUMH],MATCH(F39&BJ39&I39&L39&AQ39&BO39,Tabelle3[BEINH]&Tabelle3[ZZFARBIG]&Tabelle3[INHK_KFM]&Tabelle3[AZAFOV]&Tabelle3[TABELLENo]&Tabelle3[DATBI],0))))))","v":"0000223798"},{"$f":"+IF(Tabelle415[[#This Row],[KNUMH_0]]=\"\",\"\",+INDEX(Tabelle3[BETRAG],MATCH(BK39,Tabelle3[KNUMH],0)))","v":3890},{"$f":"+IF(Tabelle415[[#This Row],[KNUMH_1]]=\"\",\"\",+INDEX(Tabelle3[BETRAG],MATCH(BL39,Tabelle3[KNUMH],0)))","v":3890},"9999-12-31",21288]
[null,null,null,null,null,"102Z170MNA",null,null,"KN0216",null,null,11,null,null,null,null,null,"-",null,null,null,null,null,null,null,null,null,null,null,3890,3890,3890,3890,null,null,null,null,null,null,null,null,null,866,null,null,null,null,null,null,null,null,null,"","",null,null,null,null,null,null,0,1,{"$f":"+IF(B40=\"x\",\"\",IF(BB40=\"x\",\"\",IF(AQ40=0,\"\",IF(BO40<=TODAY(),\"\",INDEX(Tabelle3[KNUMH],MATCH(F40&BI40&I40&L40&AQ40&BO40,Tabelle3[BEINH]&Tabelle3[ZZFARBIG]&Tabelle3[INHK_KFM]&Tabelle3[AZAFOV]&Tabelle3[TABELLENo]&Tabelle3[DATBI],0))))))","v":"0000223789"},{"$f":"+IF(B40=\"x\",\"\",IF(BB40=\"x\",\"\",IF(AQ40=0,\"\",IF(BO40<=TODAY(),\"\",INDEX(Tabelle3[KNUMH],MATCH(F40&BJ40&I40&L40&AQ40&BO40,Tabelle3[BEINH]&Tabelle3[ZZFARBIG]&Tabelle3[INHK_KFM]&Tabelle3[AZAFOV]&Tabelle3[TABELLENo]&Tabelle3[DATBI],0))))))","v":"0000223798"},{"$f":"+IF(Tabelle415[[#This Row],[KNUMH_0]]=\"\",\"\",+INDEX(Tabelle3[BETRAG],MATCH(BK40,Tabelle3[KNUMH],0)))","v":3890},{"$f":"+IF(Tabelle415[[#This Row],[KNUMH_1]]=\"\",\"\",+INDEX(Tabelle3[BETRAG],MATCH(BL40,Tabelle3[KNUMH],0)))","v":3890},"9999-12-31",21288]
[null,null,null,null,null,"102Z170MNA",null,null,"KN0216",null,null,11,null,null,null,null,null,"-",null,null,null,null,null,null,null,null,null,null,null,3890,3890,3890,3890,null,null,null,null,null,null,null,null,null,866,null,null,null,null,null,null,null,null,null,"","",null,null,null,null,null,null,0,1,{"$f":"+IF(B41=\"x\",\"\",IF(BB41=\"x\",\"\",IF(AQ41=0,\"\",IF(BO41<=TODAY(),\"\",INDEX(Tabelle3[KNUMH],MATCH(F41&BI41&I41&L41&AQ41&BO41,Tabelle3[BEINH]&Tabelle3[ZZFARBIG]&Tabelle3[INHK_KFM]&Tabelle3[AZAFOV]&Tabelle3[TABELLENo]&Tabelle3[DATBI],0))))))","v":"0000223789"},{"$f":"+IF(B41=\"x\",\"\",IF(BB41=\"x\",\"\",IF(AQ41=0,\"\",IF(BO41<=TODAY(),\"\",INDEX(Tabelle3[KNUMH],MATCH(F41&BJ41&I41&L41&AQ41&BO41,Tabelle3[BEINH]&Tabelle3[ZZFARBIG]&Tabelle3[INHK_KFM]&Tabelle3[AZAFOV]&Tabelle3[TABELLENo]&Tabelle3[DATBI],0))))))","v":"0000223798"},{"$f":"+IF(Tabelle415[[#This Row],[KNUMH_0]]=\"\",\"\",+INDEX(Tabelle3[BETRAG],MATCH(BK41,Tabelle3[KNUMH],0)))","v":3890},{"$f":"+IF(Tabelle415[[#This Row],[KNUMH_1]]=\"\",\"\",+INDEX(Tabelle3[BETRAG],MATCH(BL41,Tabelle3[KNUMH],0)))","v":3890},"9999-12-31",21288]
[null,null,null,null,null,"102Z170MNA",null,null,"KN0216",null,null,11,null,null,null,null,null,"-",null,null,null,null,null,null,null,null,null,null,null,3890,3890,3890,3890,null,null,null,null,null,null,null,null,null,866,null,null,null,null,null,null,null,null,null,"","",null,null,null,null,null,null,0,1,{"$f":"+IF(B42=\"x\",\"\",IF(BB42=\"x\",\"\",IF(AQ42=0,\"\",IF(BO42<=TODAY(),\"\",INDEX(Tabelle3[KNUMH],MATCH(F42&BI42&I42&L42&AQ42&BO42,Tabelle3[BEINH]&Tabelle3[ZZFARBIG]&Tabelle3[INHK_KFM]&Tabelle3[AZAFOV]&Tabelle3[TABELLENo]&Tabelle3[DATBI],0))))))","v":"0000223789"},{"$f":"+IF(B42=\"x\",\"\",IF(BB42=\"x\",\"\",IF(AQ42=0,\"\",IF(BO42<=TODAY(),\"\",INDEX(Tabelle3[KNUMH],MATCH(F42&BJ42&I42&L42&AQ42&BO42,Tabelle3[BEINH]&Tabelle3[ZZFARBIG]&Tabelle3[INHK_KFM]&Tabelle3[AZAFOV]&Tabelle3[TABELLENo]&Tabelle3[DATBI],0))))))","v":"0000223798"},{"$f":"+IF(Tabelle415[[#This Row],[KNUMH_0]]=\"\",\"\",+INDEX(Tabelle3[BETRAG],MATCH(BK42,Tabelle3[KNUMH],0)))","v":3890},{"$f":"+IF(Tabelle415[[#This Row],[KNUMH_1]]=\"\",\"\",+INDEX(Tabelle3[BETRAG],MATCH(BL42,Tabelle3[KNUMH],0)))","v":3890},"9999-12-31",21288]
[null,null,null,null,null,"102Z170MNA",null,null,"KN0216",null,null,11,null,null,null,null,null,"-",null,null,null,null,null,null,null,null,null,null,null,3890,3890,3890,3890,null,null,null,null,null,null,null,null,null,866,null,null,null,null,null,null,null,null,null,"","",null,null,null,null,null,null,0,1,{"$f":"+IF(B43=\"x\",\"\",IF(BB43=\"x\",\"\",IF(AQ43=0,\"\",IF(BO43<=TODAY(),\"\",INDEX(Tabelle3[KNUMH],MATCH(F43&BI43&I43&L43&AQ43&BO43,Tabelle3[BEINH]&Tabelle3[ZZFARBIG]&Tabelle3[INHK_KFM]&Tabelle3[AZAFOV]&Tabelle3[TABELLENo]&Tabelle3[DATBI],0))))))","v":"0000223789"},{"$f":"+IF(B43=\"x\",\"\",IF(BB43=\"x\",\"\",IF(AQ43=0,\"\",IF(BO43<=TODAY(),\"\",INDEX(Tabelle3[KNUMH],MATCH(F43&BJ43&I43&L43&AQ43&BO43,Tabelle3[BEINH]&Tabelle3[ZZFARBIG]&Tabelle3[INHK_KFM]&Tabelle3[AZAFOV]&Tabelle3[TABELLENo]&Tabelle3[DATBI],0))))))","v":"0000223798"},{"$f":"+IF(Tabelle415[[#This Row],[KNUMH_0]]=\"\",\"\",+INDEX(Tabelle3[BETRAG],MATCH(BK43,Tabelle3[KNUMH],0)))","v":3890},{"$f":"+IF(Tabelle415[[#This Row],[KNUMH_1]]=\"\",\"\",+INDEX(Tabelle3[BETRAG],MATCH(BL43,Tabelle3[KNUMH],0)))","v":3890},"9999-12-31",21288]
[null,null,null,null,null,"102Z170MNA",null,null,"KN0216",null,null,11,null,null,null,null,null,"-",null,null,null,null,null,null,null,null,null,null,null,3890,3890,3890,3890,null,null,null,null,null,null,null,null,null,866,null,null,null,null,null,null,null,null,null,"","",null,null,null,null,null,null,0,1,{"$f":"+IF(B44=\"x\",\"\",IF(BB44=\"x\",\"\",IF(AQ44=0,\"\",IF(BO44<=TODAY(),\"\",INDEX(Tabelle3[KNUMH],MATCH(F44&BI44&I44&L44&AQ44&BO44,Tabelle3[BEINH]&Tabelle3[ZZFARBIG]&Tabelle3[INHK_KFM]&Tabelle3[AZAFOV]&Tabelle3[TABELLENo]&Tabelle3[DATBI],0))))))","v":"0000223789"},{"$f":"+IF(B44=\"x\",\"\",IF(BB44=\"x\",\"\",IF(AQ44=0,\"\",IF(BO44<=TODAY(),\"\",INDEX(Tabelle3[KNUMH],MATCH(F44&BJ44&I44&L44&AQ44&BO44,Tabelle3[BEINH]&Tabelle3[ZZFARBIG]&Tabelle3[INHK_KFM]&Tabelle3[AZAFOV]&Tabelle3[TABELLENo]&Tabelle3[DATBI],0))))))","v":"0000223798"},{"$f":"+IF(Tabelle415[[#This Row],[KNUMH_0]]=\"\",\"\",+INDEX(Tabelle3[BETRAG],MATCH(BK44,Tabelle3[KNUMH],0)))","v":3890},{"$f":"+IF(Tabelle415[[#This Row],[KNUMH_1]]=\"\",\"\",+INDEX(Tabelle3[BETRAG],MATCH(BL44,Tabelle3[KNUMH],0)))","v":3890},"9999-12-31",21288]
[null,null,null,null,null,"102Z170MNA",null,null,"KN0216",null,null,11,null,null,null,null,null,"-",null,null,null,null,null,null,null,null,null,null,null,3890,3890,3890,3890,null,null,null,null,null,null,null,null,null,866,null,null,null,null,null,null,null,null,null,"","",null,null,null,null,null,null,0,1,{"$f":"+IF(B45=\"x\",\"\",IF(BB45=\"x\",\"\",IF(AQ45=0,\"\",IF(BO45<=TODAY(),\"\",INDEX(Tabelle3[KNUMH],MATCH(F45&BI45&I45&L45&AQ45&BO45,Tabelle3[BEINH]&Tabelle3[ZZFARBIG]&Tabelle3[INHK_KFM]&Tabelle3[AZAFOV]&Tabelle3[TABELLENo]&Tabelle3[DATBI],0))))))","v":"0000223789"},{"$f":"+IF(B45=\"x\",\"\",IF(BB45=\"x\",\"\",IF(AQ45=0,\"\",IF(BO45<=TODAY(),\"\",INDEX(Tabelle3[KNUMH],MATCH(F45&BJ45&I45&L45&AQ45&BO45,Tabelle3[BEINH]&Tabelle3[ZZFARBIG]&Tabelle3[INHK_KFM]&Tabelle3[AZAFOV]&Tabelle3[TABELLENo]&Tabelle3[DATBI],0))))))","v":"0000223798"},{"$f":"+IF(Tabelle415[[#This Row],[KNUMH_0]]=\"\",\"\",+INDEX(Tabelle3[BETRAG],MATCH(BK45,Tabelle3[KNUMH],0)))","v":3890},{"$f":"+IF(Tabelle415[[#This Row],[KNUMH_1]]=\"\",\"\",+INDEX(Tabelle3[BETRAG],MATCH(BL45,Tabelle3[KNUMH],0)))","v":3890},"9999-12-31",21288]
[null,null,null,null,null,"102Z170MNA",null,null,"KN0216",null,null,11,null,null,null,null,null,"-",null,null,null,null,null,null,null,null,null,null,null,3890,3890,3890,3890,null,null,null,null,null,null,null,null,null,866,null,null,null,null,null,null,null,null,null,"","",null,null,null,null,null,null,0,1,{"$f":"+IF(B46=\"x\",\"\",IF(BB46=\"x\",\"\",IF(AQ46=0,\"\",IF(BO46<=TODAY(),\"\",INDEX(Tabelle3[KNUMH],MATCH(F46&BI46&I46&L46&AQ46&BO46,Tabelle3[BEINH]&Tabelle3[ZZFARBIG]&Tabelle3[INHK_KFM]&Tabelle3[AZAFOV]&Tabelle3[TABELLENo]&Tabelle3[DATBI],0))))))","v":"0000223789"},{"$f":"+IF(B46=\"x\",\"\",IF(BB46=\"x\",\"\",IF(AQ46=0,\"\",IF(BO46<=TODAY(),\"\",INDEX(Tabelle3[KNUMH],MATCH(F46&BJ46&I46&L46&AQ46&BO46,Tabelle3[BEINH]&Tabelle3[ZZFARBIG]&Tabelle3[INHK_KFM]&Tabelle3[AZAFOV]&Tabelle3[TABELLENo]&Tabelle3[DATBI],0))))))","v":"0000223798"},{"$f":"+IF(Tabelle415[[#This Row],[KNUMH_0]]=\"\",\"\",+INDEX(Tabelle3[BETRAG],MATCH(BK46,Tabelle3[KNUMH],0)))","v":3890},{"$f":"+IF(Tabelle415[[#This Row],[KNUMH_1]]=\"\",\"\",+INDEX(Tabelle3[BETRAG],MATCH(BL46,Tabelle3[KNUMH],0)))","v":3890},"9999-12-31",21288]
[null,null,null,null,null,"102Z170MNA",null,null,"KN0216",null,null,"18L",null,null,null,null,null,"-",null,null,null,null,null,null,null,null,null,null,null,550,550,550,550,null,null,null,null,null,null,null,null,null,866,null,null,null,null,null,null,null,null,null,"","",null,null,null,null,null,null,0,1,{"$f":"+IF(B47=\"x\",\"\",IF(BB47=\"x\",\"\",IF(AQ47=0,\"\",IF(BO47<=TODAY(),\"\",INDEX(Tabelle3[KNUMH],MATCH(F47&BI47&I47&L47&AQ47&BO47,Tabelle3[BEINH]&Tabelle3[ZZFARBIG]&Tabelle3[INHK_KFM]&Tabelle3[AZAFOV]&Tabelle3[TABELLENo]&Tabelle3[DATBI],0))))))","v":"0000223796"},{"$f":"+IF(B47=\"x\",\"\",IF(BB47=\"x\",\"\",IF(AQ47=0,\"\",IF(BO47<=TODAY(),\"\",INDEX(Tabelle3[KNUMH],MATCH(F47&BJ47&I47&L47&AQ47&BO47,Tabelle3[BEINH]&Tabelle3[ZZFARBIG]&Tabelle3[INHK_KFM]&Tabelle3[AZAFOV]&Tabelle3[TABELLENo]&Tabelle3[DATBI],0))))))","v":"0000223805"},{"$f":"+IF(Tabelle415[[#This Row],[KNUMH_0]]=\"\",\"\",+INDEX(Tabelle3[BETRAG],MATCH(BK47,Tabelle3[KNUMH],0)))","v":550},{"$f":"+IF(Tabelle415[[#This Row],[KNUMH_1]]=\"\",\"\",+INDEX(Tabelle3[BETRAG],MATCH(BL47,Tabelle3[KNUMH],0)))","v":550},"9999-12-31",21289]
[null,null,null,null,null,"102Z170MNA",null,null,"KN0216",null,null,"18L",null,null,null,null,null,"-",null,null,null,null,null,null,null,null,null,null,null,550,550,550,550,null,null,null,null,null,null,null,null,null,866,null,null,null,null,null,null,null,null,null,"","",null,null,null,null,null,null,0,1,{"$f":"+IF(B48=\"x\",\"\",IF(BB48=\"x\",\"\",IF(AQ48=0,\"\",IF(BO48<=TODAY(),\"\",INDEX(Tabelle3[KNUMH],MATCH(F48&BI48&I48&L48&AQ48&BO48,Tabelle3[BEINH]&Tabelle3[ZZFARBIG]&Tabelle3[INHK_KFM]&Tabelle3[AZAFOV]&Tabelle3[TABELLENo]&Tabelle3[DATBI],0))))))","v":"0000223796"},{"$f":"+IF(B48=\"x\",\"\",IF(BB48=\"x\",\"\",IF(AQ48=0,\"\",IF(BO48<=TODAY(),\"\",INDEX(Tabelle3[KNUMH],MATCH(F48&BJ48&I48&L48&AQ48&BO48,Tabelle3[BEINH]&Tabelle3[ZZFARBIG]&Tabelle3[INHK_KFM]&Tabelle3[AZAFOV]&Tabelle3[TABELLENo]&Tabelle3[DATBI],0))))))","v":"0000223805"},{"$f":"+IF(Tabelle415[[#This Row],[KNUMH_0]]=\"\",\"\",+INDEX(Tabelle3[BETRAG],MATCH(BK48,Tabelle3[KNUMH],0)))","v":550},{"$f":"+IF(Tabelle415[[#This Row],[KNUMH_1]]=\"\",\"\",+INDEX(Tabelle3[BETRAG],MATCH(BL48,Tabelle3[KNUMH],0)))","v":550},"9999-12-31",21289]
[null,null,null,null,null,"102Z170MNA",null,null,"KN0216",null,null,"18L",null,null,null,null,null,"-",null,null,null,null,null,null,null,null,null,null,null,550,550,550,550,null,null,null,null,null,null,null,null,null,866,null,null,null,null,null,null,null,null,null,"","",null,null,null,null,null,null,0,1,{"$f":"+IF(B49=\"x\",\"\",IF(BB49=\"x\",\"\",IF(AQ49=0,\"\",IF(BO49<=TODAY(),\"\",INDEX(Tabelle3[KNUMH],MATCH(F49&BI49&I49&L49&AQ49&BO49,Tabelle3[BEINH]&Tabelle3[ZZFARBIG]&Tabelle3[INHK_KFM]&Tabelle3[AZAFOV]&Tabelle3[TABELLENo]&Tabelle3[DATBI],0))))))","v":"0000223796"},{"$f":"+IF(B49=\"x\",\"\",IF(BB49=\"x\",\"\",IF(AQ49=0,\"\",IF(BO49<=TODAY(),\"\",INDEX(Tabelle3[KNUMH],MATCH(F49&BJ49&I49&L49&AQ49&BO49,Tabelle3[BEINH]&Tabelle3[ZZFARBIG]&Tabelle3[INHK_KFM]&Tabelle3[AZAFOV]&Tabelle3[TABELLENo]&Tabelle3[DATBI],0))))))","v":"0000223805"},{"$f":"+IF(Tabelle415[[#This Row],[KNUMH_0]]=\"\",\"\",+INDEX(Tabelle3[BETRAG],MATCH(BK49,Tabelle3[KNUMH],0)))","v":550},{"$f":"+IF(Tabelle415[[#This Row],[KNUMH_1]]=\"\",\"\",+INDEX(Tabelle3[BETRAG],MATCH(BL49,Tabelle3[KNUMH],0)))","v":550},"9999-12-31",21289]
[null,null,null,null,null,"102Z170MNA",null,null,"KN0216",null,null,"18L",null,null,null,null,null,"-",null,null,null,null,null,null,null,null,null,null,null,550,550,550,550,null,null,null,null,null,null,null,null,null,866,null,null,null,null,null,null,null,null,null,"","",null,null,null,null,null,null,0,1,{"$f":"+IF(B50=\"x\",\"\",IF(BB50=\"x\",\"\",IF(AQ50=0,\"\",IF(BO50<=TODAY(),\"\",INDEX(Tabelle3[KNUMH],MATCH(F50&BI50&I50&L50&AQ50&BO50,Tabelle3[BEINH]&Tabelle3[ZZFARBIG]&Tabelle3[INHK_KFM]&Tabelle3[AZAFOV]&Tabelle3[TABELLENo]&Tabelle3[DATBI],0))))))","v":"0000223796"},{"$f":"+IF(B50=\"x\",\"\",IF(BB50=\"x\",\"\",IF(AQ50=0,\"\",IF(BO50<=TODAY(),\"\",INDEX(Tabelle3[KNUMH],MATCH(F50&BJ50&I50&L50&AQ50&BO50,Tabelle3[BEINH]&Tabelle3[ZZFARBIG]&Tabelle3[INHK_KFM]&Tabelle3[AZAFOV]&Tabelle3[TABELLENo]&Tabelle3[DATBI],0))))))","v":"0000223805"},{"$f":"+IF(Tabelle415[[#This Row],[KNUMH_0]]=\"\",\"\",+INDEX(Tabelle3[BETRAG],MATCH(BK50,Tabelle3[KNUMH],0)))","v":550},{"$f":"+IF(Tabelle415[[#This Row],[KNUMH_1]]=\"\",\"\",+INDEX(Tabelle3[BETRAG],MATCH(BL50,Tabelle3[KNUMH],0)))","v":550},"9999-12-31",21289]
[null,null,null,null,null,"102Z170MNA",null,null,"KN0216",null,null,"18L",null,null,null,null,null,"-",null,null,null,null,null,null,null,null,null,null,null,550,550,550,550,null,null,null,null,null,null,null,null,null,866,null,null,null,null,null,null,null,null,null,"","",null,null,null,null,null,null,0,1,{"$f":"+IF(B51=\"x\",\"\",IF(BB51=\"x\",\"\",IF(AQ51=0,\"\",IF(BO51<=TODAY(),\"\",INDEX(Tabelle3[KNUMH],MATCH(F51&BI51&I51&L51&AQ51&BO51,Tabelle3[BEINH]&Tabelle3[ZZFARBIG]&Tabelle3[INHK_KFM]&Tabelle3[AZAFOV]&Tabelle3[TABELLENo]&Tabelle3[DATBI],0))))))","v":"0000223796"},{"$f":"+IF(B51=\"x\",\"\",IF(BB51=\"x\",\"\",IF(AQ51=0,\"\",IF(BO51<=TODAY(),\"\",INDEX(Tabelle3[KNUMH],MATCH(F51&BJ51&I51&L51&AQ51&BO51,Tabelle3[BEINH]&Tabelle3[ZZFARBIG]&Tabelle3[INHK_KFM]&Tabelle3[AZAFOV]&Tabelle3[TABELLENo]&Tabelle3[DATBI],0))))))","v":"0000223805"},{"$f":"+IF(Tabelle415[[#This Row],[KNUMH_0]]=\"\",\"\",+INDEX(Tabelle3[BETRAG],MATCH(BK51,Tabelle3[KNUMH],0)))","v":550},{"$f":"+IF(Tabelle415[[#This Row],[KNUMH_1]]=\"\",\"\",+INDEX(Tabelle3[BETRAG],MATCH(BL51,Tabelle3[KNUMH],0)))","v":550},"9999-12-31",21289]
[null,null,null,null,null,"102Z170MNA",null,null,"KN0216",null,null,"18L",null,null,null,null,null,"-",null,null,null,null,null,null,null,null,null,null,null,550,550,550,550,null,null,null,null,null,null,null,null,null,866,null,null,null,null,null,null,null,null,null,"","",null,null,null,null,null,null,0,1,{"$f":"+IF(B52=\"x\",\"\",IF(BB52=\"x\",\"\",IF(AQ52=0,\"\",IF(BO52<=TODAY(),\"\",INDEX(Tabelle3[KNUMH],MATCH(F52&BI52&I52&L52&AQ52&BO52,Tabelle3[BEINH]&Tabelle3[ZZFARBIG]&Tabelle3[INHK_KFM]&Tabelle3[AZAFOV]&Tabelle3[TABELLENo]&Tabelle3[DATBI],0))))))","v":"0000223796"},{"$f":"+IF(B52=\"x\",\"\",IF(BB52=\"x\",\"\",IF(AQ52=0,\"\",IF(BO52<=TODAY(),\"\",INDEX(Tabelle3[KNUMH],MATCH(F52&BJ52&I52&L52&AQ52&BO52,Tabelle3[BEINH]&Tabelle3[ZZFARBIG]&Tabelle3[INHK_KFM]&Tabelle3[AZAFOV]&Tabelle3[TABELLENo]&Tabelle3[DATBI],0))))))","v":"0000223805"},{"$f":"+IF(Tabelle415[[#This Row],[KNUMH_0]]=\"\",\"\",+INDEX(Tabelle3[BETRAG],MATCH(BK52,Tabelle3[KNUMH],0)))","v":550},{"$f":"+IF(Tabelle415[[#This Row],[KNUMH_1]]=\"\",\"\",+INDEX(Tabelle3[BETRAG],MATCH(BL52,Tabelle3[KNUMH],0)))","v":550},"9999-12-31",21289]
[null,null,null,null,null,"102Z170MNA",null,null,"KN0216",null,null,"18L",null,null,null,null,null,"-",null,null,null,null,null,null,null,null,null,null,null,550,550,550,550,null,null,null,null,null,null,null,null,null,866,null,null,null,null,null,null,null,null,null,"","",null,null,null,null,null,null,0,1,{"$f":"+IF(B53=\"x\",\"\",IF(BB53=\"x\",\"\",IF(AQ53=0,\"\",IF(BO53<=TODAY(),\"\",INDEX(Tabelle3[KNUMH],MATCH(F53&BI53&I53&L53&AQ53&BO53,Tabelle3[BEINH]&Tabelle3[ZZFARBIG]&Tabelle3[INHK_KFM]&Tabelle3[AZAFOV]&Tabelle3[TABELLENo]&Tabelle3[DATBI],0))))))","v":"0000223796"},{"$f":"+IF(B53=\"x\",\"\",IF(BB53=\"x\",\"\",IF(AQ53=0,\"\",IF(BO53<=TODAY(),\"\",INDEX(Tabelle3[KNUMH],MATCH(F53&BJ53&I53&L53&AQ53&BO53,Tabelle3[BEINH]&Tabelle3[ZZFARBIG]&Tabelle3[INHK_KFM]&Tabelle3[AZAFOV]&Tabelle3[TABELLENo]&Tabelle3[DATBI],0))))))","v":"0000223805"},{"$f":"+IF(Tabelle415[[#This Row],[KNUMH_0]]=\"\",\"\",+INDEX(Tabelle3[BETRAG],MATCH(BK53,Tabelle3[KNUMH],0)))","v":550},{"$f":"+IF(Tabelle415[[#This Row],[KNUMH_1]]=\"\",\"\",+INDEX(Tabelle3[BETRAG],MATCH(BL53,Tabelle3[KNUMH],0)))","v":550},"9999-12-31",21289]
[null,null,null,null,null,"102Z170MNA",null,null,"KN0216",null,null,"18L",null,null,null,null,null,"-",null,null,null,null,null,null,null,null,null,null,null,550,550,550,550,null,null,null,null,null,null,null,null,null,866,null,null,null,null,null,null,null,null,null,"","",null,null,null,null,null,null,0,1,{"$f":"+IF(B54=\"x\",\"\",IF(BB54=\"x\",\"\",IF(AQ54=0,\"\",IF(BO54<=TODAY(),\"\",INDEX(Tabelle3[KNUMH],MATCH(F54&BI54&I54&L54&AQ54&BO54,Tabelle3[BEINH]&Tabelle3[ZZFARBIG]&Tabelle3[INHK_KFM]&Tabelle3[AZAFOV]&Tabelle3[TABELLENo]&Tabelle3[DATBI],0))))))","v":"0000223796"},{"$f":"+IF(B54=\"x\",\"\",IF(BB54=\"x\",\"\",IF(AQ54=0,\"\",IF(BO54<=TODAY(),\"\",INDEX(Tabelle3[KNUMH],MATCH(F54&BJ54&I54&L54&AQ54&BO54,Tabelle3[BEINH]&Tabelle3[ZZFARBIG]&Tabelle3[INHK_KFM]&Tabelle3[AZAFOV]&Tabelle3[TABELLENo]&Tabelle3[DATBI],0))))))","v":"0000223805"},{"$f":"+IF(Tabelle415[[#This Row],[KNUMH_0]]=\"\",\"\",+INDEX(Tabelle3[BETRAG],MATCH(BK54,Tabelle3[KNUMH],0)))","v":550},{"$f":"+IF(Tabelle415[[#This Row],[KNUMH_1]]=\"\",\"\",+INDEX(Tabelle3[BETRAG],MATCH(BL54,Tabelle3[KNUMH],0)))","v":550},"9999-12-31",21289]
[null,null,null,null,null,"102Z170MNA",null,null,"KN0216",null,null,"18L",null,null,null,null,null,"-",null,null,null,null,null,null,null,null,null,null,null,550,550,550,550,null,null,null,null,null,null,null,null,null,866,null,null,null,null,null,null,null,null,null,"","",null,null,null,null,null,null,0,1,{"$f":"+IF(B55=\"x\",\"\",IF(BB55=\"x\",\"\",IF(AQ55=0,\"\",IF(BO55<=TODAY(),\"\",INDEX(Tabelle3[KNUMH],MATCH(F55&BI55&I55&L55&AQ55&BO55,Tabelle3[BEINH]&Tabelle3[ZZFARBIG]&Tabelle3[INHK_KFM]&Tabelle3[AZAFOV]&Tabelle3[TABELLENo]&Tabelle3[DATBI],0))))))","v":"0000223796"},{"$f":"+IF(B55=\"x\",\"\",IF(BB55=\"x\",\"\",IF(AQ55=0,\"\",IF(BO55<=TODAY(),\"\",INDEX(Tabelle3[KNUMH],MATCH(F55&BJ55&I55&L55&AQ55&BO55,Tabelle3[BEINH]&Tabelle3[ZZFARBIG]&Tabelle3[INHK_KFM]&Tabelle3[AZAFOV]&Tabelle3[TABELLENo]&Tabelle3[DATBI],0))))))","v":"0000223805"},{"$f":"+IF(Tabelle415[[#This Row],[KNUMH_0]]=\"\",\"\",+INDEX(Tabelle3[BETRAG],MATCH(BK55,Tabelle3[KNUMH],0)))","v":550},{"$f":"+IF(Tabelle415[[#This Row],[KNUMH_1]]=\"\",\"\",+INDEX(Tabelle3[BETRAG],MATCH(BL55,Tabelle3[KNUMH],0)))","v":550},"9999-12-31",21289]
[null,null,null,null,null,"102Z170MNA",null,null,"KN0216",null,null,"18L",null,null,null,null,null,"-",null,null,null,null,null,null,null,null,null,null,null,550,550,550,550,null,null,null,null,null,null,null,null,null,866,null,null,null,null,null,null,null,null,null,"","",null,null,null,null,null,null,0,1,{"$f":"+IF(B56=\"x\",\"\",IF(BB56=\"x\",\"\",IF(AQ56=0,\"\",IF(BO56<=TODAY(),\"\",INDEX(Tabelle3[KNUMH],MATCH(F56&BI56&I56&L56&AQ56&BO56,Tabelle3[BEINH]&Tabelle3[ZZFARBIG]&Tabelle3[INHK_KFM]&Tabelle3[AZAFOV]&Tabelle3[TABELLENo]&Tabelle3[DATBI],0))))))","v":"0000223796"},{"$f":"+IF(B56=\"x\",\"\",IF(BB56=\"x\",\"\",IF(AQ56=0,\"\",IF(BO56<=TODAY(),\"\",INDEX(Tabelle3[KNUMH],MATCH(F56&BJ56&I56&L56&AQ56&BO56,Tabelle3[BEINH]&Tabelle3[ZZFARBIG]&Tabelle3[INHK_KFM]&Tabelle3[AZAFOV]&Tabelle3[TABELLENo]&Tabelle3[DATBI],0))))))","v":"0000223805"},{"$f":"+IF(Tabelle415[[#This Row],[KNUMH_0]]=\"\",\"\",+INDEX(Tabelle3[BETRAG],MATCH(BK56,Tabelle3[KNUMH],0)))","v":550},{"$f":"+IF(Tabelle415[[#This Row],[KNUMH_1]]=\"\",\"\",+INDEX(Tabelle3[BETRAG],MATCH(BL56,Tabelle3[KNUMH],0)))","v":550},"9999-12-31",21289]
[null,null,null,null,null,"102Z170MNA",null,null,"KN0216",null,null,"18L",null,null,null,null,null,"-",null,null,null,null,null,null,null,null,null,null,null,550,550,550,550,null,null,null,null,null,null,null,null,null,866,null,null,null,null,null,null,null,null,null,"","",null,null,null,null,null,null,0,1,{"$f":"+IF(B57=\"x\",\"\",IF(BB57=\"x\",\"\",IF(AQ57=0,\"\",IF(BO57<=TODAY(),\"\",INDEX(Tabelle3[KNUMH],MATCH(F57&BI57&I57&L57&AQ57&BO57,Tabelle3[BEINH]&Tabelle3[ZZFARBIG]&Tabelle3[INHK_KFM]&Tabelle3[AZAFOV]&Tabelle3[TABELLENo]&Tabelle3[DATBI],0))))))","v":"0000223796"},{"$f":"+IF(B57=\"x\",\"\",IF(BB57=\"x\",\"\",IF(AQ57=0,\"\",IF(BO57<=TODAY(),\"\",INDEX(Tabelle3[KNUMH],MATCH(F57&BJ57&I57&L57&AQ57&BO57,Tabelle3[BEINH]&Tabelle3[ZZFARBIG]&Tabelle3[INHK_KFM]&Tabelle3[AZAFOV]&Tabelle3[TABELLENo]&Tabelle3[DATBI],0))))))","v":"0000223805"},{"$f":"+IF(Tabelle415[[#This Row],[KNUMH_0]]=\"\",\"\",+INDEX(Tabelle3[BETRAG],MATCH(BK57,Tabelle3[KNUMH],0)))","v":550},{"$f":"+IF(Tabelle415[[#This Row],[KNUMH_1]]=\"\",\"\",+INDEX(Tabelle3[BETRAG],MATCH(BL57,Tabelle3[KNUMH],0)))","v":550},"9999-12-31",21289]
[null,null,null,null,null,"102Z170MNA",null,null,"KN0216",null,null,"18L",null,null,null,null,null,"-",null,null,null,null,null,null,null,null,null,null,null,550,550,550,550,null,null,null,null,null,null,null,null,null,866,null,null,null,null,null,null,null,null,null,"","",null,null,null,null,null,null,0,1,{"$f":"+IF(B58=\"x\",\"\",IF(BB58=\"x\",\"\",IF(AQ58=0,\"\",IF(BO58<=TODAY(),\"\",INDEX(Tabelle3[KNUMH],MATCH(F58&BI58&I58&L58&AQ58&BO58,Tabelle3[BEINH]&Tabelle3[ZZFARBIG]&Tabelle3[INHK_KFM]&Tabelle3[AZAFOV]&Tabelle3[TABELLENo]&Tabelle3[DATBI],0))))))","v":"0000223796"},{"$f":"+IF(B58=\"x\",\"\",IF(BB58=\"x\",\"\",IF(AQ58=0,\"\",IF(BO58<=TODAY(),\"\",INDEX(Tabelle3[KNUMH],MATCH(F58&BJ58&I58&L58&AQ58&BO58,Tabelle3[BEINH]&Tabelle3[ZZFARBIG]&Tabelle3[INHK_KFM]&Tabelle3[AZAFOV]&Tabelle3[TABELLENo]&Tabelle3[DATBI],0))))))","v":"0000223805"},{"$f":"+IF(Tabelle415[[#This Row],[KNUMH_0]]=\"\",\"\",+INDEX(Tabelle3[BETRAG],MATCH(BK58,Tabelle3[KNUMH],0)))","v":550},{"$f":"+IF(Tabelle415[[#This Row],[KNUMH_1]]=\"\",\"\",+INDEX(Tabelle3[BETRAG],MATCH(BL58,Tabelle3[KNUMH],0)))","v":550},"9999-12-31",21289]
[null,null,null,null,null,"102Z170MNA",null,null,"KN0216",null,null,"18Q",null,null,null,null,null,"-",null,null,null,null,null,null,null,null,null,null,null,550,550,550,550,null,null,null,null,null,null,null,null,null,866,null,null,null,null,null,null,null,null,null,"","",null,null,null,null,null,null,0,1,{"$f":"+IF(B59=\"x\",\"\",IF(BB59=\"x\",\"\",IF(AQ59=0,\"\",IF(BO59<=TODAY(),\"\",INDEX(Tabelle3[KNUMH],MATCH(F59&BI59&I59&L59&AQ59&BO59,Tabelle3[BEINH]&Tabelle3[ZZFARBIG]&Tabelle3[INHK_KFM]&Tabelle3[AZAFOV]&Tabelle3[TABELLENo]&Tabelle3[DATBI],0))))))","v":"0000223797"},{"$f":"+IF(B59=\"x\",\"\",IF(BB59=\"x\",\"\",IF(AQ59=0,\"\",IF(BO59<=TODAY(),\"\",INDEX(Tabelle3[KNUMH],MATCH(F59&BJ59&I59&L59&AQ59&BO59,Tabelle3[BEINH]&Tabelle3[ZZFARBIG]&Tabelle3[INHK_KFM]&Tabelle3[AZAFOV]&Tabelle3[TABELLENo]&Tabelle3[DATBI],0))))))","v":"0000223806"},{"$f":"+IF(Tabelle415[[#This Row],[KNUMH_0]]=\"\",\"\",+INDEX(Tabelle3[BETRAG],MATCH(BK59,Tabelle3[KNUMH],0)))","v":550},{"$f":"+IF(Tabelle415[[#This Row],[KNUMH_1]]=\"\",\"\",+INDEX(Tabelle3[BETRAG],MATCH(BL59,Tabelle3[KNUMH],0)))","v":550},"9999-12-31",21290]
[null,null,null,null,null,"102Z170MNA",null,null,"KN0216",null,null,"18Q",null,null,null,null,null,"-",null,null,null,null,null,null,null,null,null,null,null,550,550,550,550,null,null,null,null,null,null,null,null,null,866,null,null,null,null,null,null,null,null,null,"","",null,null,null,null,null,null,0,1,{"$f":"+IF(B60=\"x\",\"\",IF(BB60=\"x\",\"\",IF(AQ60=0,\"\",IF(BO60<=TODAY(),\"\",INDEX(Tabelle3[KNUMH],MATCH(F60&BI60&I60&L60&AQ60&BO60,Tabelle3[BEINH]&Tabelle3[ZZFARBIG]&Tabelle3[INHK_KFM]&Tabelle3[AZAFOV]&Tabelle3[TABELLENo]&Tabelle3[DATBI],0))))))","v":"0000223797"},{"$f":"+IF(B60=\"x\",\"\",IF(BB60=\"x\",\"\",IF(AQ60=0,\"\",IF(BO60<=TODAY(),\"\",INDEX(Tabelle3[KNUMH],MATCH(F60&BJ60&I60&L60&AQ60&BO60,Tabelle3[BEINH]&Tabelle3[ZZFARBIG]&Tabelle3[INHK_KFM]&Tabelle3[AZAFOV]&Tabelle3[TABELLENo]&Tabelle3[DATBI],0))))))","v":"0000223806"},{"$f":"+IF(Tabelle415[[#This Row],[KNUMH_0]]=\"\",\"\",+INDEX(Tabelle3[BETRAG],MATCH(BK60,Tabelle3[KNUMH],0)))","v":550},{"$f":"+IF(Tabelle415[[#This Row],[KNUMH_1]]=\"\",\"\",+INDEX(Tabelle3[BETRAG],MATCH(BL60,Tabelle3[KNUMH],0)))","v":550},"9999-12-31",21290]
[null,null,null,null,null,"102Z170MNA",null,null,"KN0216",null,null,"18Q",null,null,null,null,null,"-",null,null,null,null,null,null,null,null,null,null,null,550,550,550,550,null,null,null,null,null,null,null,null,null,866,null,null,null,null,null,null,null,null,null,"","",null,null,null,null,null,null,0,1,{"$f":"+IF(B61=\"x\",\"\",IF(BB61=\"x\",\"\",IF(AQ61=0,\"\",IF(BO61<=TODAY(),\"\",INDEX(Tabelle3[KNUMH],MATCH(F61&BI61&I61&L61&AQ61&BO61,Tabelle3[BEINH]&Tabelle3[ZZFARBIG]&Tabelle3[INHK_KFM]&Tabelle3[AZAFOV]&Tabelle3[TABELLENo]&Tabelle3[DATBI],0))))))","v":"0000223797"},{"$f":"+IF(B61=\"x\",\"\",IF(BB61=\"x\",\"\",IF(AQ61=0,\"\",IF(BO61<=TODAY(),\"\",INDEX(Tabelle3[KNUMH],MATCH(F61&BJ61&I61&L61&AQ61&BO61,Tabelle3[BEINH]&Tabelle3[ZZFARBIG]&Tabelle3[INHK_KFM]&Tabelle3[AZAFOV]&Tabelle3[TABELLENo]&Tabelle3[DATBI],0))))))","v":"0000223806"},{"$f":"+IF(Tabelle415[[#This Row],[KNUMH_0]]=\"\",\"\",+INDEX(Tabelle3[BETRAG],MATCH(BK61,Tabelle3[KNUMH],0)))","v":550},{"$f":"+IF(Tabelle415[[#This Row],[KNUMH_1]]=\"\",\"\",+INDEX(Tabelle3[BETRAG],MATCH(BL61,Tabelle3[KNUMH],0)))","v":550},"9999-12-31",21290]
[null,null,null,null,null,"102Z170MNA",null,null,"KN0216",null,null,"18Q",null,null,null,null,null,"-",null,null,null,null,null,null,null,null,null,null,null,550,550,550,550,null,null,null,null,null,null,null,null,null,866,null,null,null,null,null,null,null,null,null,"","",null,null,null,null,null,null,0,1,{"$f":"+IF(B62=\"x\",\"\",IF(BB62=\"x\",\"\",IF(AQ62=0,\"\",IF(BO62<=TODAY(),\"\",INDEX(Tabelle3[KNUMH],MATCH(F62&BI62&I62&L62&AQ62&BO62,Tabelle3[BEINH]&Tabelle3[ZZFARBIG]&Tabelle3[INHK_KFM]&Tabelle3[AZAFOV]&Tabelle3[TABELLENo]&Tabelle3[DATBI],0))))))","v":"0000223797"},{"$f":"+IF(B62=\"x\",\"\",IF(BB62=\"x\",\"\",IF(AQ62=0,\"\",IF(BO62<=TODAY(),\"\",INDEX(Tabelle3[KNUMH],MATCH(F62&BJ62&I62&L62&AQ62&BO62,Tabelle3[BEINH]&Tabelle3[ZZFARBIG]&Tabelle3[INHK_KFM]&Tabelle3[AZAFOV]&Tabelle3[TABELLENo]&Tabelle3[DATBI],0))))))","v":"0000223806"},{"$f":"+IF(Tabelle415[[#This Row],[KNUMH_0]]=\"\",\"\",+INDEX(Tabelle3[BETRAG],MATCH(BK62,Tabelle3[KNUMH],0)))","v":550},{"$f":"+IF(Tabelle415[[#This Row],[KNUMH_1]]=\"\",\"\",+INDEX(Tabelle3[BETRAG],MATCH(BL62,Tabelle3[KNUMH],0)))","v":550},"9999-12-31",21290]
[null,null,null,null,null,"102Z170MNA",null,null,"KN0216",null,null,"18Q",null,null,null,null,null,"-",null,null,null,null,null,null,null,null,null,null,null,550,550,550,550,null,null,null,null,null,null,null,null,null,866,null,null,null,null,null,null,null,null,null,"","",null,null,null,null,null,null,0,1,{"$f":"+IF(B63=\"x\",\"\",IF(BB63=\"x\",\"\",IF(AQ63=0,\"\",IF(BO63<=TODAY(),\"\",INDEX(Tabelle3[KNUMH],MATCH(F63&BI63&I63&L63&AQ63&BO63,Tabelle3[BEINH]&Tabelle3[ZZFARBIG]&Tabelle3[INHK_KFM]&Tabelle3[AZAFOV]&Tabelle3[TABELLENo]&Tabelle3[DATBI],0))))))","v":"0000223797"},{"$f":"+IF(B63=\"x\",\"\",IF(BB63=\"x\",\"\",IF(AQ63=0,\"\",IF(BO63<=TODAY(),\"\",INDEX(Tabelle3[KNUMH],MATCH(F63&BJ63&I63&L63&AQ63&BO63,Tabelle3[BEINH]&Tabelle3[ZZFARBIG]&Tabelle3[INHK_KFM]&Tabelle3[AZAFOV]&Tabelle3[TABELLENo]&Tabelle3[DATBI],0))))))","v":"0000223806"},{"$f":"+IF(Tabelle415[[#This Row],[KNUMH_0]]=\"\",\"\",+INDEX(Tabelle3[BETRAG],MATCH(BK63,Tabelle3[KNUMH],0)))","v":550},{"$f":"+IF(Tabelle415[[#This Row],[KNUMH_1]]=\"\",\"\",+INDEX(Tabelle3[BETRAG],MATCH(BL63,Tabelle3[KNUMH],0)))","v":550},"9999-12-31",21290]
[null,null,null,null,null,"102Z170MNA",null,null,"KN0216",null,null,"18Q",null,null,null,null,null,"-",null,null,null,null,null,null,null,null,null,null,null,550,550,550,550,null,null,null,null,null,null,null,null,null,866,null,null,null,null,null,null,null,null,null,"","",null,null,null,null,null,null,0,1,{"$f":"+IF(B64=\"x\",\"\",IF(BB64=\"x\",\"\",IF(AQ64=0,\"\",IF(BO64<=TODAY(),\"\",INDEX(Tabelle3[KNUMH],MATCH(F64&BI64&I64&L64&AQ64&BO64,Tabelle3[BEINH]&Tabelle3[ZZFARBIG]&Tabelle3[INHK_KFM]&Tabelle3[AZAFOV]&Tabelle3[TABELLENo]&Tabelle3[DATBI],0))))))","v":"0000223797"},{"$f":"+IF(B64=\"x\",\"\",IF(BB64=\"x\",\"\",IF(AQ64=0,\"\",IF(BO64<=TODAY(),\"\",INDEX(Tabelle3[KNUMH],MATCH(F64&BJ64&I64&L64&AQ64&BO64,Tabelle3[BEINH]&Tabelle3[ZZFARBIG]&Tabelle3[INHK_KFM]&Tabelle3[AZAFOV]&Tabelle3[TABELLENo]&Tabelle3[DATBI],0))))))","v":"0000223806"},{"$f":"+IF(Tabelle415[[#This Row],[KNUMH_0]]=\"\",\"\",+INDEX(Tabelle3[BETRAG],MATCH(BK64,Tabelle3[KNUMH],0)))","v":550},{"$f":"+IF(Tabelle415[[#This Row],[KNUMH_1]]=\"\",\"\",+INDEX(Tabelle3[BETRAG],MATCH(BL64,Tabelle3[KNUMH],0)))","v":550},"9999-12-31",21290]
[null,null,null,null,null,"102Z170MNA",null,null,"KN0216",null,null,"18Q",null,null,null,null,null,"-",null,null,null,null,null,null,null,null,null,null,null,550,550,550,550,null,null,null,null,null,null,null,null,null,866,null,null,null,null,null,null,null,null,null,"","",null,null,null,null,null,null,0,1,{"$f":"+IF(B65=\"x\",\"\",IF(BB65=\"x\",\"\",IF(AQ65=0,\"\",IF(BO65<=TODAY(),\"\",INDEX(Tabelle3[KNUMH],MATCH(F65&BI65&I65&L65&AQ65&BO65,Tabelle3[BEINH]&Tabelle3[ZZFARBIG]&Tabelle3[INHK_KFM]&Tabelle3[AZAFOV]&Tabelle3[TABELLENo]&Tabelle3[DATBI],0))))))","v":"0000223797"},{"$f":"+IF(B65=\"x\",\"\",IF(BB65=\"x\",\"\",IF(AQ65=0,\"\",IF(BO65<=TODAY(),\"\",INDEX(Tabelle3[KNUMH],MATCH(F65&BJ65&I65&L65&AQ65&BO65,Tabelle3[BEINH]&Tabelle3[ZZFARBIG]&Tabelle3[INHK_KFM]&Tabelle3[AZAFOV]&Tabelle3[TABELLENo]&Tabelle3[DATBI],0))))))","v":"0000223806"},{"$f":"+IF(Tabelle415[[#This Row],[KNUMH_0]]=\"\",\"\",+INDEX(Tabelle3[BETRAG],MATCH(BK65,Tabelle3[KNUMH],0)))","v":550},{"$f":"+IF(Tabelle415[[#This Row],[KNUMH_1]]=\"\",\"\",+INDEX(Tabelle3[BETRAG],MATCH(BL65,Tabelle3[KNUMH],0)))","v":550},"9999-12-31",21290]
[null,null,null,null,null,"102Z170MNA",null,null,"KN0216",null,null,"18Q",null,null,null,null,null,"-",null,null,null,null,null,null,null,null,null,null,null,550,550,550,550,null,null,null,null,null,null,null,null,null,866,null,null,null,null,null,null,null,null,null,"","",null,null,null,null,null,null,0,1,{"$f":"+IF(B66=\"x\",\"\",IF(BB66=\"x\",\"\",IF(AQ66=0,\"\",IF(BO66<=TODAY(),\"\",INDEX(Tabelle3[KNUMH],MATCH(F66&BI66&I66&L66&AQ66&BO66,Tabelle3[BEINH]&Tabelle3[ZZFARBIG]&Tabelle3[INHK_KFM]&Tabelle3[AZAFOV]&Tabelle3[TABELLENo]&Tabelle3[DATBI],0))))))","v":"0000223797"},{"$f":"+IF(B66=\"x\",\"\",IF(BB66=\"x\",\"\",IF(AQ66=0,\"\",IF(BO66<=TODAY(),\"\",INDEX(Tabelle3[KNUMH],MATCH(F66&BJ66&I66&L66&AQ66&BO66,Tabelle3[BEINH]&Tabelle3[ZZFARBIG]&Tabelle3[INHK_KFM]&Tabelle3[AZAFOV]&Tabelle3[TABELLENo]&Tabelle3[DATBI],0))))))","v":"0000223806"},{"$f":"+IF(Tabelle415[[#This Row],[KNUMH_0]]=\"\",\"\",+INDEX(Tabelle3[BETRAG],MATCH(BK66,Tabelle3[KNUMH],0)))","v":550},{"$f":"+IF(Tabelle415[[#This Row],[KNUMH_1]]=\"\",\"\",+INDEX(Tabelle3[BETRAG],MATCH(BL66,Tabelle3[KNUMH],0)))","v":550},"9999-12-31",21290]
[null,null,null,null,null,"102Z170MNA",null,null,"KN0216",null,null,"18Q",null,null,null,null,null,"-",null,null,null,null,null,null,null,null,null,null,null,550,550,550,550,null,null,null,null,null,null,null,null,null,866,null,null,null,null,null,null,null,null,null,"","",null,null,null,null,null,null,0,1,{"$f":"+IF(B67=\"x\",\"\",IF(BB67=\"x\",\"\",IF(AQ67=0,\"\",IF(BO67<=TODAY(),\"\",INDEX(Tabelle3[KNUMH],MATCH(F67&BI67&I67&L67&AQ67&BO67,Tabelle3[BEINH]&Tabelle3[ZZFARBIG]&Tabelle3[INHK_KFM]&Tabelle3[AZAFOV]&Tabelle3[TABELLENo]&Tabelle3[DATBI],0))))))","v":"0000223797"},{"$f":"+IF(B67=\"x\",\"\",IF(BB67=\"x\",\"\",IF(AQ67=0,\"\",IF(BO67<=TODAY(),\"\",INDEX(Tabelle3[KNUMH],MATCH(F67&BJ67&I67&L67&AQ67&BO67,Tabelle3[BEINH]&Tabelle3[ZZFARBIG]&Tabelle3[INHK_KFM]&Tabelle3[AZAFOV]&Tabelle3[TABELLENo]&Tabelle3[DATBI],0))))))","v":"0000223806"},{"$f":"+IF(Tabelle415[[#This Row],[KNUMH_0]]=\"\",\"\",+INDEX(Tabelle3[BETRAG],MATCH(BK67,Tabelle3[KNUMH],0)))","v":550},{"$f":"+IF(Tabelle415[[#This Row],[KNUMH_1]]=\"\",\"\",+INDEX(Tabelle3[BETRAG],MATCH(BL67,Tabelle3[KNUMH],0)))","v":550},"9999-12-31",21290]
[null,null,null,null,null,"102Z170MNA",null,null,"KN0216",null,null,"18Q",null,null,null,null,null,"-",null,null,null,null,null,null,null,null,null,null,null,550,550,550,550,null,null,null,null,null,null,null,null,null,866,null,null,null,null,null,null,null,null,null,"","",null,null,null,null,null,null,0,1,{"$f":"+IF(B68=\"x\",\"\",IF(BB68=\"x\",\"\",IF(AQ68=0,\"\",IF(BO68<=TODAY(),\"\",INDEX(Tabelle3[KNUMH],MATCH(F68&BI68&I68&L68&AQ68&BO68,Tabelle3[BEINH]&Tabelle3[ZZFARBIG]&Tabelle3[INHK_KFM]&Tabelle3[AZAFOV]&Tabelle3[TABELLENo]&Tabelle3[DATBI],0))))))","v":"0000223797"},{"$f":"+IF(B68=\"x\",\"\",IF(BB68=\"x\",\"\",IF(AQ68=0,\"\",IF(BO68<=TODAY(),\"\",INDEX(Tabelle3[KNUMH],MATCH(F68&BJ68&I68&L68&AQ68&BO68,Tabelle3[BEINH]&Tabelle3[ZZFARBIG]&Tabelle3[INHK_KFM]&Tabelle3[AZAFOV]&Tabelle3[TABELLENo]&Tabelle3[DATBI],0))))))","v":"0000223806"},{"$f":"+IF(Tabelle415[[#This Row],[KNUMH_0]]=\"\",\"\",+INDEX(Tabelle3[BETRAG],MATCH(BK68,Tabelle3[KNUMH],0)))","v":550},{"$f":"+IF(Tabelle415[[#This Row],[KNUMH_1]]=\"\",\"\",+INDEX(Tabelle3[BETRAG],MATCH(BL68,Tabelle3[KNUMH],0)))","v":550},"9999-12-31",21290]
[null,null,null,null,null,"102Z170MNA",null,null,"KN0216",null,null,"18Q",null,null,null,null,null,"-",null,null,null,null,null,null,null,null,null,null,null,550,550,550,550,null,null,null,null,null,null,null,null,null,866,null,null,null,null,null,null,null,null,null,"","",null,null,null,null,null,null,0,1,{"$f":"+IF(B69=\"x\",\"\",IF(BB69=\"x\",\"\",IF(AQ69=0,\"\",IF(BO69<=TODAY(),\"\",INDEX(Tabelle3[KNUMH],MATCH(F69&BI69&I69&L69&AQ69&BO69,Tabelle3[BEINH]&Tabelle3[ZZFARBIG]&Tabelle3[INHK_KFM]&Tabelle3[AZAFOV]&Tabelle3[TABELLENo]&Tabelle3[DATBI],0))))))","v":"0000223797"},{"$f":"+IF(B69=\"x\",\"\",IF(BB69=\"x\",\"\",IF(AQ69=0,\"\",IF(BO69<=TODAY(),\"\",INDEX(Tabelle3[KNUMH],MATCH(F69&BJ69&I69&L69&AQ69&BO69,Tabelle3[BEINH]&Tabelle3[ZZFARBIG]&Tabelle3[INHK_KFM]&Tabelle3[AZAFOV]&Tabelle3[TABELLENo]&Tabelle3[DATBI],0))))))","v":"0000223806"},{"$f":"+IF(Tabelle415[[#This Row],[KNUMH_0]]=\"\",\"\",+INDEX(Tabelle3[BETRAG],MATCH(BK69,Tabelle3[KNUMH],0)))","v":550},{"$f":"+IF(Tabelle415[[#This Row],[KNUMH_1]]=\"\",\"\",+INDEX(Tabelle3[BETRAG],MATCH(BL69,Tabelle3[KNUMH],0)))","v":550},"9999-12-31",21290]
[null,null,null,null,null,"102Z170MNA",null,null,"KN0216",null,null,"18Q",null,null,null,null,null,"-",null,null,null,null,null,null,null,null,null,null,null,550,550,550,550,null,null,null,null,null,null,null,null,null,866,null,null,null,null,null,null,null,null,null,"","",null,null,null,null,null,null,0,1,{"$f":"+IF(B70=\"x\",\"\",IF(BB70=\"x\",\"\",IF(AQ70=0,\"\",IF(BO70<=TODAY(),\"\",INDEX(Tabelle3[KNUMH],MATCH(F70&BI70&I70&L70&AQ70&BO70,Tabelle3[BEINH]&Tabelle3[ZZFARBIG]&Tabelle3[INHK_KFM]&Tabelle3[AZAFOV]&Tabelle3[TABELLENo]&Tabelle3[DATBI],0))))))","v":"0000223797"},{"$f":"+IF(B70=\"x\",\"\",IF(BB70=\"x\",\"\",IF(AQ70=0,\"\",IF(BO70<=TODAY(),\"\",INDEX(Tabelle3[KNUMH],MATCH(F70&BJ70&I70&L70&AQ70&BO70,Tabelle3[BEINH]&Tabelle3[ZZFARBIG]&Tabelle3[INHK_KFM]&Tabelle3[AZAFOV]&Tabelle3[TABELLENo]&Tabelle3[DATBI],0))))))","v":"0000223806"},{"$f":"+IF(Tabelle415[[#This Row],[KNUMH_0]]=\"\",\"\",+INDEX(Tabelle3[BETRAG],MATCH(BK70,Tabelle3[KNUMH],0)))","v":550},{"$f":"+IF(Tabelle415[[#This Row],[KNUMH_1]]=\"\",\"\",+INDEX(Tabelle3[BETRAG],MATCH(BL70,Tabelle3[KNUMH],0)))","v":550},"9999-12-31",21290]
[null,null,null,null,null,"102Z170MNA",null,null,"KN0216",null,null,"14B",null,null,null,null,null,"-",null,null,null,null,null,null,null,null,null,null,null,1030,1030,1030,1030,null,null,null,null,null,null,null,null,null,866,null,null,null,null,null,null,null,null,null,"","",null,null,null,null,null,null,0,1,{"$f":"+IF(B71=\"x\",\"\",IF(BB71=\"x\",\"\",IF(AQ71=0,\"\",IF(BO71<=TODAY(),\"\",INDEX(Tabelle3[KNUMH],MATCH(F71&BI71&I71&L71&AQ71&BO71,Tabelle3[BEINH]&Tabelle3[ZZFARBIG]&Tabelle3[INHK_KFM]&Tabelle3[AZAFOV]&Tabelle3[TABELLENo]&Tabelle3[DATBI],0))))))","v":"0000223794"},{"$f":"+IF(B71=\"x\",\"\",IF(BB71=\"x\",\"\",IF(AQ71=0,\"\",IF(BO71<=TODAY(),\"\",INDEX(Tabelle3[KNUMH],MATCH(F71&BJ71&I71&L71&AQ71&BO71,Tabelle3[BEINH]&Tabelle3[ZZFARBIG]&Tabelle3[INHK_KFM]&Tabelle3[AZAFOV]&Tabelle3[TABELLENo]&Tabelle3[DATBI],0))))))","v":"0000223803"},{"$f":"+IF(Tabelle415[[#This Row],[KNUMH_0]]=\"\",\"\",+INDEX(Tabelle3[BETRAG],MATCH(BK71,Tabelle3[KNUMH],0)))","v":1030},{"$f":"+IF(Tabelle415[[#This Row],[KNUMH_1]]=\"\",\"\",+INDEX(Tabelle3[BETRAG],MATCH(BL71,Tabelle3[KNUMH],0)))","v":1030},"9999-12-31",21291]
[null,null,null,null,null,"102Z170MNA",null,null,"KN0216",null,null,"14B",null,null,null,null,null,"-",null,null,null,null,null,null,null,null,null,null,null,1030,1030,1030,1030,null,null,null,null,null,null,null,null,null,866,null,null,null,null,null,null,null,null,null,"","",null,null,null,null,null,null,0,1,{"$f":"+IF(B72=\"x\",\"\",IF(BB72=\"x\",\"\",IF(AQ72=0,\"\",IF(BO72<=TODAY(),\"\",INDEX(Tabelle3[KNUMH],MATCH(F72&BI72&I72&L72&AQ72&BO72,Tabelle3[BEINH]&Tabelle3[ZZFARBIG]&Tabelle3[INHK_KFM]&Tabelle3[AZAFOV]&Tabelle3[TABELLENo]&Tabelle3[DATBI],0))))))","v":"0000223794"},{"$f":"+IF(B72=\"x\",\"\",IF(BB72=\"x\",\"\",IF(AQ72=0,\"\",IF(BO72<=TODAY(),\"\",INDEX(Tabelle3[KNUMH],MATCH(F72&BJ72&I72&L72&AQ72&BO72,Tabelle3[BEINH]&Tabelle3[ZZFARBIG]&Tabelle3[INHK_KFM]&Tabelle3[AZAFOV]&Tabelle3[TABELLENo]&Tabelle3[DATBI],0))))))","v":"0000223803"},{"$f":"+IF(Tabelle415[[#This Row],[KNUMH_0]]=\"\",\"\",+INDEX(Tabelle3[BETRAG],MATCH(BK72,Tabelle3[KNUMH],0)))","v":1030},{"$f":"+IF(Tabelle415[[#This Row],[KNUMH_1]]=\"\",\"\",+INDEX(Tabelle3[BETRAG],MATCH(BL72,Tabelle3[KNUMH],0)))","v":1030},"9999-12-31",21291]
[null,null,null,null,null,"102Z170MNA",null,null,"KN0216",null,null,"14B",null,null,null,null,null,"-",null,null,null,null,null,null,null,null,null,null,null,1030,1030,1030,1030,null,null,null,null,null,null,null,null,null,866,null,null,null,null,null,null,null,null,null,"","",null,null,null,null,null,null,0,1,{"$f":"+IF(B73=\"x\",\"\",IF(BB73=\"x\",\"\",IF(AQ73=0,\"\",IF(BO73<=TODAY(),\"\",INDEX(Tabelle3[KNUMH],MATCH(F73&BI73&I73&L73&AQ73&BO73,Tabelle3[BEINH]&Tabelle3[ZZFARBIG]&Tabelle3[INHK_KFM]&Tabelle3[AZAFOV]&Tabelle3[TABELLENo]&Tabelle3[DATBI],0))))))","v":"0000223794"},{"$f":"+IF(B73=\"x\",\"\",IF(BB73=\"x\",\"\",IF(AQ73=0,\"\",IF(BO73<=TODAY(),\"\",INDEX(Tabelle3[KNUMH],MATCH(F73&BJ73&I73&L73&AQ73&BO73,Tabelle3[BEINH]&Tabelle3[ZZFARBIG]&Tabelle3[INHK_KFM]&Tabelle3[AZAFOV]&Tabelle3[TABELLENo]&Tabelle3[DATBI],0))))))","v":"0000223803"},{"$f":"+IF(Tabelle415[[#This Row],[KNUMH_0]]=\"\",\"\",+INDEX(Tabelle3[BETRAG],MATCH(BK73,Tabelle3[KNUMH],0)))","v":1030},{"$f":"+IF(Tabelle415[[#This Row],[KNUMH_1]]=\"\",\"\",+INDEX(Tabelle3[BETRAG],MATCH(BL73,Tabelle3[KNUMH],0)))","v":1030},"9999-12-31",21291]
[null,null,null,null,null,"102Z170MNA",null,null,"KN0216",null,null,"14B",null,null,null,null,null,"-",null,null,null,null,null,null,null,null,null,null,null,1030,1030,1030,1030,null,null,null,null,null,null,null,null,null,866,null,null,null,null,null,null,null,null,null,"","",null,null,null,null,null,null,0,1,{"$f":"+IF(B74=\"x\",\"\",IF(BB74=\"x\",\"\",IF(AQ74=0,\"\",IF(BO74<=TODAY(),\"\",INDEX(Tabelle3[KNUMH],MATCH(F74&BI74&I74&L74&AQ74&BO74,Tabelle3[BEINH]&Tabelle3[ZZFARBIG]&Tabelle3[INHK_KFM]&Tabelle3[AZAFOV]&Tabelle3[TABELLENo]&Tabelle3[DATBI],0))))))","v":"0000223794"},{"$f":"+IF(B74=\"x\",\"\",IF(BB74=\"x\",\"\",IF(AQ74=0,\"\",IF(BO74<=TODAY(),\"\",INDEX(Tabelle3[KNUMH],MATCH(F74&BJ74&I74&L74&AQ74&BO74,Tabelle3[BEINH]&Tabelle3[ZZFARBIG]&Tabelle3[INHK_KFM]&Tabelle3[AZAFOV]&Tabelle3[TABELLENo]&Tabelle3[DATBI],0))))))","v":"0000223803"},{"$f":"+IF(Tabelle415[[#This Row],[KNUMH_0]]=\"\",\"\",+INDEX(Tabelle3[BETRAG],MATCH(BK74,Tabelle3[KNUMH],0)))","v":1030},{"$f":"+IF(Tabelle415[[#This Row],[KNUMH_1]]=\"\",\"\",+INDEX(Tabelle3[BETRAG],MATCH(BL74,Tabelle3[KNUMH],0)))","v":1030},"9999-12-31",21291]
[null,null,null,null,null,"102Z170MNA",null,null,"KN0216",null,null,"14B",null,null,null,null,null,"-",null,null,null,null,null,null,null,null,null,null,null,1030,1030,1030,1030,null,null,null,null,null,null,null,null,null,866,null,null,null,null,null,null,null,null,null,"","",null,null,null,null,null,null,0,1,{"$f":"+IF(B75=\"x\",\"\",IF(BB75=\"x\",\"\",IF(AQ75=0,\"\",IF(BO75<=TODAY(),\"\",INDEX(Tabelle3[KNUMH],MATCH(F75&BI75&I75&L75&AQ75&BO75,Tabelle3[BEINH]&Tabelle3[ZZFARBIG]&Tabelle3[INHK_KFM]&Tabelle3[AZAFOV]&Tabelle3[TABELLENo]&Tabelle3[DATBI],0))))))","v":"0000223794"},{"$f":"+IF(B75=\"x\",\"\",IF(BB75=\"x\",\"\",IF(AQ75=0,\"\",IF(BO75<=TODAY(),\"\",INDEX(Tabelle3[KNUMH],MATCH(F75&BJ75&I75&L75&AQ75&BO75,Tabelle3[BEINH]&Tabelle3[ZZFARBIG]&Tabelle3[INHK_KFM]&Tabelle3[AZAFOV]&Tabelle3[TABELLENo]&Tabelle3[DATBI],0))))))","v":"0000223803"},{"$f":"+IF(Tabelle415[[#This Row],[KNUMH_0]]=\"\",\"\",+INDEX(Tabelle3[BETRAG],MATCH(BK75,Tabelle3[KNUMH],0)))","v":1030},{"$f":"+IF(Tabelle415[[#This Row],[KNUMH_1]]=\"\",\"\",+INDEX(Tabelle3[BETRAG],MATCH(BL75,Tabelle3[KNUMH],0)))","v":1030},"9999-12-31",21291]
[null,null,null,null,null,"102Z170MNA",null,null,"KN0216",null,null,"14B",null,null,null,null,null,"-",null,null,null,null,null,null,null,null,null,null,null,1030,1030,1030,1030,null,null,null,null,null,null,null,null,null,866,null,null,null,null,null,null,null,null,null,"","",null,null,null,null,null,null,0,1,{"$f":"+IF(B76=\"x\",\"\",IF(BB76=\"x\",\"\",IF(AQ76=0,\"\",IF(BO76<=TODAY(),\"\",INDEX(Tabelle3[KNUMH],MATCH(F76&BI76&I76&L76&AQ76&BO76,Tabelle3[BEINH]&Tabelle3[ZZFARBIG]&Tabelle3[INHK_KFM]&Tabelle3[AZAFOV]&Tabelle3[TABELLENo]&Tabelle3[DATBI],0))))))","v":"0000223794"},{"$f":"+IF(B76=\"x\",\"\",IF(BB76=\"x\",\"\",IF(AQ76=0,\"\",IF(BO76<=TODAY(),\"\",INDEX(Tabelle3[KNUMH],MATCH(F76&BJ76&I76&L76&AQ76&BO76,Tabelle3[BEINH]&Tabelle3[ZZFARBIG]&Tabelle3[INHK_KFM]&Tabelle3[AZAFOV]&Tabelle3[TABELLENo]&Tabelle3[DATBI],0))))))","v":"0000223803"},{"$f":"+IF(Tabelle415[[#This Row],[KNUMH_0]]=\"\",\"\",+INDEX(Tabelle3[BETRAG],MATCH(BK76,Tabelle3[KNUMH],0)))","v":1030},{"$f":"+IF(Tabelle415[[#This Row],[KNUMH_1]]=\"\",\"\",+INDEX(Tabelle3[BETRAG],MATCH(BL76,Tabelle3[KNUMH],0)))","v":1030},"9999-12-31",21291]
[null,null,null,null,null,"102Z170MNA",null,null,"KN0216",null,null,"14B",null,null,null,null,null,"-",null,null,null,null,null,null,null,null,null,null,null,1030,1030,1030,1030,null,null,null,null,null,null,null,null,null,866,null,null,null,null,null,null,null,null,null,"","",null,null,null,null,null,null,0,1,{"$f":"+IF(B77=\"x\",\"\",IF(BB77=\"x\",\"\",IF(AQ77=0,\"\",IF(BO77<=TODAY(),\"\",INDEX(Tabelle3[KNUMH],MATCH(F77&BI77&I77&L77&AQ77&BO77,Tabelle3[BEINH]&Tabelle3[ZZFARBIG]&Tabelle3[INHK_KFM]&Tabelle3[AZAFOV]&Tabelle3[TABELLENo]&Tabelle3[DATBI],0))))))","v":"0000223794"},{"$f":"+IF(B77=\"x\",\"\",IF(BB77=\"x\",\"\",IF(AQ77=0,\"\",IF(BO77<=TODAY(),\"\",INDEX(Tabelle3[KNUMH],MATCH(F77&BJ77&I77&L77&AQ77&BO77,Tabelle3[BEINH]&Tabelle3[ZZFARBIG]&Tabelle3[INHK_KFM]&Tabelle3[AZAFOV]&Tabelle3[TABELLENo]&Tabelle3[DATBI],0))))))","v":"0000223803"},{"$f":"+IF(Tabelle415[[#This Row],[KNUMH_0]]=\"\",\"\",+INDEX(Tabelle3[BETRAG],MATCH(BK77,Tabelle3[KNUMH],0)))","v":1030},{"$f":"+IF(Tabelle415[[#This Row],[KNUMH_1]]=\"\",\"\",+INDEX(Tabelle3[BETRAG],MATCH(BL77,Tabelle3[KNUMH],0)))","v":1030},"9999-12-31",21291]
[null,null,null,null,null,"102Z170MNA",null,null,"KN0216",null,null,"14B",null,null,null,null,null,"-",null,null,null,null,null,null,null,null,null,null,null,1030,1030,1030,1030,null,null,null,null,null,null,null,null,null,866,null,null,null,null,null,null,null,null,null,"","",null,null,null,null,null,null,0,1,{"$f":"+IF(B78=\"x\",\"\",IF(BB78=\"x\",\"\",IF(AQ78=0,\"\",IF(BO78<=TODAY(),\"\",INDEX(Tabelle3[KNUMH],MATCH(F78&BI78&I78&L78&AQ78&BO78,Tabelle3[BEINH]&Tabelle3[ZZFARBIG]&Tabelle3[INHK_KFM]&Tabelle3[AZAFOV]&Tabelle3[TABELLENo]&Tabelle3[DATBI],0))))))","v":"0000223794"},{"$f":"+IF(B78=\"x\",\"\",IF(BB78=\"x\",\"\",IF(AQ78=0,\"\",IF(BO78<=TODAY(),\"\",INDEX(Tabelle3[KNUMH],MATCH(F78&BJ78&I78&L78&AQ78&BO78,Tabelle3[BEINH]&Tabelle3[ZZFARBIG]&Tabelle3[INHK_KFM]&Tabelle3[AZAFOV]&Tabelle3[TABELLENo]&Tabelle3[DATBI],0))))))","v":"0000223803"},{"$f":"+IF(Tabelle415[[#This Row],[KNUMH_0]]=\"\",\"\",+INDEX(Tabelle3[BETRAG],MATCH(BK78,Tabelle3[KNUMH],0)))","v":1030},{"$f":"+IF(Tabelle415[[#This Row],[KNUMH_1]]=\"\",\"\",+INDEX(Tabelle3[BETRAG],MATCH(BL78,Tabelle3[KNUMH],0)))","v":1030},"9999-12-31",21291]
[null,null,null,null,null,"102Z170MNA",null,null,"KN0216",null,null,"14B",null,null,null,null,null,"-",null,null,null,null,null,null,null,null,null,null,null,1030,1030,1030,1030,null,null,null,null,null,null,null,null,null,866,null,null,null,null,null,null,null,null,null,"","",null,null,null,null,null,null,0,1,{"$f":"+IF(B79=\"x\",\"\",IF(BB79=\"x\",\"\",IF(AQ79=0,\"\",IF(BO79<=TODAY(),\"\",INDEX(Tabelle3[KNUMH],MATCH(F79&BI79&I79&L79&AQ79&BO79,Tabelle3[BEINH]&Tabelle3[ZZFARBIG]&Tabelle3[INHK_KFM]&Tabelle3[AZAFOV]&Tabelle3[TABELLENo]&Tabelle3[DATBI],0))))))","v":"0000223794"},{"$f":"+IF(B79=\"x\",\"\",IF(BB79=\"x\",\"\",IF(AQ79=0,\"\",IF(BO79<=TODAY(),\"\",INDEX(Tabelle3[KNUMH],MATCH(F79&BJ79&I79&L79&AQ79&BO79,Tabelle3[BEINH]&Tabelle3[ZZFARBIG]&Tabelle3[INHK_KFM]&Tabelle3[AZAFOV]&Tabelle3[TABELLENo]&Tabelle3[DATBI],0))))))","v":"0000223803"},{"$f":"+IF(Tabelle415[[#This Row],[KNUMH_0]]=\"\",\"\",+INDEX(Tabelle3[BETRAG],MATCH(BK79,Tabelle3[KNUMH],0)))","v":1030},{"$f":"+IF(Tabelle415[[#This Row],[KNUMH_1]]=\"\",\"\",+INDEX(Tabelle3[BETRAG],MATCH(BL79,Tabelle3[KNUMH],0)))","v":1030},"9999-12-31",21291]
[null,null,null,null,null,"102Z170MNA",null,null,"KN0216",null,null,"14B",null,null,null,null,null,"-",null,null,null,null,null,null,null,null,null,null,null,1030,1030,1030,1030,null,null,null,null,null,null,null,null,null,866,null,null,null,null,null,null,null,null,null,"","",null,null,null,null,null,null,0,1,{"$f":"+IF(B80=\"x\",\"\",IF(BB80=\"x\",\"\",IF(AQ80=0,\"\",IF(BO80<=TODAY(),\"\",INDEX(Tabelle3[KNUMH],MATCH(F80&BI80&I80&L80&AQ80&BO80,Tabelle3[BEINH]&Tabelle3[ZZFARBIG]&Tabelle3[INHK_KFM]&Tabelle3[AZAFOV]&Tabelle3[TABELLENo]&Tabelle3[DATBI],0))))))","v":"0000223794"},{"$f":"+IF(B80=\"x\",\"\",IF(BB80=\"x\",\"\",IF(AQ80=0,\"\",IF(BO80<=TODAY(),\"\",INDEX(Tabelle3[KNUMH],MATCH(F80&BJ80&I80&L80&AQ80&BO80,Tabelle3[BEINH]&Tabelle3[ZZFARBIG]&Tabelle3[INHK_KFM]&Tabelle3[AZAFOV]&Tabelle3[TABELLENo]&Tabelle3[DATBI],0))))))","v":"0000223803"},{"$f":"+IF(Tabelle415[[#This Row],[KNUMH_0]]=\"\",\"\",+INDEX(Tabelle3[BETRAG],MATCH(BK80,Tabelle3[KNUMH],0)))","v":1030},{"$f":"+IF(Tabelle415[[#This Row],[KNUMH_1]]=\"\",\"\",+INDEX(Tabelle3[BETRAG],MATCH(BL80,Tabelle3[KNUMH],0)))","v":1030},"9999-12-31",21291]
[null,null,null,null,null,"102Z170MNA",null,null,"KN0216",null,null,"14B",null,null,null,null,null,"-",null,null,null,null,null,null,null,null,null,null,null,1030,1030,1030,1030,null,null,null,null,null,null,null,null,null,866,null,null,null,null,null,null,null,null,null,"","",null,null,null,null,null,null,0,1,{"$f":"+IF(B81=\"x\",\"\",IF(BB81=\"x\",\"\",IF(AQ81=0,\"\",IF(BO81<=TODAY(),\"\",INDEX(Tabelle3[KNUMH],MATCH(F81&BI81&I81&L81&AQ81&BO81,Tabelle3[BEINH]&Tabelle3[ZZFARBIG]&Tabelle3[INHK_KFM]&Tabelle3[AZAFOV]&Tabelle3[TABELLENo]&Tabelle3[DATBI],0))))))","v":"0000223794"},{"$f":"+IF(B81=\"x\",\"\",IF(BB81=\"x\",\"\",IF(AQ81=0,\"\",IF(BO81<=TODAY(),\"\",INDEX(Tabelle3[KNUMH],MATCH(F81&BJ81&I81&L81&AQ81&BO81,Tabelle3[BEINH]&Tabelle3[ZZFARBIG]&Tabelle3[INHK_KFM]&Tabelle3[AZAFOV]&Tabelle3[TABELLENo]&Tabelle3[DATBI],0))))))","v":"0000223803"},{"$f":"+IF(Tabelle415[[#This Row],[KNUMH_0]]=\"\",\"\",+INDEX(Tabelle3[BETRAG],MATCH(BK81,Tabelle3[KNUMH],0)))","v":1030},{"$f":"+IF(Tabelle415[[#This Row],[KNUMH_1]]=\"\",\"\",+INDEX(Tabelle3[BETRAG],MATCH(BL81,Tabelle3[KNUMH],0)))","v":1030},"9999-12-31",21291]
[null,null,null,null,null,"102Z170MNA",null,null,"KN0216",null,null,"14B",null,null,null,null,null,"-",null,null,null,null,null,null,null,null,null,null,null,1030,1030,1030,1030,null,null,null,null,null,null,null,null,null,866,null,null,null,null,null,null,null,null,null,"","",null,null,null,null,null,null,0,1,{"$f":"+IF(B82=\"x\",\"\",IF(BB82=\"x\",\"\",IF(AQ82=0,\"\",IF(BO82<=TODAY(),\"\",INDEX(Tabelle3[KNUMH],MATCH(F82&BI82&I82&L82&AQ82&BO82,Tabelle3[BEINH]&Tabelle3[ZZFARBIG]&Tabelle3[INHK_KFM]&Tabelle3[AZAFOV]&Tabelle3[TABELLENo]&Tabelle3[DATBI],0))))))","v":"0000223794"},{"$f":"+IF(B82=\"x\",\"\",IF(BB82=\"x\",\"\",IF(AQ82=0,\"\",IF(BO82<=TODAY(),\"\",INDEX(Tabelle3[KNUMH],MATCH(F82&BJ82&I82&L82&AQ82&BO82,Tabelle3[BEINH]&Tabelle3[ZZFARBIG]&Tabelle3[INHK_KFM]&Tabelle3[AZAFOV]&Tabelle3[TABELLENo]&Tabelle3[DATBI],0))))))","v":"0000223803"},{"$f":"+IF(Tabelle415[[#This Row],[KNUMH_0]]=\"\",\"\",+INDEX(Tabelle3[BETRAG],MATCH(BK82,Tabelle3[KNUMH],0)))","v":1030},{"$f":"+IF(Tabelle415[[#This Row],[KNUMH_1]]=\"\",\"\",+INDEX(Tabelle3[BETRAG],MATCH(BL82,Tabelle3[KNUMH],0)))","v":1030},"9999-12-31",21291]
[null,null,null,null,null,"102Z170MNA",null,null,"KN0216",null,null,"14Q",null,null,null,null,null,"-",null,null,null,null,null,null,null,null,null,null,null,1030,1030,1030,1030,null,null,null,null,null,null,null,null,null,866,null,null,null,null,null,null,null,null,null,"","",null,null,null,null,null,null,0,1,{"$f":"+IF(B83=\"x\",\"\",IF(BB83=\"x\",\"\",IF(AQ83=0,\"\",IF(BO83<=TODAY(),\"\",INDEX(Tabelle3[KNUMH],MATCH(F83&BI83&I83&L83&AQ83&BO83,Tabelle3[BEINH]&Tabelle3[ZZFARBIG]&Tabelle3[INHK_KFM]&Tabelle3[AZAFOV]&Tabelle3[TABELLENo]&Tabelle3[DATBI],0))))))","v":"0000223795"},{"$f":"+IF(B83=\"x\",\"\",IF(BB83=\"x\",\"\",IF(AQ83=0,\"\",IF(BO83<=TODAY(),\"\",INDEX(Tabelle3[KNUMH],MATCH(F83&BJ83&I83&L83&AQ83&BO83,Tabelle3[BEINH]&Tabelle3[ZZFARBIG]&Tabelle3[INHK_KFM]&Tabelle3[AZAFOV]&Tabelle3[TABELLENo]&Tabelle3[DATBI],0))))))","v":"0000223804"},{"$f":"+IF(Tabelle415[[#This Row],[KNUMH_0]]=\"\",\"\",+INDEX(Tabelle3[BETRAG],MATCH(BK83,Tabelle3[KNUMH],0)))","v":1030},{"$f":"+IF(Tabelle415[[#This Row],[KNUMH_1]]=\"\",\"\",+INDEX(Tabelle3[BETRAG],MATCH(BL83,Tabelle3[KNUMH],0)))","v":1030},"9999-12-31",21292]
[null,null,null,null,null,"102Z170MNA",null,null,"KN0216",null,null,"14Q",null,null,null,null,null,"-",null,null,null,null,null,null,null,null,null,null,null,1030,1030,1030,1030,null,null,null,null,null,null,null,null,null,866,null,null,null,null,null,null,null,null,null,"","",null,null,null,null,null,null,0,1,{"$f":"+IF(B84=\"x\",\"\",IF(BB84=\"x\",\"\",IF(AQ84=0,\"\",IF(BO84<=TODAY(),\"\",INDEX(Tabelle3[KNUMH],MATCH(F84&BI84&I84&L84&AQ84&BO84,Tabelle3[BEINH]&Tabelle3[ZZFARBIG]&Tabelle3[INHK_KFM]&Tabelle3[AZAFOV]&Tabelle3[TABELLENo]&Tabelle3[DATBI],0))))))","v":"0000223795"},{"$f":"+IF(B84=\"x\",\"\",IF(BB84=\"x\",\"\",IF(AQ84=0,\"\",IF(BO84<=TODAY(),\"\",INDEX(Tabelle3[KNUMH],MATCH(F84&BJ84&I84&L84&AQ84&BO84,Tabelle3[BEINH]&Tabelle3[ZZFARBIG]&Tabelle3[INHK_KFM]&Tabelle3[AZAFOV]&Tabelle3[TABELLENo]&Tabelle3[DATBI],0))))))","v":"0000223804"},{"$f":"+IF(Tabelle415[[#This Row],[KNUMH_0]]=\"\",\"\",+INDEX(Tabelle3[BETRAG],MATCH(BK84,Tabelle3[KNUMH],0)))","v":1030},{"$f":"+IF(Tabelle415[[#This Row],[KNUMH_1]]=\"\",\"\",+INDEX(Tabelle3[BETRAG],MATCH(BL84,Tabelle3[KNUMH],0)))","v":1030},"9999-12-31",21292]
[null,null,null,null,null,"102Z170MNA",null,null,"KN0216",null,null,"14Q",null,null,null,null,null,"-",null,null,null,null,null,null,null,null,null,null,null,1030,1030,1030,1030,null,null,null,null,null,null,null,null,null,866,null,null,null,null,null,null,null,null,null,"","",null,null,null,null,null,null,0,1,{"$f":"+IF(B85=\"x\",\"\",IF(BB85=\"x\",\"\",IF(AQ85=0,\"\",IF(BO85<=TODAY(),\"\",INDEX(Tabelle3[KNUMH],MATCH(F85&BI85&I85&L85&AQ85&BO85,Tabelle3[BEINH]&Tabelle3[ZZFARBIG]&Tabelle3[INHK_KFM]&Tabelle3[AZAFOV]&Tabelle3[TABELLENo]&Tabelle3[DATBI],0))))))","v":"0000223795"},{"$f":"+IF(B85=\"x\",\"\",IF(BB85=\"x\",\"\",IF(AQ85=0,\"\",IF(BO85<=TODAY(),\"\",INDEX(Tabelle3[KNUMH],MATCH(F85&BJ85&I85&L85&AQ85&BO85,Tabelle3[BEINH]&Tabelle3[ZZFARBIG]&Tabelle3[INHK_KFM]&Tabelle3[AZAFOV]&Tabelle3[TABELLENo]&Tabelle3[DATBI],0))))))","v":"0000223804"},{"$f":"+IF(Tabelle415[[#This Row],[KNUMH_0]]=\"\",\"\",+INDEX(Tabelle3[BETRAG],MATCH(BK85,Tabelle3[KNUMH],0)))","v":1030},{"$f":"+IF(Tabelle415[[#This Row],[KNUMH_1]]=\"\",\"\",+INDEX(Tabelle3[BETRAG],MATCH(BL85,Tabelle3[KNUMH],0)))","v":1030},"9999-12-31",21292]
[null,null,null,null,null,"102Z170MNA",null,null,"KN0216",null,null,"14Q",null,null,null,null,null,"-",null,null,null,null,null,null,null,null,null,null,null,1030,1030,1030,1030,null,null,null,null,null,null,null,null,null,866,null,null,null,null,null,null,null,null,null,"","",null,null,null,null,null,null,0,1,{"$f":"+IF(B86=\"x\",\"\",IF(BB86=\"x\",\"\",IF(AQ86=0,\"\",IF(BO86<=TODAY(),\"\",INDEX(Tabelle3[KNUMH],MATCH(F86&BI86&I86&L86&AQ86&BO86,Tabelle3[BEINH]&Tabelle3[ZZFARBIG]&Tabelle3[INHK_KFM]&Tabelle3[AZAFOV]&Tabelle3[TABELLENo]&Tabelle3[DATBI],0))))))","v":"0000223795"},{"$f":"+IF(B86=\"x\",\"\",IF(BB86=\"x\",\"\",IF(AQ86=0,\"\",IF(BO86<=TODAY(),\"\",INDEX(Tabelle3[KNUMH],MATCH(F86&BJ86&I86&L86&AQ86&BO86,Tabelle3[BEINH]&Tabelle3[ZZFARBIG]&Tabelle3[INHK_KFM]&Tabelle3[AZAFOV]&Tabelle3[TABELLENo]&Tabelle3[DATBI],0))))))","v":"0000223804"},{"$f":"+IF(Tabelle415[[#This Row],[KNUMH_0]]=\"\",\"\",+INDEX(Tabelle3[BETRAG],MATCH(BK86,Tabelle3[KNUMH],0)))","v":1030},{"$f":"+IF(Tabelle415[[#This Row],[KNUMH_1]]=\"\",\"\",+INDEX(Tabelle3[BETRAG],MATCH(BL86,Tabelle3[KNUMH],0)))","v":1030},"9999-12-31",21292]
[null,null,null,null,null,"102Z170MNA",null,null,"KN0216",null,null,"14Q",null,null,null,null,null,"-",null,null,null,null,null,null,null,null,null,null,null,1030,1030,1030,1030,null,null,null,null,null,null,null,null,null,866,null,null,null,null,null,null,null,null,null,"","",null,null,null,null,null,null,0,1,{"$f":"+IF(B87=\"x\",\"\",IF(BB87=\"x\",\"\",IF(AQ87=0,\"\",IF(BO87<=TODAY(),\"\",INDEX(Tabelle3[KNUMH],MATCH(F87&BI87&I87&L87&AQ87&BO87,Tabelle3[BEINH]&Tabelle3[ZZFARBIG]&Tabelle3[INHK_KFM]&Tabelle3[AZAFOV]&Tabelle3[TABELLENo]&Tabelle3[DATBI],0))))))","v":"0000223795"},{"$f":"+IF(B87=\"x\",\"\",IF(BB87=\"x\",\"\",IF(AQ87=0,\"\",IF(BO87<=TODAY(),\"\",INDEX(Tabelle3[KNUMH],MATCH(F87&BJ87&I87&L87&AQ87&BO87,Tabelle3[BEINH]&Tabelle3[ZZFARBIG]&Tabelle3[INHK_KFM]&Tabelle3[AZAFOV]&Tabelle3[TABELLENo]&Tabelle3[DATBI],0))))))","v":"0000223804"},{"$f":"+IF(Tabelle415[[#This Row],[KNUMH_0]]=\"\",\"\",+INDEX(Tabelle3[BETRAG],MATCH(BK87,Tabelle3[KNUMH],0)))","v":1030},{"$f":"+IF(Tabelle415[[#This Row],[KNUMH_1]]=\"\",\"\",+INDEX(Tabelle3[BETRAG],MATCH(BL87,Tabelle3[KNUMH],0)))","v":1030},"9999-12-31",21292]
[null,null,null,null,null,"102Z170MNA",null,null,"KN0216",null,null,"14Q",null,null,null,null,null,"-",null,null,null,null,null,null,null,null,null,null,null,1030,1030,1030,1030,null,null,null,null,null,null,null,null,null,866,null,null,null,null,null,null,null,null,null,"","",null,null,null,null,null,null,0,1,{"$f":"+IF(B88=\"x\",\"\",IF(BB88=\"x\",\"\",IF(AQ88=0,\"\",IF(BO88<=TODAY(),\"\",INDEX(Tabelle3[KNUMH],MATCH(F88&BI88&I88&L88&AQ88&BO88,Tabelle3[BEINH]&Tabelle3[ZZFARBIG]&Tabelle3[INHK_KFM]&Tabelle3[AZAFOV]&Tabelle3[TABELLENo]&Tabelle3[DATBI],0))))))","v":"0000223795"},{"$f":"+IF(B88=\"x\",\"\",IF(BB88=\"x\",\"\",IF(AQ88=0,\"\",IF(BO88<=TODAY(),\"\",INDEX(Tabelle3[KNUMH],MATCH(F88&BJ88&I88&L88&AQ88&BO88,Tabelle3[BEINH]&Tabelle3[ZZFARBIG]&Tabelle3[INHK_KFM]&Tabelle3[AZAFOV]&Tabelle3[TABELLENo]&Tabelle3[DATBI],0))))))","v":"0000223804"},{"$f":"+IF(Tabelle415[[#This Row],[KNUMH_0]]=\"\",\"\",+INDEX(Tabelle3[BETRAG],MATCH(BK88,Tabelle3[KNUMH],0)))","v":1030},{"$f":"+IF(Tabelle415[[#This Row],[KNUMH_1]]=\"\",\"\",+INDEX(Tabelle3[BETRAG],MATCH(BL88,Tabelle3[KNUMH],0)))","v":1030},"9999-12-31",21292]
[null,null,null,null,null,"102Z170MNA",null,null,"KN0216",null,null,"14Q",null,null,null,null,null,"-",null,null,null,null,null,null,null,null,null,null,null,1030,1030,1030,1030,null,null,null,null,null,null,null,null,null,866,null,null,null,null,null,null,null,null,null,"","",null,null,null,null,null,null,0,1,{"$f":"+IF(B89=\"x\",\"\",IF(BB89=\"x\",\"\",IF(AQ89=0,\"\",IF(BO89<=TODAY(),\"\",INDEX(Tabelle3[KNUMH],MATCH(F89&BI89&I89&L89&AQ89&BO89,Tabelle3[BEINH]&Tabelle3[ZZFARBIG]&Tabelle3[INHK_KFM]&Tabelle3[AZAFOV]&Tabelle3[TABELLENo]&Tabelle3[DATBI],0))))))","v":"0000223795"},{"$f":"+IF(B89=\"x\",\"\",IF(BB89=\"x\",\"\",IF(AQ89=0,\"\",IF(BO89<=TODAY(),\"\",INDEX(Tabelle3[KNUMH],MATCH(F89&BJ89&I89&L89&AQ89&BO89,Tabelle3[BEINH]&Tabelle3[ZZFARBIG]&Tabelle3[INHK_KFM]&Tabelle3[AZAFOV]&Tabelle3[TABELLENo]&Tabelle3[DATBI],0))))))","v":"0000223804"},{"$f":"+IF(Tabelle415[[#This Row],[KNUMH_0]]=\"\",\"\",+INDEX(Tabelle3[BETRAG],MATCH(BK89,Tabelle3[KNUMH],0)))","v":1030},{"$f":"+IF(Tabelle415[[#This Row],[KNUMH_1]]=\"\",\"\",+INDEX(Tabelle3[BETRAG],MATCH(BL89,Tabelle3[KNUMH],0)))","v":1030},"9999-12-31",21292]
[null,null,null,null,null,"102Z170MNA",null,null,"KN0216",null,null,"14Q",null,null,null,null,null,"-",null,null,null,null,null,null,null,null,null,null,null,1030,1030,1030,1030,null,null,null,null,null,null,null,null,null,866,null,null,null,null,null,null,null,null,null,"","",null,null,null,null,null,null,0,1,{"$f":"+IF(B90=\"x\",\"\",IF(BB90=\"x\",\"\",IF(AQ90=0,\"\",IF(BO90<=TODAY(),\"\",INDEX(Tabelle3[KNUMH],MATCH(F90&BI90&I90&L90&AQ90&BO90,Tabelle3[BEINH]&Tabelle3[ZZFARBIG]&Tabelle3[INHK_KFM]&Tabelle3[AZAFOV]&Tabelle3[TABELLENo]&Tabelle3[DATBI],0))))))","v":"0000223795"},{"$f":"+IF(B90=\"x\",\"\",IF(BB90=\"x\",\"\",IF(AQ90=0,\"\",IF(BO90<=TODAY(),\"\",INDEX(Tabelle3[KNUMH],MATCH(F90&BJ90&I90&L90&AQ90&BO90,Tabelle3[BEINH]&Tabelle3[ZZFARBIG]&Tabelle3[INHK_KFM]&Tabelle3[AZAFOV]&Tabelle3[TABELLENo]&Tabelle3[DATBI],0))))))","v":"0000223804"},{"$f":"+IF(Tabelle415[[#This Row],[KNUMH_0]]=\"\",\"\",+INDEX(Tabelle3[BETRAG],MATCH(BK90,Tabelle3[KNUMH],0)))","v":1030},{"$f":"+IF(Tabelle415[[#This Row],[KNUMH_1]]=\"\",\"\",+INDEX(Tabelle3[BETRAG],MATCH(BL90,Tabelle3[KNUMH],0)))","v":1030},"9999-12-31",21292]
[null,null,null,null,null,"102Z170MNA",null,null,"KN0216",null,null,"14Q",null,null,null,null,null,"-",null,null,null,null,null,null,null,null,null,null,null,1030,1030,1030,1030,null,null,null,null,null,null,null,null,null,866,null,null,null,null,null,null,null,null,null,"","",null,null,null,null,null,null,0,1,{"$f":"+IF(B91=\"x\",\"\",IF(BB91=\"x\",\"\",IF(AQ91=0,\"\",IF(BO91<=TODAY(),\"\",INDEX(Tabelle3[KNUMH],MATCH(F91&BI91&I91&L91&AQ91&BO91,Tabelle3[BEINH]&Tabelle3[ZZFARBIG]&Tabelle3[INHK_KFM]&Tabelle3[AZAFOV]&Tabelle3[TABELLENo]&Tabelle3[DATBI],0))))))","v":"0000223795"},{"$f":"+IF(B91=\"x\",\"\",IF(BB91=\"x\",\"\",IF(AQ91=0,\"\",IF(BO91<=TODAY(),\"\",INDEX(Tabelle3[KNUMH],MATCH(F91&BJ91&I91&L91&AQ91&BO91,Tabelle3[BEINH]&Tabelle3[ZZFARBIG]&Tabelle3[INHK_KFM]&Tabelle3[AZAFOV]&Tabelle3[TABELLENo]&Tabelle3[DATBI],0))))))","v":"0000223804"},{"$f":"+IF(Tabelle415[[#This Row],[KNUMH_0]]=\"\",\"\",+INDEX(Tabelle3[BETRAG],MATCH(BK91,Tabelle3[KNUMH],0)))","v":1030},{"$f":"+IF(Tabelle415[[#This Row],[KNUMH_1]]=\"\",\"\",+INDEX(Tabelle3[BETRAG],MATCH(BL91,Tabelle3[KNUMH],0)))","v":1030},"9999-12-31",21292]
[null,null,null,null,null,"102Z170MNA",null,null,"KN0216",null,null,"14Q",null,null,null,null,null,"-",null,null,null,null,null,null,null,null,null,null,null,1030,1030,1030,1030,null,null,null,null,null,null,null,null,null,866,null,null,null,null,null,null,null,null,null,"","",null,null,null,null,null,null,0,1,{"$f":"+IF(B92=\"x\",\"\",IF(BB92=\"x\",\"\",IF(AQ92=0,\"\",IF(BO92<=TODAY(),\"\",INDEX(Tabelle3[KNUMH],MATCH(F92&BI92&I92&L92&AQ92&BO92,Tabelle3[BEINH]&Tabelle3[ZZFARBIG]&Tabelle3[INHK_KFM]&Tabelle3[AZAFOV]&Tabelle3[TABELLENo]&Tabelle3[DATBI],0))))))","v":"0000223795"},{"$f":"+IF(B92=\"x\",\"\",IF(BB92=\"x\",\"\",IF(AQ92=0,\"\",IF(BO92<=TODAY(),\"\",INDEX(Tabelle3[KNUMH],MATCH(F92&BJ92&I92&L92&AQ92&BO92,Tabelle3[BEINH]&Tabelle3[ZZFARBIG]&Tabelle3[INHK_KFM]&Tabelle3[AZAFOV]&Tabelle3[TABELLENo]&Tabelle3[DATBI],0))))))","v":"0000223804"},{"$f":"+IF(Tabelle415[[#This Row],[KNUMH_0]]=\"\",\"\",+INDEX(Tabelle3[BETRAG],MATCH(BK92,Tabelle3[KNUMH],0)))","v":1030},{"$f":"+IF(Tabelle415[[#This Row],[KNUMH_1]]=\"\",\"\",+INDEX(Tabelle3[BETRAG],MATCH(BL92,Tabelle3[KNUMH],0)))","v":1030},"9999-12-31",21292]
[null,null,null,null,null,"102Z170MNA",null,null,"KN0216",null,null,"14Q",null,null,null,null,null,"-",null,null,null,null,null,null,null,null,null,null,null,1030,1030,1030,1030,null,null,null,null,null,null,null,null,null,866,null,null,null,null,null,null,null,null,null,"","",null,null,null,null,null,null,0,1,{"$f":"+IF(B93=\"x\",\"\",IF(BB93=\"x\",\"\",IF(AQ93=0,\"\",IF(BO93<=TODAY(),\"\",INDEX(Tabelle3[KNUMH],MATCH(F93&BI93&I93&L93&AQ93&BO93,Tabelle3[BEINH]&Tabelle3[ZZFARBIG]&Tabelle3[INHK_KFM]&Tabelle3[AZAFOV]&Tabelle3[TABELLENo]&Tabelle3[DATBI],0))))))","v":"0000223795"},{"$f":"+IF(B93=\"x\",\"\",IF(BB93=\"x\",\"\",IF(AQ93=0,\"\",IF(BO93<=TODAY(),\"\",INDEX(Tabelle3[KNUMH],MATCH(F93&BJ93&I93&L93&AQ93&BO93,Tabelle3[BEINH]&Tabelle3[ZZFARBIG]&Tabelle3[INHK_KFM]&Tabelle3[AZAFOV]&Tabelle3[TABELLENo]&Tabelle3[DATBI],0))))))","v":"0000223804"},{"$f":"+IF(Tabelle415[[#This Row],[KNUMH_0]]=\"\",\"\",+INDEX(Tabelle3[BETRAG],MATCH(BK93,Tabelle3[KNUMH],0)))","v":1030},{"$f":"+IF(Tabelle415[[#This Row],[KNUMH_1]]=\"\",\"\",+INDEX(Tabelle3[BETRAG],MATCH(BL93,Tabelle3[KNUMH],0)))","v":1030},"9999-12-31",21292]
[null,null,null,null,null,"102Z170MNA",null,null,"KN0216",null,null,"14Q",null,null,null,null,null,"-",null,null,null,null,null,null,null,null,null,null,null,1030,1030,1030,1030,null,null,null,null,null,null,null,null,null,866,null,null,null,null,null,null,null,null,null,"","",null,null,null,null,null,null,0,1,{"$f":"+IF(B94=\"x\",\"\",IF(BB94=\"x\",\"\",IF(AQ94=0,\"\",IF(BO94<=TODAY(),\"\",INDEX(Tabelle3[KNUMH],MATCH(F94&BI94&I94&L94&AQ94&BO94,Tabelle3[BEINH]&Tabelle3[ZZFARBIG]&Tabelle3[INHK_KFM]&Tabelle3[AZAFOV]&Tabelle3[TABELLENo]&Tabelle3[DATBI],0))))))","v":"0000223795"},{"$f":"+IF(B94=\"x\",\"\",IF(BB94=\"x\",\"\",IF(AQ94=0,\"\",IF(BO94<=TODAY(),\"\",INDEX(Tabelle3[KNUMH],MATCH(F94&BJ94&I94&L94&AQ94&BO94,Tabelle3[BEINH]&Tabelle3[ZZFARBIG]&Tabelle3[INHK_KFM]&Tabelle3[AZAFOV]&Tabelle3[TABELLENo]&Tabelle3[DATBI],0))))))","v":"0000223804"},{"$f":"+IF(Tabelle415[[#This Row],[KNUMH_0]]=\"\",\"\",+INDEX(Tabelle3[BETRAG],MATCH(BK94,Tabelle3[KNUMH],0)))","v":1030},{"$f":"+IF(Tabelle415[[#This Row],[KNUMH_1]]=\"\",\"\",+INDEX(Tabelle3[BETRAG],MATCH(BL94,Tabelle3[KNUMH],0)))","v":1030},"9999-12-31",21292]
[null,null,null,null,null,"102Z170MNA",null,null,"KN0216",null,null,"12Q",null,null,null,null,null,"-",null,null,null,null,null,null,null,null,null,null,null,1950,1950,1950,1950,null,null,null,null,null,null,null,null,null,866,null,null,null,null,null,null,null,null,null,"","",null,null,null,null,null,null,0,1,{"$f":"+IF(B95=\"x\",\"\",IF(BB95=\"x\",\"\",IF(AQ95=0,\"\",IF(BO95<=TODAY(),\"\",INDEX(Tabelle3[KNUMH],MATCH(F95&BI95&I95&L95&AQ95&BO95,Tabelle3[BEINH]&Tabelle3[ZZFARBIG]&Tabelle3[INHK_KFM]&Tabelle3[AZAFOV]&Tabelle3[TABELLENo]&Tabelle3[DATBI],0))))))","v":"0000223792"},{"$f":"+IF(B95=\"x\",\"\",IF(BB95=\"x\",\"\",IF(AQ95=0,\"\",IF(BO95<=TODAY(),\"\",INDEX(Tabelle3[KNUMH],MATCH(F95&BJ95&I95&L95&AQ95&BO95,Tabelle3[BEINH]&Tabelle3[ZZFARBIG]&Tabelle3[INHK_KFM]&Tabelle3[AZAFOV]&Tabelle3[TABELLENo]&Tabelle3[DATBI],0))))))","v":"0000223801"},{"$f":"+IF(Tabelle415[[#This Row],[KNUMH_0]]=\"\",\"\",+INDEX(Tabelle3[BETRAG],MATCH(BK95,Tabelle3[KNUMH],0)))","v":1950},{"$f":"+IF(Tabelle415[[#This Row],[KNUMH_1]]=\"\",\"\",+INDEX(Tabelle3[BETRAG],MATCH(BL95,Tabelle3[KNUMH],0)))","v":1950},"9999-12-31",21293]
[null,null,null,null,null,"102Z170MNA",null,null,"KN0216",null,null,"12Q",null,null,null,null,null,"-",null,null,null,null,null,null,null,null,null,null,null,1950,1950,1950,1950,null,null,null,null,null,null,null,null,null,866,null,null,null,null,null,null,null,null,null,"","",null,null,null,null,null,null,0,1,{"$f":"+IF(B96=\"x\",\"\",IF(BB96=\"x\",\"\",IF(AQ96=0,\"\",IF(BO96<=TODAY(),\"\",INDEX(Tabelle3[KNUMH],MATCH(F96&BI96&I96&L96&AQ96&BO96,Tabelle3[BEINH]&Tabelle3[ZZFARBIG]&Tabelle3[INHK_KFM]&Tabelle3[AZAFOV]&Tabelle3[TABELLENo]&Tabelle3[DATBI],0))))))","v":"0000223792"},{"$f":"+IF(B96=\"x\",\"\",IF(BB96=\"x\",\"\",IF(AQ96=0,\"\",IF(BO96<=TODAY(),\"\",INDEX(Tabelle3[KNUMH],MATCH(F96&BJ96&I96&L96&AQ96&BO96,Tabelle3[BEINH]&Tabelle3[ZZFARBIG]&Tabelle3[INHK_KFM]&Tabelle3[AZAFOV]&Tabelle3[TABELLENo]&Tabelle3[DATBI],0))))))","v":"0000223801"},{"$f":"+IF(Tabelle415[[#This Row],[KNUMH_0]]=\"\",\"\",+INDEX(Tabelle3[BETRAG],MATCH(BK96,Tabelle3[KNUMH],0)))","v":1950},{"$f":"+IF(Tabelle415[[#This Row],[KNUMH_1]]=\"\",\"\",+INDEX(Tabelle3[BETRAG],MATCH(BL96,Tabelle3[KNUMH],0)))","v":1950},"9999-12-31",21293]
[null,null,null,null,null,"102Z170MNA",null,null,"KN0216",null,null,"12Q",null,null,null,null,null,"-",null,null,null,null,null,null,null,null,null,null,null,1950,1950,1950,1950,null,null,null,null,null,null,null,null,null,866,null,null,null,null,null,null,null,null,null,"","",null,null,null,null,null,null,0,1,{"$f":"+IF(B97=\"x\",\"\",IF(BB97=\"x\",\"\",IF(AQ97=0,\"\",IF(BO97<=TODAY(),\"\",INDEX(Tabelle3[KNUMH],MATCH(F97&BI97&I97&L97&AQ97&BO97,Tabelle3[BEINH]&Tabelle3[ZZFARBIG]&Tabelle3[INHK_KFM]&Tabelle3[AZAFOV]&Tabelle3[TABELLENo]&Tabelle3[DATBI],0))))))","v":"0000223792"},{"$f":"+IF(B97=\"x\",\"\",IF(BB97=\"x\",\"\",IF(AQ97=0,\"\",IF(BO97<=TODAY(),\"\",INDEX(Tabelle3[KNUMH],MATCH(F97&BJ97&I97&L97&AQ97&BO97,Tabelle3[BEINH]&Tabelle3[ZZFARBIG]&Tabelle3[INHK_KFM]&Tabelle3[AZAFOV]&Tabelle3[TABELLENo]&Tabelle3[DATBI],0))))))","v":"0000223801"},{"$f":"+IF(Tabelle415[[#This Row],[KNUMH_0]]=\"\",\"\",+INDEX(Tabelle3[BETRAG],MATCH(BK97,Tabelle3[KNUMH],0)))","v":1950},{"$f":"+IF(Tabelle415[[#This Row],[KNUMH_1]]=\"\",\"\",+INDEX(Tabelle3[BETRAG],MATCH(BL97,Tabelle3[KNUMH],0)))","v":1950},"9999-12-31",21293]
[null,null,null,null,null,"102Z170MNA",null,null,"KN0216",null,null,"12Q",null,null,null,null,null,"-",null,null,null,null,null,null,null,null,null,null,null,1950,1950,1950,1950,null,null,null,null,null,null,null,null,null,866,null,null,null,null,null,null,null,null,null,"","",null,null,null,null,null,null,0,1,{"$f":"+IF(B98=\"x\",\"\",IF(BB98=\"x\",\"\",IF(AQ98=0,\"\",IF(BO98<=TODAY(),\"\",INDEX(Tabelle3[KNUMH],MATCH(F98&BI98&I98&L98&AQ98&BO98,Tabelle3[BEINH]&Tabelle3[ZZFARBIG]&Tabelle3[INHK_KFM]&Tabelle3[AZAFOV]&Tabelle3[TABELLENo]&Tabelle3[DATBI],0))))))","v":"0000223792"},{"$f":"+IF(B98=\"x\",\"\",IF(BB98=\"x\",\"\",IF(AQ98=0,\"\",IF(BO98<=TODAY(),\"\",INDEX(Tabelle3[KNUMH],MATCH(F98&BJ98&I98&L98&AQ98&BO98,Tabelle3[BEINH]&Tabelle3[ZZFARBIG]&Tabelle3[INHK_KFM]&Tabelle3[AZAFOV]&Tabelle3[TABELLENo]&Tabelle3[DATBI],0))))))","v":"0000223801"},{"$f":"+IF(Tabelle415[[#This Row],[KNUMH_0]]=\"\",\"\",+INDEX(Tabelle3[BETRAG],MATCH(BK98,Tabelle3[KNUMH],0)))","v":1950},{"$f":"+IF(Tabelle415[[#This Row],[KNUMH_1]]=\"\",\"\",+INDEX(Tabelle3[BETRAG],MATCH(BL98,Tabelle3[KNUMH],0)))","v":1950},"9999-12-31",21293]
[null,null,null,null,null,"102Z170MNA",null,null,"KN0216",null,null,"12Q",null,null,null,null,null,"-",null,null,null,null,null,null,null,null,null,null,null,1950,1950,1950,1950,null,null,null,null,null,null,null,null,null,866,null,null,null,null,null,null,null,null,null,"","",null,null,null,null,null,null,0,1,{"$f":"+IF(B99=\"x\",\"\",IF(BB99=\"x\",\"\",IF(AQ99=0,\"\",IF(BO99<=TODAY(),\"\",INDEX(Tabelle3[KNUMH],MATCH(F99&BI99&I99&L99&AQ99&BO99,Tabelle3[BEINH]&Tabelle3[ZZFARBIG]&Tabelle3[INHK_KFM]&Tabelle3[AZAFOV]&Tabelle3[TABELLENo]&Tabelle3[DATBI],0))))))","v":"0000223792"},{"$f":"+IF(B99=\"x\",\"\",IF(BB99=\"x\",\"\",IF(AQ99=0,\"\",IF(BO99<=TODAY(),\"\",INDEX(Tabelle3[KNUMH],MATCH(F99&BJ99&I99&L99&AQ99&BO99,Tabelle3[BEINH]&Tabelle3[ZZFARBIG]&Tabelle3[INHK_KFM]&Tabelle3[AZAFOV]&Tabelle3[TABELLENo]&Tabelle3[DATBI],0))))))","v":"0000223801"},{"$f":"+IF(Tabelle415[[#This Row],[KNUMH_0]]=\"\",\"\",+INDEX(Tabelle3[BETRAG],MATCH(BK99,Tabelle3[KNUMH],0)))","v":1950},{"$f":"+IF(Tabelle415[[#This Row],[KNUMH_1]]=\"\",\"\",+INDEX(Tabelle3[BETRAG],MATCH(BL99,Tabelle3[KNUMH],0)))","v":1950},"9999-12-31",21293]
[null,null,null,null,null,"102Z170MNA",null,null,"KN0216",null,null,"12Q",null,null,null,null,null,"-",null,null,null,null,null,null,null,null,null,null,null,1950,1950,1950,1950,null,null,null,null,null,null,null,null,null,866,null,null,null,null,null,null,null,null,null,"","",null,null,null,null,null,null,0,1,{"$f":"+IF(B100=\"x\",\"\",IF(BB100=\"x\",\"\",IF(AQ100=0,\"\",IF(BO100<=TODAY(),\"\",INDEX(Tabelle3[KNUMH],MATCH(F100&BI100&I100&L100&AQ100&BO100,Tabelle3[BEINH]&Tabelle3[ZZFARBIG]&Tabelle3[INHK_KFM]&Tabelle3[AZAFOV]&Tabelle3[TABELLENo]&Tabelle3[DATBI],0))))))","v":"0000223792"},{"$f":"+IF(B100=\"x\",\"\",IF(BB100=\"x\",\"\",IF(AQ100=0,\"\",IF(BO100<=TODAY(),\"\",INDEX(Tabelle3[KNUMH],MATCH(F100&BJ100&I100&L100&AQ100&BO100,Tabelle3[BEINH]&Tabelle3[ZZFARBIG]&Tabelle3[INHK_KFM]&Tabelle3[AZAFOV]&Tabelle3[TABELLENo]&Tabelle3[DATBI],0))))))","v":"0000223801"},{"$f":"+IF(Tabelle415[[#This Row],[KNUMH_0]]=\"\",\"\",+INDEX(Tabelle3[BETRAG],MATCH(BK100,Tabelle3[KNUMH],0)))","v":1950},{"$f":"+IF(Tabelle415[[#This Row],[KNUMH_1]]=\"\",\"\",+INDEX(Tabelle3[BETRAG],MATCH(BL100,Tabelle3[KNUMH],0)))","v":1950},"9999-12-31",21293]
[null,null,null,null,null,"102Z170MNA",null,null,"KN0216",null,null,"12Q",null,null,null,null,null,"-",null,null,null,null,null,null,null,null,null,null,null,1950,1950,1950,1950,null,null,null,null,null,null,null,null,null,866,null,null,null,null,null,null,null,null,null,"","",null,null,null,null,null,null,0,1,{"$f":"+IF(B101=\"x\",\"\",IF(BB101=\"x\",\"\",IF(AQ101=0,\"\",IF(BO101<=TODAY(),\"\",INDEX(Tabelle3[KNUMH],MATCH(F101&BI101&I101&L101&AQ101&BO101,Tabelle3[BEINH]&Tabelle3[ZZFARBIG]&Tabelle3[INHK_KFM]&Tabelle3[AZAFOV]&Tabelle3[TABELLENo]&Tabelle3[DATBI],0))))))","v":"0000223792"},{"$f":"+IF(B101=\"x\",\"\",IF(BB101=\"x\",\"\",IF(AQ101=0,\"\",IF(BO101<=TODAY(),\"\",INDEX(Tabelle3[KNUMH],MATCH(F101&BJ101&I101&L101&AQ101&BO101,Tabelle3[BEINH]&Tabelle3[ZZFARBIG]&Tabelle3[INHK_KFM]&Tabelle3[AZAFOV]&Tabelle3[TABELLENo]&Tabelle3[DATBI],0))))))","v":"0000223801"},{"$f":"+IF(Tabelle415[[#This Row],[KNUMH_0]]=\"\",\"\",+INDEX(Tabelle3[BETRAG],MATCH(BK101,Tabelle3[KNUMH],0)))","v":1950},{"$f":"+IF(Tabelle415[[#This Row],[KNUMH_1]]=\"\",\"\",+INDEX(Tabelle3[BETRAG],MATCH(BL101,Tabelle3[KNUMH],0)))","v":1950},"9999-12-31",21293]
[null,null,null,null,null,"102Z170MNA",null,null,"KN0216",null,null,"12Q",null,null,null,null,null,"-",null,null,null,null,null,null,null,null,null,null,null,1950,1950,1950,1950,null,null,null,null,null,null,null,null,null,866,null,null,null,null,null,null,null,null,null,"","",null,null,null,null,null,null,0,1,{"$f":"+IF(B102=\"x\",\"\",IF(BB102=\"x\",\"\",IF(AQ102=0,\"\",IF(BO102<=TODAY(),\"\",INDEX(Tabelle3[KNUMH],MATCH(F102&BI102&I102&L102&AQ102&BO102,Tabelle3[BEINH]&Tabelle3[ZZFARBIG]&Tabelle3[INHK_KFM]&Tabelle3[AZAFOV]&Tabelle3[TABELLENo]&Tabelle3[DATBI],0))))))","v":"0000223792"},{"$f":"+IF(B102=\"x\",\"\",IF(BB102=\"x\",\"\",IF(AQ102=0,\"\",IF(BO102<=TODAY(),\"\",INDEX(Tabelle3[KNUMH],MATCH(F102&BJ102&I102&L102&AQ102&BO102,Tabelle3[BEINH]&Tabelle3[ZZFARBIG]&Tabelle3[INHK_KFM]&Tabelle3[AZAFOV]&Tabelle3[TABELLENo]&Tabelle3[DATBI],0))))))","v":"0000223801"},{"$f":"+IF(Tabelle415[[#This Row],[KNUMH_0]]=\"\",\"\",+INDEX(Tabelle3[BETRAG],MATCH(BK102,Tabelle3[KNUMH],0)))","v":1950},{"$f":"+IF(Tabelle415[[#This Row],[KNUMH_1]]=\"\",\"\",+INDEX(Tabelle3[BETRAG],MATCH(BL102,Tabelle3[KNUMH],0)))","v":1950},"9999-12-31",21293]
[null,null,null,null,null,"102Z170MNA",null,null,"KN0216",null,null,"12Q",null,null,null,null,null,"-",null,null,null,null,null,null,null,null,null,null,null,1950,1950,1950,1950,null,null,null,null,null,null,null,null,null,866,null,null,null,null,null,null,null,null,null,"","",null,null,null,null,null,null,0,1,{"$f":"+IF(B103=\"x\",\"\",IF(BB103=\"x\",\"\",IF(AQ103=0,\"\",IF(BO103<=TODAY(),\"\",INDEX(Tabelle3[KNUMH],MATCH(F103&BI103&I103&L103&AQ103&BO103,Tabelle3[BEINH]&Tabelle3[ZZFARBIG]&Tabelle3[INHK_KFM]&Tabelle3[AZAFOV]&Tabelle3[TABELLENo]&Tabelle3[DATBI],0))))))","v":"0000223792"},{"$f":"+IF(B103=\"x\",\"\",IF(BB103=\"x\",\"\",IF(AQ103=0,\"\",IF(BO103<=TODAY(),\"\",INDEX(Tabelle3[KNUMH],MATCH(F103&BJ103&I103&L103&AQ103&BO103,Tabelle3[BEINH]&Tabelle3[ZZFARBIG]&Tabelle3[INHK_KFM]&Tabelle3[AZAFOV]&Tabelle3[TABELLENo]&Tabelle3[DATBI],0))))))","v":"0000223801"},{"$f":"+IF(Tabelle415[[#This Row],[KNUMH_0]]=\"\",\"\",+INDEX(Tabelle3[BETRAG],MATCH(BK103,Tabelle3[KNUMH],0)))","v":1950},{"$f":"+IF(Tabelle415[[#This Row],[KNUMH_1]]=\"\",\"\",+INDEX(Tabelle3[BETRAG],MATCH(BL103,Tabelle3[KNUMH],0)))","v":1950},"9999-12-31",21293]
[null,null,null,null,null,"102Z170MNA",null,null,"KN0216",null,null,"12Q",null,null,null,null,null,"-",null,null,null,null,null,null,null,null,null,null,null,1950,1950,1950,1950,null,null,null,null,null,null,null,null,null,866,null,null,null,null,null,null,null,null,null,"","",null,null,null,null,null,null,0,1,{"$f":"+IF(B104=\"x\",\"\",IF(BB104=\"x\",\"\",IF(AQ104=0,\"\",IF(BO104<=TODAY(),\"\",INDEX(Tabelle3[KNUMH],MATCH(F104&BI104&I104&L104&AQ104&BO104,Tabelle3[BEINH]&Tabelle3[ZZFARBIG]&Tabelle3[INHK_KFM]&Tabelle3[AZAFOV]&Tabelle3[TABELLENo]&Tabelle3[DATBI],0))))))","v":"0000223792"},{"$f":"+IF(B104=\"x\",\"\",IF(BB104=\"x\",\"\",IF(AQ104=0,\"\",IF(BO104<=TODAY(),\"\",INDEX(Tabelle3[KNUMH],MATCH(F104&BJ104&I104&L104&AQ104&BO104,Tabelle3[BEINH]&Tabelle3[ZZFARBIG]&Tabelle3[INHK_KFM]&Tabelle3[AZAFOV]&Tabelle3[TABELLENo]&Tabelle3[DATBI],0))))))","v":"0000223801"},{"$f":"+IF(Tabelle415[[#This Row],[KNUMH_0]]=\"\",\"\",+INDEX(Tabelle3[BETRAG],MATCH(BK104,Tabelle3[KNUMH],0)))","v":1950},{"$f":"+IF(Tabelle415[[#This Row],[KNUMH_1]]=\"\",\"\",+INDEX(Tabelle3[BETRAG],MATCH(BL104,Tabelle3[KNUMH],0)))","v":1950},"9999-12-31",21293]
[null,null,null,null,null,"102Z170MNA",null,null,"KN0216",null,null,"12Q",null,null,null,null,null,"-",null,null,null,null,null,null,null,null,null,null,null,1950,1950,1950,1950,null,null,null,null,null,null,null,null,null,866,null,null,null,null,null,null,null,null,null,"","",null,null,null,null,null,null,0,1,{"$f":"+IF(B105=\"x\",\"\",IF(BB105=\"x\",\"\",IF(AQ105=0,\"\",IF(BO105<=TODAY(),\"\",INDEX(Tabelle3[KNUMH],MATCH(F105&BI105&I105&L105&AQ105&BO105,Tabelle3[BEINH]&Tabelle3[ZZFARBIG]&Tabelle3[INHK_KFM]&Tabelle3[AZAFOV]&Tabelle3[TABELLENo]&Tabelle3[DATBI],0))))))","v":"0000223792"},{"$f":"+IF(B105=\"x\",\"\",IF(BB105=\"x\",\"\",IF(AQ105=0,\"\",IF(BO105<=TODAY(),\"\",INDEX(Tabelle3[KNUMH],MATCH(F105&BJ105&I105&L105&AQ105&BO105,Tabelle3[BEINH]&Tabelle3[ZZFARBIG]&Tabelle3[INHK_KFM]&Tabelle3[AZAFOV]&Tabelle3[TABELLENo]&Tabelle3[DATBI],0))))))","v":"0000223801"},{"$f":"+IF(Tabelle415[[#This Row],[KNUMH_0]]=\"\",\"\",+INDEX(Tabelle3[BETRAG],MATCH(BK105,Tabelle3[KNUMH],0)))","v":1950},{"$f":"+IF(Tabelle415[[#This Row],[KNUMH_1]]=\"\",\"\",+INDEX(Tabelle3[BETRAG],MATCH(BL105,Tabelle3[KNUMH],0)))","v":1950},"9999-12-31",21293]
[null,null,null,null,null,"102Z170MNA",null,null,"KN0216",null,null,"12Q",null,null,null,null,null,"-",null,null,null,null,null,null,null,null,null,null,null,1950,1950,1950,1950,null,null,null,null,null,null,null,null,null,866,null,null,null,null,null,null,null,null,null,"","",null,null,null,null,null,null,0,1,{"$f":"+IF(B106=\"x\",\"\",IF(BB106=\"x\",\"\",IF(AQ106=0,\"\",IF(BO106<=TODAY(),\"\",INDEX(Tabelle3[KNUMH],MATCH(F106&BI106&I106&L106&AQ106&BO106,Tabelle3[BEINH]&Tabelle3[ZZFARBIG]&Tabelle3[INHK_KFM]&Tabelle3[AZAFOV]&Tabelle3[TABELLENo]&Tabelle3[DATBI],0))))))","v":"0000223792"},{"$f":"+IF(B106=\"x\",\"\",IF(BB106=\"x\",\"\",IF(AQ106=0,\"\",IF(BO106<=TODAY(),\"\",INDEX(Tabelle3[KNUMH],MATCH(F106&BJ106&I106&L106&AQ106&BO106,Tabelle3[BEINH]&Tabelle3[ZZFARBIG]&Tabelle3[INHK_KFM]&Tabelle3[AZAFOV]&Tabelle3[TABELLENo]&Tabelle3[DATBI],0))))))","v":"0000223801"},{"$f":"+IF(Tabelle415[[#This Row],[KNUMH_0]]=\"\",\"\",+INDEX(Tabelle3[BETRAG],MATCH(BK106,Tabelle3[KNUMH],0)))","v":1950},{"$f":"+IF(Tabelle415[[#This Row],[KNUMH_1]]=\"\",\"\",+INDEX(Tabelle3[BETRAG],MATCH(BL106,Tabelle3[KNUMH],0)))","v":1950},"9999-12-31",21293]
[null,null,null,null,null,"102Z170MNA",null,null,"KN0216",null,null,"132Q",null,null,null,null,null,"-",null,null,null,null,null,null,null,null,null,null,null,160,160,160,160,null,null,null,null,null,null,null,null,null,866,null,null,null,null,null,null,null,null,null,"","",null,null,null,null,null,null,0,1,{"$f":"+IF(B107=\"x\",\"\",IF(BB107=\"x\",\"\",IF(AQ107=0,\"\",IF(BO107<=TODAY(),\"\",INDEX(Tabelle3[KNUMH],MATCH(F107&BI107&I107&L107&AQ107&BO107,Tabelle3[BEINH]&Tabelle3[ZZFARBIG]&Tabelle3[INHK_KFM]&Tabelle3[AZAFOV]&Tabelle3[TABELLENo]&Tabelle3[DATBI],0))))))","v":"0000223793"},{"$f":"+IF(B107=\"x\",\"\",IF(BB107=\"x\",\"\",IF(AQ107=0,\"\",IF(BO107<=TODAY(),\"\",INDEX(Tabelle3[KNUMH],MATCH(F107&BJ107&I107&L107&AQ107&BO107,Tabelle3[BEINH]&Tabelle3[ZZFARBIG]&Tabelle3[INHK_KFM]&Tabelle3[AZAFOV]&Tabelle3[TABELLENo]&Tabelle3[DATBI],0))))))","v":"0000223802"},{"$f":"+IF(Tabelle415[[#This Row],[KNUMH_0]]=\"\",\"\",+INDEX(Tabelle3[BETRAG],MATCH(BK107,Tabelle3[KNUMH],0)))","v":160},{"$f":"+IF(Tabelle415[[#This Row],[KNUMH_1]]=\"\",\"\",+INDEX(Tabelle3[BETRAG],MATCH(BL107,Tabelle3[KNUMH],0)))","v":160},"9999-12-31",21294]
[null,null,null,null,null,"102Z170MNA",null,null,"KN0216",null,null,"132Q",null,null,null,null,null,"-",null,null,null,null,null,null,null,null,null,null,null,160,160,160,160,null,null,null,null,null,null,null,null,null,866,null,null,null,null,null,null,null,null,null,"","",null,null,null,null,null,null,0,1,{"$f":"+IF(B108=\"x\",\"\",IF(BB108=\"x\",\"\",IF(AQ108=0,\"\",IF(BO108<=TODAY(),\"\",INDEX(Tabelle3[KNUMH],MATCH(F108&BI108&I108&L108&AQ108&BO108,Tabelle3[BEINH]&Tabelle3[ZZFARBIG]&Tabelle3[INHK_KFM]&Tabelle3[AZAFOV]&Tabelle3[TABELLENo]&Tabelle3[DATBI],0))))))","v":"0000223793"},{"$f":"+IF(B108=\"x\",\"\",IF(BB108=\"x\",\"\",IF(AQ108=0,\"\",IF(BO108<=TODAY(),\"\",INDEX(Tabelle3[KNUMH],MATCH(F108&BJ108&I108&L108&AQ108&BO108,Tabelle3[BEINH]&Tabelle3[ZZFARBIG]&Tabelle3[INHK_KFM]&Tabelle3[AZAFOV]&Tabelle3[TABELLENo]&Tabelle3[DATBI],0))))))","v":"0000223802"},{"$f":"+IF(Tabelle415[[#This Row],[KNUMH_0]]=\"\",\"\",+INDEX(Tabelle3[BETRAG],MATCH(BK108,Tabelle3[KNUMH],0)))","v":160},{"$f":"+IF(Tabelle415[[#This Row],[KNUMH_1]]=\"\",\"\",+INDEX(Tabelle3[BETRAG],MATCH(BL108,Tabelle3[KNUMH],0)))","v":160},"9999-12-31",21294]
[null,null,null,null,null,"102Z170MNA",null,null,"KN0216",null,null,"132Q",null,null,null,null,null,"-",null,null,null,null,null,null,null,null,null,null,null,160,160,160,160,null,null,null,null,null,null,null,null,null,866,null,null,null,null,null,null,null,null,null,"","",null,null,null,null,null,null,0,1,{"$f":"+IF(B109=\"x\",\"\",IF(BB109=\"x\",\"\",IF(AQ109=0,\"\",IF(BO109<=TODAY(),\"\",INDEX(Tabelle3[KNUMH],MATCH(F109&BI109&I109&L109&AQ109&BO109,Tabelle3[BEINH]&Tabelle3[ZZFARBIG]&Tabelle3[INHK_KFM]&Tabelle3[AZAFOV]&Tabelle3[TABELLENo]&Tabelle3[DATBI],0))))))","v":"0000223793"},{"$f":"+IF(B109=\"x\",\"\",IF(BB109=\"x\",\"\",IF(AQ109=0,\"\",IF(BO109<=TODAY(),\"\",INDEX(Tabelle3[KNUMH],MATCH(F109&BJ109&I109&L109&AQ109&BO109,Tabelle3[BEINH]&Tabelle3[ZZFARBIG]&Tabelle3[INHK_KFM]&Tabelle3[AZAFOV]&Tabelle3[TABELLENo]&Tabelle3[DATBI],0))))))","v":"0000223802"},{"$f":"+IF(Tabelle415[[#This Row],[KNUMH_0]]=\"\",\"\",+INDEX(Tabelle3[BETRAG],MATCH(BK109,Tabelle3[KNUMH],0)))","v":160},{"$f":"+IF(Tabelle415[[#This Row],[KNUMH_1]]=\"\",\"\",+INDEX(Tabelle3[BETRAG],MATCH(BL109,Tabelle3[KNUMH],0)))","v":160},"9999-12-31",21294]
[null,null,null,null,null,"102Z170MNA",null,null,"KN0216",null,null,"132Q",null,null,null,null,null,"-",null,null,null,null,null,null,null,null,null,null,null,160,160,160,160,null,null,null,null,null,null,null,null,null,866,null,null,null,null,null,null,null,null,null,"","",null,null,null,null,null,null,0,1,{"$f":"+IF(B110=\"x\",\"\",IF(BB110=\"x\",\"\",IF(AQ110=0,\"\",IF(BO110<=TODAY(),\"\",INDEX(Tabelle3[KNUMH],MATCH(F110&BI110&I110&L110&AQ110&BO110,Tabelle3[BEINH]&Tabelle3[ZZFARBIG]&Tabelle3[INHK_KFM]&Tabelle3[AZAFOV]&Tabelle3[TABELLENo]&Tabelle3[DATBI],0))))))","v":"0000223793"},{"$f":"+IF(B110=\"x\",\"\",IF(BB110=\"x\",\"\",IF(AQ110=0,\"\",IF(BO110<=TODAY(),\"\",INDEX(Tabelle3[KNUMH],MATCH(F110&BJ110&I110&L110&AQ110&BO110,Tabelle3[BEINH]&Tabelle3[ZZFARBIG]&Tabelle3[INHK_KFM]&Tabelle3[AZAFOV]&Tabelle3[TABELLENo]&Tabelle3[DATBI],0))))))","v":"0000223802"},{"$f":"+IF(Tabelle415[[#This Row],[KNUMH_0]]=\"\",\"\",+INDEX(Tabelle3[BETRAG],MATCH(BK110,Tabelle3[KNUMH],0)))","v":160},{"$f":"+IF(Tabelle415[[#This Row],[KNUMH_1]]=\"\",\"\",+INDEX(Tabelle3[BETRAG],MATCH(BL110,Tabelle3[KNUMH],0)))","v":160},"9999-12-31",21294]
[null,null,null,null,null,"102Z170MNA",null,null,"KN0216",null,null,"132Q",null,null,null,null,null,"-",null,null,null,null,null,null,null,null,null,null,null,160,160,160,160,null,null,null,null,null,null,null,null,null,866,null,null,null,null,null,null,null,null,null,"","",null,null,null,null,null,null,0,1,{"$f":"+IF(B111=\"x\",\"\",IF(BB111=\"x\",\"\",IF(AQ111=0,\"\",IF(BO111<=TODAY(),\"\",INDEX(Tabelle3[KNUMH],MATCH(F111&BI111&I111&L111&AQ111&BO111,Tabelle3[BEINH]&Tabelle3[ZZFARBIG]&Tabelle3[INHK_KFM]&Tabelle3[AZAFOV]&Tabelle3[TABELLENo]&Tabelle3[DATBI],0))))))","v":"0000223793"},{"$f":"+IF(B111=\"x\",\"\",IF(BB111=\"x\",\"\",IF(AQ111=0,\"\",IF(BO111<=TODAY(),\"\",INDEX(Tabelle3[KNUMH],MATCH(F111&BJ111&I111&L111&AQ111&BO111,Tabelle3[BEINH]&Tabelle3[ZZFARBIG]&Tabelle3[INHK_KFM]&Tabelle3[AZAFOV]&Tabelle3[TABELLENo]&Tabelle3[DATBI],0))))))","v":"0000223802"},{"$f":"+IF(Tabelle415[[#This Row],[KNUMH_0]]=\"\",\"\",+INDEX(Tabelle3[BETRAG],MATCH(BK111,Tabelle3[KNUMH],0)))","v":160},{"$f":"+IF(Tabelle415[[#This Row],[KNUMH_1]]=\"\",\"\",+INDEX(Tabelle3[BETRAG],MATCH(BL111,Tabelle3[KNUMH],0)))","v":160},"9999-12-31",21294]
[null,null,null,null,null,"102Z170MNA",null,null,"KN0216",null,null,"132Q",null,null,null,null,null,"-",null,null,null,null,null,null,null,null,null,null,null,160,160,160,160,null,null,null,null,null,null,null,null,null,866,null,null,null,null,null,null,null,null,null,"","",null,null,null,null,null,null,0,1,{"$f":"+IF(B112=\"x\",\"\",IF(BB112=\"x\",\"\",IF(AQ112=0,\"\",IF(BO112<=TODAY(),\"\",INDEX(Tabelle3[KNUMH],MATCH(F112&BI112&I112&L112&AQ112&BO112,Tabelle3[BEINH]&Tabelle3[ZZFARBIG]&Tabelle3[INHK_KFM]&Tabelle3[AZAFOV]&Tabelle3[TABELLENo]&Tabelle3[DATBI],0))))))","v":"0000223793"},{"$f":"+IF(B112=\"x\",\"\",IF(BB112=\"x\",\"\",IF(AQ112=0,\"\",IF(BO112<=TODAY(),\"\",INDEX(Tabelle3[KNUMH],MATCH(F112&BJ112&I112&L112&AQ112&BO112,Tabelle3[BEINH]&Tabelle3[ZZFARBIG]&Tabelle3[INHK_KFM]&Tabelle3[AZAFOV]&Tabelle3[TABELLENo]&Tabelle3[DATBI],0))))))","v":"0000223802"},{"$f":"+IF(Tabelle415[[#This Row],[KNUMH_0]]=\"\",\"\",+INDEX(Tabelle3[BETRAG],MATCH(BK112,Tabelle3[KNUMH],0)))","v":160},{"$f":"+IF(Tabelle415[[#This Row],[KNUMH_1]]=\"\",\"\",+INDEX(Tabelle3[BETRAG],MATCH(BL112,Tabelle3[KNUMH],0)))","v":160},"9999-12-31",21294]
[null,null,null,null,null,"102Z170MNA",null,null,"KN0216",null,null,"132Q",null,null,null,null,null,"-",null,null,null,null,null,null,null,null,null,null,null,160,160,160,160,null,null,null,null,null,null,null,null,null,866,null,null,null,null,null,null,null,null,null,"","",null,null,null,null,null,null,0,1,{"$f":"+IF(B113=\"x\",\"\",IF(BB113=\"x\",\"\",IF(AQ113=0,\"\",IF(BO113<=TODAY(),\"\",INDEX(Tabelle3[KNUMH],MATCH(F113&BI113&I113&L113&AQ113&BO113,Tabelle3[BEINH]&Tabelle3[ZZFARBIG]&Tabelle3[INHK_KFM]&Tabelle3[AZAFOV]&Tabelle3[TABELLENo]&Tabelle3[DATBI],0))))))","v":"0000223793"},{"$f":"+IF(B113=\"x\",\"\",IF(BB113=\"x\",\"\",IF(AQ113=0,\"\",IF(BO113<=TODAY(),\"\",INDEX(Tabelle3[KNUMH],MATCH(F113&BJ113&I113&L113&AQ113&BO113,Tabelle3[BEINH]&Tabelle3[ZZFARBIG]&Tabelle3[INHK_KFM]&Tabelle3[AZAFOV]&Tabelle3[TABELLENo]&Tabelle3[DATBI],0))))))","v":"0000223802"},{"$f":"+IF(Tabelle415[[#This Row],[KNUMH_0]]=\"\",\"\",+INDEX(Tabelle3[BETRAG],MATCH(BK113,Tabelle3[KNUMH],0)))","v":160},{"$f":"+IF(Tabelle415[[#This Row],[KNUMH_1]]=\"\",\"\",+INDEX(Tabelle3[BETRAG],MATCH(BL113,Tabelle3[KNUMH],0)))","v":160},"9999-12-31",21294]
[null,null,null,null,null,"102Z170MNA",null,null,"KN0216",null,null,"132Q",null,null,null,null,null,"-",null,null,null,null,null,null,null,null,null,null,null,160,160,160,160,null,null,null,null,null,null,null,null,null,866,null,null,null,null,null,null,null,null,null,"","",null,null,null,null,null,null,0,1,{"$f":"+IF(B114=\"x\",\"\",IF(BB114=\"x\",\"\",IF(AQ114=0,\"\",IF(BO114<=TODAY(),\"\",INDEX(Tabelle3[KNUMH],MATCH(F114&BI114&I114&L114&AQ114&BO114,Tabelle3[BEINH]&Tabelle3[ZZFARBIG]&Tabelle3[INHK_KFM]&Tabelle3[AZAFOV]&Tabelle3[TABELLENo]&Tabelle3[DATBI],0))))))","v":"0000223793"},{"$f":"+IF(B114=\"x\",\"\",IF(BB114=\"x\",\"\",IF(AQ114=0,\"\",IF(BO114<=TODAY(),\"\",INDEX(Tabelle3[KNUMH],MATCH(F114&BJ114&I114&L114&AQ114&BO114,Tabelle3[BEINH]&Tabelle3[ZZFARBIG]&Tabelle3[INHK_KFM]&Tabelle3[AZAFOV]&Tabelle3[TABELLENo]&Tabelle3[DATBI],0))))))","v":"0000223802"},{"$f":"+IF(Tabelle415[[#This Row],[KNUMH_0]]=\"\",\"\",+INDEX(Tabelle3[BETRAG],MATCH(BK114,Tabelle3[KNUMH],0)))","v":160},{"$f":"+IF(Tabelle415[[#This Row],[KNUMH_1]]=\"\",\"\",+INDEX(Tabelle3[BETRAG],MATCH(BL114,Tabelle3[KNUMH],0)))","v":160},"9999-12-31",21294]
[null,null,null,null,null,"102Z170MNA",null,null,"KN0216",null,null,"132Q",null,null,null,null,null,"-",null,null,null,null,null,null,null,null,null,null,null,160,160,160,160,null,null,null,null,null,null,null,null,null,866,null,null,null,null,null,null,null,null,null,"","",null,null,null,null,null,null,0,1,{"$f":"+IF(B115=\"x\",\"\",IF(BB115=\"x\",\"\",IF(AQ115=0,\"\",IF(BO115<=TODAY(),\"\",INDEX(Tabelle3[KNUMH],MATCH(F115&BI115&I115&L115&AQ115&BO115,Tabelle3[BEINH]&Tabelle3[ZZFARBIG]&Tabelle3[INHK_KFM]&Tabelle3[AZAFOV]&Tabelle3[TABELLENo]&Tabelle3[DATBI],0))))))","v":"0000223793"},{"$f":"+IF(B115=\"x\",\"\",IF(BB115=\"x\",\"\",IF(AQ115=0,\"\",IF(BO115<=TODAY(),\"\",INDEX(Tabelle3[KNUMH],MATCH(F115&BJ115&I115&L115&AQ115&BO115,Tabelle3[BEINH]&Tabelle3[ZZFARBIG]&Tabelle3[INHK_KFM]&Tabelle3[AZAFOV]&Tabelle3[TABELLENo]&Tabelle3[DATBI],0))))))","v":"0000223802"},{"$f":"+IF(Tabelle415[[#This Row],[KNUMH_0]]=\"\",\"\",+INDEX(Tabelle3[BETRAG],MATCH(BK115,Tabelle3[KNUMH],0)))","v":160},{"$f":"+IF(Tabelle415[[#This Row],[KNUMH_1]]=\"\",\"\",+INDEX(Tabelle3[BETRAG],MATCH(BL115,Tabelle3[KNUMH],0)))","v":160},"9999-12-31",21294]
[null,null,null,null,null,"102Z170MNA",null,null,"KN0216",null,null,"132Q",null,null,null,null,null,"-",null,null,null,null,null,null,null,null,null,null,null,160,160,160,160,null,null,null,null,null,null,null,null,null,866,null,null,null,null,null,null,null,null,null,"","",null,null,null,null,null,null,0,1,{"$f":"+IF(B116=\"x\",\"\",IF(BB116=\"x\",\"\",IF(AQ116=0,\"\",IF(BO116<=TODAY(),\"\",INDEX(Tabelle3[KNUMH],MATCH(F116&BI116&I116&L116&AQ116&BO116,Tabelle3[BEINH]&Tabelle3[ZZFARBIG]&Tabelle3[INHK_KFM]&Tabelle3[AZAFOV]&Tabelle3[TABELLENo]&Tabelle3[DATBI],0))))))","v":"0000223793"},{"$f":"+IF(B116=\"x\",\"\",IF(BB116=\"x\",\"\",IF(AQ116=0,\"\",IF(BO116<=TODAY(),\"\",INDEX(Tabelle3[KNUMH],MATCH(F116&BJ116&I116&L116&AQ116&BO116,Tabelle3[BEINH]&Tabelle3[ZZFARBIG]&Tabelle3[INHK_KFM]&Tabelle3[AZAFOV]&Tabelle3[TABELLENo]&Tabelle3[DATBI],0))))))","v":"0000223802"},{"$f":"+IF(Tabelle415[[#This Row],[KNUMH_0]]=\"\",\"\",+INDEX(Tabelle3[BETRAG],MATCH(BK116,Tabelle3[KNUMH],0)))","v":160},{"$f":"+IF(Tabelle415[[#This Row],[KNUMH_1]]=\"\",\"\",+INDEX(Tabelle3[BETRAG],MATCH(BL116,Tabelle3[KNUMH],0)))","v":160},"9999-12-31",21294]
[null,null,null,null,null,"102Z170MNA",null,null,"KN0216",null,null,"132Q",null,null,null,null,null,"-",null,null,null,null,null,null,null,null,null,null,null,160,160,160,160,null,null,null,null,null,null,null,null,null,866,null,null,null,null,null,null,null,null,null,"","",null,null,null,null,null,null,0,1,{"$f":"+IF(B117=\"x\",\"\",IF(BB117=\"x\",\"\",IF(AQ117=0,\"\",IF(BO117<=TODAY(),\"\",INDEX(Tabelle3[KNUMH],MATCH(F117&BI117&I117&L117&AQ117&BO117,Tabelle3[BEINH]&Tabelle3[ZZFARBIG]&Tabelle3[INHK_KFM]&Tabelle3[AZAFOV]&Tabelle3[TABELLENo]&Tabelle3[DATBI],0))))))","v":"0000223793"},{"$f":"+IF(B117=\"x\",\"\",IF(BB117=\"x\",\"\",IF(AQ117=0,\"\",IF(BO117<=TODAY(),\"\",INDEX(Tabelle3[KNUMH],MATCH(F117&BJ117&I117&L117&AQ117&BO117,Tabelle3[BEINH]&Tabelle3[ZZFARBIG]&Tabelle3[INHK_KFM]&Tabelle3[AZAFOV]&Tabelle3[TABELLENo]&Tabelle3[DATBI],0))))))","v":"0000223802"},{"$f":"+IF(Tabelle415[[#This Row],[KNUMH_0]]=\"\",\"\",+INDEX(Tabelle3[BETRAG],MATCH(BK117,Tabelle3[KNUMH],0)))","v":160},{"$f":"+IF(Tabelle415[[#This Row],[KNUMH_1]]=\"\",\"\",+INDEX(Tabelle3[BETRAG],MATCH(BL117,Tabelle3[KNUMH],0)))","v":160},"9999-12-31",21294]
[null,null,null,null,null,"102Z170MNA",null,null,"KN0216",null,null,"132Q",null,null,null,null,null,"-",null,null,null,null,null,null,null,null,null,null,null,160,160,160,160,null,null,null,null,null,null,null,null,null,866,null,null,null,null,null,null,null,null,null,"","",null,null,null,null,null,null,0,1,{"$f":"+IF(B118=\"x\",\"\",IF(BB118=\"x\",\"\",IF(AQ118=0,\"\",IF(BO118<=TODAY(),\"\",INDEX(Tabelle3[KNUMH],MATCH(F118&BI118&I118&L118&AQ118&BO118,Tabelle3[BEINH]&Tabelle3[ZZFARBIG]&Tabelle3[INHK_KFM]&Tabelle3[AZAFOV]&Tabelle3[TABELLENo]&Tabelle3[DATBI],0))))))","v":"0000223793"},{"$f":"+IF(B118=\"x\",\"\",IF(BB118=\"x\",\"\",IF(AQ118=0,\"\",IF(BO118<=TODAY(),\"\",INDEX(Tabelle3[KNUMH],MATCH(F118&BJ118&I118&L118&AQ118&BO118,Tabelle3[BEINH]&Tabelle3[ZZFARBIG]&Tabelle3[INHK_KFM]&Tabelle3[AZAFOV]&Tabelle3[TABELLENo]&Tabelle3[DATBI],0))))))","v":"0000223802"},{"$f":"+IF(Tabelle415[[#This Row],[KNUMH_0]]=\"\",\"\",+INDEX(Tabelle3[BETRAG],MATCH(BK118,Tabelle3[KNUMH],0)))","v":160},{"$f":"+IF(Tabelle415[[#This Row],[KNUMH_1]]=\"\",\"\",+INDEX(Tabelle3[BETRAG],MATCH(BL118,Tabelle3[KNUMH],0)))","v":160},"9999-12-31",21294]
[null,null,null,null,null,"102Z170MNA",null,null,"KN0216",null,null,"116L",null,null,null,null,null,"-",null,null,null,null,null,null,null,null,null,null,null,290,290,290,290,null,null,null,null,null,null,null,null,null,866,null,null,null,null,null,null,null,null,null,"","",null,null,null,null,null,null,0,1,{"$f":"+IF(B119=\"x\",\"\",IF(BB119=\"x\",\"\",IF(AQ119=0,\"\",IF(BO119<=TODAY(),\"\",INDEX(Tabelle3[KNUMH],MATCH(F119&BI119&I119&L119&AQ119&BO119,Tabelle3[BEINH]&Tabelle3[ZZFARBIG]&Tabelle3[INHK_KFM]&Tabelle3[AZAFOV]&Tabelle3[TABELLENo]&Tabelle3[DATBI],0))))))","v":"0000223790"},{"$f":"+IF(B119=\"x\",\"\",IF(BB119=\"x\",\"\",IF(AQ119=0,\"\",IF(BO119<=TODAY(),\"\",INDEX(Tabelle3[KNUMH],MATCH(F119&BJ119&I119&L119&AQ119&BO119,Tabelle3[BEINH]&Tabelle3[ZZFARBIG]&Tabelle3[INHK_KFM]&Tabelle3[AZAFOV]&Tabelle3[TABELLENo]&Tabelle3[DATBI],0))))))","v":"0000223799"},{"$f":"+IF(Tabelle415[[#This Row],[KNUMH_0]]=\"\",\"\",+INDEX(Tabelle3[BETRAG],MATCH(BK119,Tabelle3[KNUMH],0)))","v":290},{"$f":"+IF(Tabelle415[[#This Row],[KNUMH_1]]=\"\",\"\",+INDEX(Tabelle3[BETRAG],MATCH(BL119,Tabelle3[KNUMH],0)))","v":290},"9999-12-31",21295]
[null,null,null,null,null,"102Z170MNA",null,null,"KN0216",null,null,"116L",null,null,null,null,null,"-",null,null,null,null,null,null,null,null,null,null,null,290,290,290,290,null,null,null,null,null,null,null,null,null,866,null,null,null,null,null,null,null,null,null,"","",null,null,null,null,null,null,0,1,{"$f":"+IF(B120=\"x\",\"\",IF(BB120=\"x\",\"\",IF(AQ120=0,\"\",IF(BO120<=TODAY(),\"\",INDEX(Tabelle3[KNUMH],MATCH(F120&BI120&I120&L120&AQ120&BO120,Tabelle3[BEINH]&Tabelle3[ZZFARBIG]&Tabelle3[INHK_KFM]&Tabelle3[AZAFOV]&Tabelle3[TABELLENo]&Tabelle3[DATBI],0))))))","v":"0000223790"},{"$f":"+IF(B120=\"x\",\"\",IF(BB120=\"x\",\"\",IF(AQ120=0,\"\",IF(BO120<=TODAY(),\"\",INDEX(Tabelle3[KNUMH],MATCH(F120&BJ120&I120&L120&AQ120&BO120,Tabelle3[BEINH]&Tabelle3[ZZFARBIG]&Tabelle3[INHK_KFM]&Tabelle3[AZAFOV]&Tabelle3[TABELLENo]&Tabelle3[DATBI],0))))))","v":"0000223799"},{"$f":"+IF(Tabelle415[[#This Row],[KNUMH_0]]=\"\",\"\",+INDEX(Tabelle3[BETRAG],MATCH(BK120,Tabelle3[KNUMH],0)))","v":290},{"$f":"+IF(Tabelle415[[#This Row],[KNUMH_1]]=\"\",\"\",+INDEX(Tabelle3[BETRAG],MATCH(BL120,Tabelle3[KNUMH],0)))","v":290},"9999-12-31",21295]
[null,null,null,null,null,"102Z170MNA",null,null,"KN0216",null,null,"116L",null,null,null,null,null,"-",null,null,null,null,null,null,null,null,null,null,null,290,290,290,290,null,null,null,null,null,null,null,null,null,866,null,null,null,null,null,null,null,null,null,"","",null,null,null,null,null,null,0,1,{"$f":"+IF(B121=\"x\",\"\",IF(BB121=\"x\",\"\",IF(AQ121=0,\"\",IF(BO121<=TODAY(),\"\",INDEX(Tabelle3[KNUMH],MATCH(F121&BI121&I121&L121&AQ121&BO121,Tabelle3[BEINH]&Tabelle3[ZZFARBIG]&Tabelle3[INHK_KFM]&Tabelle3[AZAFOV]&Tabelle3[TABELLENo]&Tabelle3[DATBI],0))))))","v":"0000223790"},{"$f":"+IF(B121=\"x\",\"\",IF(BB121=\"x\",\"\",IF(AQ121=0,\"\",IF(BO121<=TODAY(),\"\",INDEX(Tabelle3[KNUMH],MATCH(F121&BJ121&I121&L121&AQ121&BO121,Tabelle3[BEINH]&Tabelle3[ZZFARBIG]&Tabelle3[INHK_KFM]&Tabelle3[AZAFOV]&Tabelle3[TABELLENo]&Tabelle3[DATBI],0))))))","v":"0000223799"},{"$f":"+IF(Tabelle415[[#This Row],[KNUMH_0]]=\"\",\"\",+INDEX(Tabelle3[BETRAG],MATCH(BK121,Tabelle3[KNUMH],0)))","v":290},{"$f":"+IF(Tabelle415[[#This Row],[KNUMH_1]]=\"\",\"\",+INDEX(Tabelle3[BETRAG],MATCH(BL121,Tabelle3[KNUMH],0)))","v":290},"9999-12-31",21295]
[null,null,null,null,null,"102Z170MNA",null,null,"KN0216",null,null,"116L",null,null,null,null,null,"-",null,null,null,null,null,null,null,null,null,null,null,290,290,290,290,null,null,null,null,null,null,null,null,null,866,null,null,null,null,null,null,null,null,null,"","",null,null,null,null,null,null,0,1,{"$f":"+IF(B122=\"x\",\"\",IF(BB122=\"x\",\"\",IF(AQ122=0,\"\",IF(BO122<=TODAY(),\"\",INDEX(Tabelle3[KNUMH],MATCH(F122&BI122&I122&L122&AQ122&BO122,Tabelle3[BEINH]&Tabelle3[ZZFARBIG]&Tabelle3[INHK_KFM]&Tabelle3[AZAFOV]&Tabelle3[TABELLENo]&Tabelle3[DATBI],0))))))","v":"0000223790"},{"$f":"+IF(B122=\"x\",\"\",IF(BB122=\"x\",\"\",IF(AQ122=0,\"\",IF(BO122<=TODAY(),\"\",INDEX(Tabelle3[KNUMH],MATCH(F122&BJ122&I122&L122&AQ122&BO122,Tabelle3[BEINH]&Tabelle3[ZZFARBIG]&Tabelle3[INHK_KFM]&Tabelle3[AZAFOV]&Tabelle3[TABELLENo]&Tabelle3[DATBI],0))))))","v":"0000223799"},{"$f":"+IF(Tabelle415[[#This Row],[KNUMH_0]]=\"\",\"\",+INDEX(Tabelle3[BETRAG],MATCH(BK122,Tabelle3[KNUMH],0)))","v":290},{"$f":"+IF(Tabelle415[[#This Row],[KNUMH_1]]=\"\",\"\",+INDEX(Tabelle3[BETRAG],MATCH(BL122,Tabelle3[KNUMH],0)))","v":290},"9999-12-31",21295]
[null,null,null,null,null,"102Z170MNA",null,null,"KN0216",null,null,"116L",null,null,null,null,null,"-",null,null,null,null,null,null,null,null,null,null,null,290,290,290,290,null,null,null,null,null,null,null,null,null,866,null,null,null,null,null,null,null,null,null,"","",null,null,null,null,null,null,0,1,{"$f":"+IF(B123=\"x\",\"\",IF(BB123=\"x\",\"\",IF(AQ123=0,\"\",IF(BO123<=TODAY(),\"\",INDEX(Tabelle3[KNUMH],MATCH(F123&BI123&I123&L123&AQ123&BO123,Tabelle3[BEINH]&Tabelle3[ZZFARBIG]&Tabelle3[INHK_KFM]&Tabelle3[AZAFOV]&Tabelle3[TABELLENo]&Tabelle3[DATBI],0))))))","v":"0000223790"},{"$f":"+IF(B123=\"x\",\"\",IF(BB123=\"x\",\"\",IF(AQ123=0,\"\",IF(BO123<=TODAY(),\"\",INDEX(Tabelle3[KNUMH],MATCH(F123&BJ123&I123&L123&AQ123&BO123,Tabelle3[BEINH]&Tabelle3[ZZFARBIG]&Tabelle3[INHK_KFM]&Tabelle3[AZAFOV]&Tabelle3[TABELLENo]&Tabelle3[DATBI],0))))))","v":"0000223799"},{"$f":"+IF(Tabelle415[[#This Row],[KNUMH_0]]=\"\",\"\",+INDEX(Tabelle3[BETRAG],MATCH(BK123,Tabelle3[KNUMH],0)))","v":290},{"$f":"+IF(Tabelle415[[#This Row],[KNUMH_1]]=\"\",\"\",+INDEX(Tabelle3[BETRAG],MATCH(BL123,Tabelle3[KNUMH],0)))","v":290},"9999-12-31",21295]
[null,null,null,null,null,"102Z170MNA",null,null,"KN0216",null,null,"116L",null,null,null,null,null,"-",null,null,null,null,null,null,null,null,null,null,null,290,290,290,290,null,null,null,null,null,null,null,null,null,866,null,null,null,null,null,null,null,null,null,"","",null,null,null,null,null,null,0,1,{"$f":"+IF(B124=\"x\",\"\",IF(BB124=\"x\",\"\",IF(AQ124=0,\"\",IF(BO124<=TODAY(),\"\",INDEX(Tabelle3[KNUMH],MATCH(F124&BI124&I124&L124&AQ124&BO124,Tabelle3[BEINH]&Tabelle3[ZZFARBIG]&Tabelle3[INHK_KFM]&Tabelle3[AZAFOV]&Tabelle3[TABELLENo]&Tabelle3[DATBI],0))))))","v":"0000223790"},{"$f":"+IF(B124=\"x\",\"\",IF(BB124=\"x\",\"\",IF(AQ124=0,\"\",IF(BO124<=TODAY(),\"\",INDEX(Tabelle3[KNUMH],MATCH(F124&BJ124&I124&L124&AQ124&BO124,Tabelle3[BEINH]&Tabelle3[ZZFARBIG]&Tabelle3[INHK_KFM]&Tabelle3[AZAFOV]&Tabelle3[TABELLENo]&Tabelle3[DATBI],0))))))","v":"0000223799"},{"$f":"+IF(Tabelle415[[#This Row],[KNUMH_0]]=\"\",\"\",+INDEX(Tabelle3[BETRAG],MATCH(BK124,Tabelle3[KNUMH],0)))","v":290},{"$f":"+IF(Tabelle415[[#This Row],[KNUMH_1]]=\"\",\"\",+INDEX(Tabelle3[BETRAG],MATCH(BL124,Tabelle3[KNUMH],0)))","v":290},"9999-12-31",21295]
[null,null,null,null,null,"102Z170MNA",null,null,"KN0216",null,null,"116L",null,null,null,null,null,"-",null,null,null,null,null,null,null,null,null,null,null,290,290,290,290,null,null,null,null,null,null,null,null,null,866,null,null,null,null,null,null,null,null,null,"","",null,null,null,null,null,null,0,1,{"$f":"+IF(B125=\"x\",\"\",IF(BB125=\"x\",\"\",IF(AQ125=0,\"\",IF(BO125<=TODAY(),\"\",INDEX(Tabelle3[KNUMH],MATCH(F125&BI125&I125&L125&AQ125&BO125,Tabelle3[BEINH]&Tabelle3[ZZFARBIG]&Tabelle3[INHK_KFM]&Tabelle3[AZAFOV]&Tabelle3[TABELLENo]&Tabelle3[DATBI],0))))))","v":"0000223790"},{"$f":"+IF(B125=\"x\",\"\",IF(BB125=\"x\",\"\",IF(AQ125=0,\"\",IF(BO125<=TODAY(),\"\",INDEX(Tabelle3[KNUMH],MATCH(F125&BJ125&I125&L125&AQ125&BO125,Tabelle3[BEINH]&Tabelle3[ZZFARBIG]&Tabelle3[INHK_KFM]&Tabelle3[AZAFOV]&Tabelle3[TABELLENo]&Tabelle3[DATBI],0))))))","v":"0000223799"},{"$f":"+IF(Tabelle415[[#This Row],[KNUMH_0]]=\"\",\"\",+INDEX(Tabelle3[BETRAG],MATCH(BK125,Tabelle3[KNUMH],0)))","v":290},{"$f":"+IF(Tabelle415[[#This Row],[KNUMH_1]]=\"\",\"\",+INDEX(Tabelle3[BETRAG],MATCH(BL125,Tabelle3[KNUMH],0)))","v":290},"9999-12-31",21295]
[null,null,null,null,null,"102Z170MNA",null,null,"KN0216",null,null,"116L",null,null,null,null,null,"-",null,null,null,null,null,null,null,null,null,null,null,290,290,290,290,null,null,null,null,null,null,null,null,null,866,null,null,null,null,null,null,null,null,null,"","",null,null,null,null,null,null,0,1,{"$f":"+IF(B126=\"x\",\"\",IF(BB126=\"x\",\"\",IF(AQ126=0,\"\",IF(BO126<=TODAY(),\"\",INDEX(Tabelle3[KNUMH],MATCH(F126&BI126&I126&L126&AQ126&BO126,Tabelle3[BEINH]&Tabelle3[ZZFARBIG]&Tabelle3[INHK_KFM]&Tabelle3[AZAFOV]&Tabelle3[TABELLENo]&Tabelle3[DATBI],0))))))","v":"0000223790"},{"$f":"+IF(B126=\"x\",\"\",IF(BB126=\"x\",\"\",IF(AQ126=0,\"\",IF(BO126<=TODAY(),\"\",INDEX(Tabelle3[KNUMH],MATCH(F126&BJ126&I126&L126&AQ126&BO126,Tabelle3[BEINH]&Tabelle3[ZZFARBIG]&Tabelle3[INHK_KFM]&Tabelle3[AZAFOV]&Tabelle3[TABELLENo]&Tabelle3[DATBI],0))))))","v":"0000223799"},{"$f":"+IF(Tabelle415[[#This Row],[KNUMH_0]]=\"\",\"\",+INDEX(Tabelle3[BETRAG],MATCH(BK126,Tabelle3[KNUMH],0)))","v":290},{"$f":"+IF(Tabelle415[[#This Row],[KNUMH_1]]=\"\",\"\",+INDEX(Tabelle3[BETRAG],MATCH(BL126,Tabelle3[KNUMH],0)))","v":290},"9999-12-31",21295]
[null,null,null,null,null,"102Z170MNA",null,null,"KN0216",null,null,"116L",null,null,null,null,null,"-",null,null,null,null,null,null,null,null,null,null,null,290,290,290,290,null,null,null,null,null,null,null,null,null,866,null,null,null,null,null,null,null,null,null,"","",null,null,null,null,null,null,0,1,{"$f":"+IF(B127=\"x\",\"\",IF(BB127=\"x\",\"\",IF(AQ127=0,\"\",IF(BO127<=TODAY(),\"\",INDEX(Tabelle3[KNUMH],MATCH(F127&BI127&I127&L127&AQ127&BO127,Tabelle3[BEINH]&Tabelle3[ZZFARBIG]&Tabelle3[INHK_KFM]&Tabelle3[AZAFOV]&Tabelle3[TABELLENo]&Tabelle3[DATBI],0))))))","v":"0000223790"},{"$f":"+IF(B127=\"x\",\"\",IF(BB127=\"x\",\"\",IF(AQ127=0,\"\",IF(BO127<=TODAY(),\"\",INDEX(Tabelle3[KNUMH],MATCH(F127&BJ127&I127&L127&AQ127&BO127,Tabelle3[BEINH]&Tabelle3[ZZFARBIG]&Tabelle3[INHK_KFM]&Tabelle3[AZAFOV]&Tabelle3[TABELLENo]&Tabelle3[DATBI],0))))))","v":"0000223799"},{"$f":"+IF(Tabelle415[[#This Row],[KNUMH_0]]=\"\",\"\",+INDEX(Tabelle3[BETRAG],MATCH(BK127,Tabelle3[KNUMH],0)))","v":290},{"$f":"+IF(Tabelle415[[#This Row],[KNUMH_1]]=\"\",\"\",+INDEX(Tabelle3[BETRAG],MATCH(BL127,Tabelle3[KNUMH],0)))","v":290},"9999-12-31",21295]
[null,null,null,null,null,"102Z170MNA",null,null,"KN0216",null,null,"116L",null,null,null,null,null,"-",null,null,null,null,null,null,null,null,null,null,null,290,290,290,290,null,null,null,null,null,null,null,null,null,866,null,null,null,null,null,null,null,null,null,"","",null,null,null,null,null,null,0,1,{"$f":"+IF(B128=\"x\",\"\",IF(BB128=\"x\",\"\",IF(AQ128=0,\"\",IF(BO128<=TODAY(),\"\",INDEX(Tabelle3[KNUMH],MATCH(F128&BI128&I128&L128&AQ128&BO128,Tabelle3[BEINH]&Tabelle3[ZZFARBIG]&Tabelle3[INHK_KFM]&Tabelle3[AZAFOV]&Tabelle3[TABELLENo]&Tabelle3[DATBI],0))))))","v":"0000223790"},{"$f":"+IF(B128=\"x\",\"\",IF(BB128=\"x\",\"\",IF(AQ128=0,\"\",IF(BO128<=TODAY(),\"\",INDEX(Tabelle3[KNUMH],MATCH(F128&BJ128&I128&L128&AQ128&BO128,Tabelle3[BEINH]&Tabelle3[ZZFARBIG]&Tabelle3[INHK_KFM]&Tabelle3[AZAFOV]&Tabelle3[TABELLENo]&Tabelle3[DATBI],0))))))","v":"0000223799"},{"$f":"+IF(Tabelle415[[#This Row],[KNUMH_0]]=\"\",\"\",+INDEX(Tabelle3[BETRAG],MATCH(BK128,Tabelle3[KNUMH],0)))","v":290},{"$f":"+IF(Tabelle415[[#This Row],[KNUMH_1]]=\"\",\"\",+INDEX(Tabelle3[BETRAG],MATCH(BL128,Tabelle3[KNUMH],0)))","v":290},"9999-12-31",21295]
[null,null,null,null,null,"102Z170MNA",null,null,"KN0216",null,null,"116L",null,null,null,null,null,"-",null,null,null,null,null,null,null,null,null,null,null,290,290,290,290,null,null,null,null,null,null,null,null,null,866,null,null,null,null,null,null,null,null,null,"","",null,null,null,null,null,null,0,1,{"$f":"+IF(B129=\"x\",\"\",IF(BB129=\"x\",\"\",IF(AQ129=0,\"\",IF(BO129<=TODAY(),\"\",INDEX(Tabelle3[KNUMH],MATCH(F129&BI129&I129&L129&AQ129&BO129,Tabelle3[BEINH]&Tabelle3[ZZFARBIG]&Tabelle3[INHK_KFM]&Tabelle3[AZAFOV]&Tabelle3[TABELLENo]&Tabelle3[DATBI],0))))))","v":"0000223790"},{"$f":"+IF(B129=\"x\",\"\",IF(BB129=\"x\",\"\",IF(AQ129=0,\"\",IF(BO129<=TODAY(),\"\",INDEX(Tabelle3[KNUMH],MATCH(F129&BJ129&I129&L129&AQ129&BO129,Tabelle3[BEINH]&Tabelle3[ZZFARBIG]&Tabelle3[INHK_KFM]&Tabelle3[AZAFOV]&Tabelle3[TABELLENo]&Tabelle3[DATBI],0))))))","v":"0000223799"},{"$f":"+IF(Tabelle415[[#This Row],[KNUMH_0]]=\"\",\"\",+INDEX(Tabelle3[BETRAG],MATCH(BK129,Tabelle3[KNUMH],0)))","v":290},{"$f":"+IF(Tabelle415[[#This Row],[KNUMH_1]]=\"\",\"\",+INDEX(Tabelle3[BETRAG],MATCH(BL129,Tabelle3[KNUMH],0)))","v":290},"9999-12-31",21295]
[null,null,null,null,null,"102Z170MNA",null,null,"KN0216",null,null,"116L",null,null,null,null,null,"-",null,null,null,null,null,null,null,null,null,null,null,290,290,290,290,null,null,null,null,null,null,null,null,null,866,null,null,null,null,null,null,null,null,null,"","",null,null,null,null,null,null,0,1,{"$f":"+IF(B130=\"x\",\"\",IF(BB130=\"x\",\"\",IF(AQ130=0,\"\",IF(BO130<=TODAY(),\"\",INDEX(Tabelle3[KNUMH],MATCH(F130&BI130&I130&L130&AQ130&BO130,Tabelle3[BEINH]&Tabelle3[ZZFARBIG]&Tabelle3[INHK_KFM]&Tabelle3[AZAFOV]&Tabelle3[TABELLENo]&Tabelle3[DATBI],0))))))","v":"0000223790"},{"$f":"+IF(B130=\"x\",\"\",IF(BB130=\"x\",\"\",IF(AQ130=0,\"\",IF(BO130<=TODAY(),\"\",INDEX(Tabelle3[KNUMH],MATCH(F130&BJ130&I130&L130&AQ130&BO130,Tabelle3[BEINH]&Tabelle3[ZZFARBIG]&Tabelle3[INHK_KFM]&Tabelle3[AZAFOV]&Tabelle3[TABELLENo]&Tabelle3[DATBI],0))))))","v":"0000223799"},{"$f":"+IF(Tabelle415[[#This Row],[KNUMH_0]]=\"\",\"\",+INDEX(Tabelle3[BETRAG],MATCH(BK130,Tabelle3[KNUMH],0)))","v":290},{"$f":"+IF(Tabelle415[[#This Row],[KNUMH_1]]=\"\",\"\",+INDEX(Tabelle3[BETRAG],MATCH(BL130,Tabelle3[KNUMH],0)))","v":290},"9999-12-31",21295]
[null,null,null,null,null,"102Z170MNA",null,null,"KN0216",null,null,"116Q",null,null,null,null,null,"-",null,null,null,null,null,null,null,null,null,null,null,290,290,290,290,null,null,null,null,null,null,null,null,null,866,null,null,null,null,null,null,null,null,null,"","",null,null,null,null,null,null,0,1,{"$f":"+IF(B131=\"x\",\"\",IF(BB131=\"x\",\"\",IF(AQ131=0,\"\",IF(BO131<=TODAY(),\"\",INDEX(Tabelle3[KNUMH],MATCH(F131&BI131&I131&L131&AQ131&BO131,Tabelle3[BEINH]&Tabelle3[ZZFARBIG]&Tabelle3[INHK_KFM]&Tabelle3[AZAFOV]&Tabelle3[TABELLENo]&Tabelle3[DATBI],0))))))","v":"0000223791"},{"$f":"+IF(B131=\"x\",\"\",IF(BB131=\"x\",\"\",IF(AQ131=0,\"\",IF(BO131<=TODAY(),\"\",INDEX(Tabelle3[KNUMH],MATCH(F131&BJ131&I131&L131&AQ131&BO131,Tabelle3[BEINH]&Tabelle3[ZZFARBIG]&Tabelle3[INHK_KFM]&Tabelle3[AZAFOV]&Tabelle3[TABELLENo]&Tabelle3[DATBI],0))))))","v":"0000223800"},{"$f":"+IF(Tabelle415[[#This Row],[KNUMH_0]]=\"\",\"\",+INDEX(Tabelle3[BETRAG],MATCH(BK131,Tabelle3[KNUMH],0)))","v":290},{"$f":"+IF(Tabelle415[[#This Row],[KNUMH_1]]=\"\",\"\",+INDEX(Tabelle3[BETRAG],MATCH(BL131,Tabelle3[KNUMH],0)))","v":290},"9999-12-31",21296]
[null,null,null,null,null,"102Z170MNA",null,null,"KN0216",null,null,"116Q",null,null,null,null,null,"-",null,null,null,null,null,null,null,null,null,null,null,290,290,290,290,null,null,null,null,null,null,null,null,null,866,null,null,null,null,null,null,null,null,null,"","",null,null,null,null,null,null,0,1,{"$f":"+IF(B132=\"x\",\"\",IF(BB132=\"x\",\"\",IF(AQ132=0,\"\",IF(BO132<=TODAY(),\"\",INDEX(Tabelle3[KNUMH],MATCH(F132&BI132&I132&L132&AQ132&BO132,Tabelle3[BEINH]&Tabelle3[ZZFARBIG]&Tabelle3[INHK_KFM]&Tabelle3[AZAFOV]&Tabelle3[TABELLENo]&Tabelle3[DATBI],0))))))","v":"0000223791"},{"$f":"+IF(B132=\"x\",\"\",IF(BB132=\"x\",\"\",IF(AQ132=0,\"\",IF(BO132<=TODAY(),\"\",INDEX(Tabelle3[KNUMH],MATCH(F132&BJ132&I132&L132&AQ132&BO132,Tabelle3[BEINH]&Tabelle3[ZZFARBIG]&Tabelle3[INHK_KFM]&Tabelle3[AZAFOV]&Tabelle3[TABELLENo]&Tabelle3[DATBI],0))))))","v":"0000223800"},{"$f":"+IF(Tabelle415[[#This Row],[KNUMH_0]]=\"\",\"\",+INDEX(Tabelle3[BETRAG],MATCH(BK132,Tabelle3[KNUMH],0)))","v":290},{"$f":"+IF(Tabelle415[[#This Row],[KNUMH_1]]=\"\",\"\",+INDEX(Tabelle3[BETRAG],MATCH(BL132,Tabelle3[KNUMH],0)))","v":290},"9999-12-31",21296]
[null,null,null,null,null,"102Z170MNA",null,null,"KN0216",null,null,"116Q",null,null,null,null,null,"-",null,null,null,null,null,null,null,null,null,null,null,290,290,290,290,null,null,null,null,null,null,null,null,null,866,null,null,null,null,null,null,null,null,null,"","",null,null,null,null,null,null,0,1,{"$f":"+IF(B133=\"x\",\"\",IF(BB133=\"x\",\"\",IF(AQ133=0,\"\",IF(BO133<=TODAY(),\"\",INDEX(Tabelle3[KNUMH],MATCH(F133&BI133&I133&L133&AQ133&BO133,Tabelle3[BEINH]&Tabelle3[ZZFARBIG]&Tabelle3[INHK_KFM]&Tabelle3[AZAFOV]&Tabelle3[TABELLENo]&Tabelle3[DATBI],0))))))","v":"0000223791"},{"$f":"+IF(B133=\"x\",\"\",IF(BB133=\"x\",\"\",IF(AQ133=0,\"\",IF(BO133<=TODAY(),\"\",INDEX(Tabelle3[KNUMH],MATCH(F133&BJ133&I133&L133&AQ133&BO133,Tabelle3[BEINH]&Tabelle3[ZZFARBIG]&Tabelle3[INHK_KFM]&Tabelle3[AZAFOV]&Tabelle3[TABELLENo]&Tabelle3[DATBI],0))))))","v":"0000223800"},{"$f":"+IF(Tabelle415[[#This Row],[KNUMH_0]]=\"\",\"\",+INDEX(Tabelle3[BETRAG],MATCH(BK133,Tabelle3[KNUMH],0)))","v":290},{"$f":"+IF(Tabelle415[[#This Row],[KNUMH_1]]=\"\",\"\",+INDEX(Tabelle3[BETRAG],MATCH(BL133,Tabelle3[KNUMH],0)))","v":290},"9999-12-31",21296]
[null,null,null,null,null,"102Z170MNA",null,null,"KN0216",null,null,"116Q",null,null,null,null,null,"-",null,null,null,null,null,null,null,null,null,null,null,290,290,290,290,null,null,null,null,null,null,null,null,null,866,null,null,null,null,null,null,null,null,null,"","",null,null,null,null,null,null,0,1,{"$f":"+IF(B134=\"x\",\"\",IF(BB134=\"x\",\"\",IF(AQ134=0,\"\",IF(BO134<=TODAY(),\"\",INDEX(Tabelle3[KNUMH],MATCH(F134&BI134&I134&L134&AQ134&BO134,Tabelle3[BEINH]&Tabelle3[ZZFARBIG]&Tabelle3[INHK_KFM]&Tabelle3[AZAFOV]&Tabelle3[TABELLENo]&Tabelle3[DATBI],0))))))","v":"0000223791"},{"$f":"+IF(B134=\"x\",\"\",IF(BB134=\"x\",\"\",IF(AQ134=0,\"\",IF(BO134<=TODAY(),\"\",INDEX(Tabelle3[KNUMH],MATCH(F134&BJ134&I134&L134&AQ134&BO134,Tabelle3[BEINH]&Tabelle3[ZZFARBIG]&Tabelle3[INHK_KFM]&Tabelle3[AZAFOV]&Tabelle3[TABELLENo]&Tabelle3[DATBI],0))))))","v":"0000223800"},{"$f":"+IF(Tabelle415[[#This Row],[KNUMH_0]]=\"\",\"\",+INDEX(Tabelle3[BETRAG],MATCH(BK134,Tabelle3[KNUMH],0)))","v":290},{"$f":"+IF(Tabelle415[[#This Row],[KNUMH_1]]=\"\",\"\",+INDEX(Tabelle3[BETRAG],MATCH(BL134,Tabelle3[KNUMH],0)))","v":290},"9999-12-31",21296]
[null,null,null,null,null,"102Z170MNA",null,null,"KN0216",null,null,"116Q",null,null,null,null,null,"-",null,null,null,null,null,null,null,null,null,null,null,290,290,290,290,null,null,null,null,null,null,null,null,null,866,null,null,null,null,null,null,null,null,null,"","",null,null,null,null,null,null,0,1,{"$f":"+IF(B135=\"x\",\"\",IF(BB135=\"x\",\"\",IF(AQ135=0,\"\",IF(BO135<=TODAY(),\"\",INDEX(Tabelle3[KNUMH],MATCH(F135&BI135&I135&L135&AQ135&BO135,Tabelle3[BEINH]&Tabelle3[ZZFARBIG]&Tabelle3[INHK_KFM]&Tabelle3[AZAFOV]&Tabelle3[TABELLENo]&Tabelle3[DATBI],0))))))","v":"0000223791"},{"$f":"+IF(B135=\"x\",\"\",IF(BB135=\"x\",\"\",IF(AQ135=0,\"\",IF(BO135<=TODAY(),\"\",INDEX(Tabelle3[KNUMH],MATCH(F135&BJ135&I135&L135&AQ135&BO135,Tabelle3[BEINH]&Tabelle3[ZZFARBIG]&Tabelle3[INHK_KFM]&Tabelle3[AZAFOV]&Tabelle3[TABELLENo]&Tabelle3[DATBI],0))))))","v":"0000223800"},{"$f":"+IF(Tabelle415[[#This Row],[KNUMH_0]]=\"\",\"\",+INDEX(Tabelle3[BETRAG],MATCH(BK135,Tabelle3[KNUMH],0)))","v":290},{"$f":"+IF(Tabelle415[[#This Row],[KNUMH_1]]=\"\",\"\",+INDEX(Tabelle3[BETRAG],MATCH(BL135,Tabelle3[KNUMH],0)))","v":290},"9999-12-31",21296]
[null,null,null,null,null,"102Z170MNA",null,null,"KN0216",null,null,"116Q",null,null,null,null,null,"-",null,null,null,null,null,null,null,null,null,null,null,290,290,290,290,null,null,null,null,null,null,null,null,null,866,null,null,null,null,null,null,null,null,null,"","",null,null,null,null,null,null,0,1,{"$f":"+IF(B136=\"x\",\"\",IF(BB136=\"x\",\"\",IF(AQ136=0,\"\",IF(BO136<=TODAY(),\"\",INDEX(Tabelle3[KNUMH],MATCH(F136&BI136&I136&L136&AQ136&BO136,Tabelle3[BEINH]&Tabelle3[ZZFARBIG]&Tabelle3[INHK_KFM]&Tabelle3[AZAFOV]&Tabelle3[TABELLENo]&Tabelle3[DATBI],0))))))","v":"0000223791"},{"$f":"+IF(B136=\"x\",\"\",IF(BB136=\"x\",\"\",IF(AQ136=0,\"\",IF(BO136<=TODAY(),\"\",INDEX(Tabelle3[KNUMH],MATCH(F136&BJ136&I136&L136&AQ136&BO136,Tabelle3[BEINH]&Tabelle3[ZZFARBIG]&Tabelle3[INHK_KFM]&Tabelle3[AZAFOV]&Tabelle3[TABELLENo]&Tabelle3[DATBI],0))))))","v":"0000223800"},{"$f":"+IF(Tabelle415[[#This Row],[KNUMH_0]]=\"\",\"\",+INDEX(Tabelle3[BETRAG],MATCH(BK136,Tabelle3[KNUMH],0)))","v":290},{"$f":"+IF(Tabelle415[[#This Row],[KNUMH_1]]=\"\",\"\",+INDEX(Tabelle3[BETRAG],MATCH(BL136,Tabelle3[KNUMH],0)))","v":290},"9999-12-31",21296]
[null,null,null,null,null,"102Z170MNA",null,null,"KN0216",null,null,"116Q",null,null,null,null,null,"-",null,null,null,null,null,null,null,null,null,null,null,290,290,290,290,null,null,null,null,null,null,null,null,null,866,null,null,null,null,null,null,null,null,null,"","",null,null,null,null,null,null,0,1,{"$f":"+IF(B137=\"x\",\"\",IF(BB137=\"x\",\"\",IF(AQ137=0,\"\",IF(BO137<=TODAY(),\"\",INDEX(Tabelle3[KNUMH],MATCH(F137&BI137&I137&L137&AQ137&BO137,Tabelle3[BEINH]&Tabelle3[ZZFARBIG]&Tabelle3[INHK_KFM]&Tabelle3[AZAFOV]&Tabelle3[TABELLENo]&Tabelle3[DATBI],0))))))","v":"0000223791"},{"$f":"+IF(B137=\"x\",\"\",IF(BB137=\"x\",\"\",IF(AQ137=0,\"\",IF(BO137<=TODAY(),\"\",INDEX(Tabelle3[KNUMH],MATCH(F137&BJ137&I137&L137&AQ137&BO137,Tabelle3[BEINH]&Tabelle3[ZZFARBIG]&Tabelle3[INHK_KFM]&Tabelle3[AZAFOV]&Tabelle3[TABELLENo]&Tabelle3[DATBI],0))))))","v":"0000223800"},{"$f":"+IF(Tabelle415[[#This Row],[KNUMH_0]]=\"\",\"\",+INDEX(Tabelle3[BETRAG],MATCH(BK137,Tabelle3[KNUMH],0)))","v":290},{"$f":"+IF(Tabelle415[[#This Row],[KNUMH_1]]=\"\",\"\",+INDEX(Tabelle3[BETRAG],MATCH(BL137,Tabelle3[KNUMH],0)))","v":290},"9999-12-31",21296]
[null,null,null,null,null,"102Z170MNA",null,null,"KN0216",null,null,"116Q",null,null,null,null,null,"-",null,null,null,null,null,null,null,null,null,null,null,290,290,290,290,null,null,null,null,null,null,null,null,null,866,null,null,null,null,null,null,null,null,null,"","",null,null,null,null,null,null,0,1,{"$f":"+IF(B138=\"x\",\"\",IF(BB138=\"x\",\"\",IF(AQ138=0,\"\",IF(BO138<=TODAY(),\"\",INDEX(Tabelle3[KNUMH],MATCH(F138&BI138&I138&L138&AQ138&BO138,Tabelle3[BEINH]&Tabelle3[ZZFARBIG]&Tabelle3[INHK_KFM]&Tabelle3[AZAFOV]&Tabelle3[TABELLENo]&Tabelle3[DATBI],0))))))","v":"0000223791"},{"$f":"+IF(B138=\"x\",\"\",IF(BB138=\"x\",\"\",IF(AQ138=0,\"\",IF(BO138<=TODAY(),\"\",INDEX(Tabelle3[KNUMH],MATCH(F138&BJ138&I138&L138&AQ138&BO138,Tabelle3[BEINH]&Tabelle3[ZZFARBIG]&Tabelle3[INHK_KFM]&Tabelle3[AZAFOV]&Tabelle3[TABELLENo]&Tabelle3[DATBI],0))))))","v":"0000223800"},{"$f":"+IF(Tabelle415[[#This Row],[KNUMH_0]]=\"\",\"\",+INDEX(Tabelle3[BETRAG],MATCH(BK138,Tabelle3[KNUMH],0)))","v":290},{"$f":"+IF(Tabelle415[[#This Row],[KNUMH_1]]=\"\",\"\",+INDEX(Tabelle3[BETRAG],MATCH(BL138,Tabelle3[KNUMH],0)))","v":290},"9999-12-31",21296]
[null,null,null,null,null,"102Z170MNA",null,null,"KN0216",null,null,"116Q",null,null,null,null,null,"-",null,null,null,null,null,null,null,null,null,null,null,290,290,290,290,null,null,null,null,null,null,null,null,null,866,null,null,null,null,null,null,null,null,null,"","",null,null,null,null,null,null,0,1,{"$f":"+IF(B139=\"x\",\"\",IF(BB139=\"x\",\"\",IF(AQ139=0,\"\",IF(BO139<=TODAY(),\"\",INDEX(Tabelle3[KNUMH],MATCH(F139&BI139&I139&L139&AQ139&BO139,Tabelle3[BEINH]&Tabelle3[ZZFARBIG]&Tabelle3[INHK_KFM]&Tabelle3[AZAFOV]&Tabelle3[TABELLENo]&Tabelle3[DATBI],0))))))","v":"0000223791"},{"$f":"+IF(B139=\"x\",\"\",IF(BB139=\"x\",\"\",IF(AQ139=0,\"\",IF(BO139<=TODAY(),\"\",INDEX(Tabelle3[KNUMH],MATCH(F139&BJ139&I139&L139&AQ139&BO139,Tabelle3[BEINH]&Tabelle3[ZZFARBIG]&Tabelle3[INHK_KFM]&Tabelle3[AZAFOV]&Tabelle3[TABELLENo]&Tabelle3[DATBI],0))))))","v":"0000223800"},{"$f":"+IF(Tabelle415[[#This Row],[KNUMH_0]]=\"\",\"\",+INDEX(Tabelle3[BETRAG],MATCH(BK139,Tabelle3[KNUMH],0)))","v":290},{"$f":"+IF(Tabelle415[[#This Row],[KNUMH_1]]=\"\",\"\",+INDEX(Tabelle3[BETRAG],MATCH(BL139,Tabelle3[KNUMH],0)))","v":290},"9999-12-31",21296]
[null,null,null,null,null,"102Z170MNA",null,null,"KN0216",null,null,"116Q",null,null,null,null,null,"-",null,null,null,null,null,null,null,null,null,null,null,290,290,290,290,null,null,null,null,null,null,null,null,null,866,null,null,null,null,null,null,null,null,null,"","",null,null,null,null,null,null,0,1,{"$f":"+IF(B140=\"x\",\"\",IF(BB140=\"x\",\"\",IF(AQ140=0,\"\",IF(BO140<=TODAY(),\"\",INDEX(Tabelle3[KNUMH],MATCH(F140&BI140&I140&L140&AQ140&BO140,Tabelle3[BEINH]&Tabelle3[ZZFARBIG]&Tabelle3[INHK_KFM]&Tabelle3[AZAFOV]&Tabelle3[TABELLENo]&Tabelle3[DATBI],0))))))","v":"0000223791"},{"$f":"+IF(B140=\"x\",\"\",IF(BB140=\"x\",\"\",IF(AQ140=0,\"\",IF(BO140<=TODAY(),\"\",INDEX(Tabelle3[KNUMH],MATCH(F140&BJ140&I140&L140&AQ140&BO140,Tabelle3[BEINH]&Tabelle3[ZZFARBIG]&Tabelle3[INHK_KFM]&Tabelle3[AZAFOV]&Tabelle3[TABELLENo]&Tabelle3[DATBI],0))))))","v":"0000223800"},{"$f":"+IF(Tabelle415[[#This Row],[KNUMH_0]]=\"\",\"\",+INDEX(Tabelle3[BETRAG],MATCH(BK140,Tabelle3[KNUMH],0)))","v":290},{"$f":"+IF(Tabelle415[[#This Row],[KNUMH_1]]=\"\",\"\",+INDEX(Tabelle3[BETRAG],MATCH(BL140,Tabelle3[KNUMH],0)))","v":290},"9999-12-31",21296]
[null,null,null,null,null,"102Z170MNA",null,null,"KN0216",null,null,"116Q",null,null,null,null,null,"-",null,null,null,null,null,null,null,null,null,null,null,290,290,290,290,null,null,null,null,null,null,null,null,null,866,null,null,null,null,null,null,null,null,null,"","",null,null,null,null,null,null,0,1,{"$f":"+IF(B141=\"x\",\"\",IF(BB141=\"x\",\"\",IF(AQ141=0,\"\",IF(BO141<=TODAY(),\"\",INDEX(Tabelle3[KNUMH],MATCH(F141&BI141&I141&L141&AQ141&BO141,Tabelle3[BEINH]&Tabelle3[ZZFARBIG]&Tabelle3[INHK_KFM]&Tabelle3[AZAFOV]&Tabelle3[TABELLENo]&Tabelle3[DATBI],0))))))","v":"0000223791"},{"$f":"+IF(B141=\"x\",\"\",IF(BB141=\"x\",\"\",IF(AQ141=0,\"\",IF(BO141<=TODAY(),\"\",INDEX(Tabelle3[KNUMH],MATCH(F141&BJ141&I141&L141&AQ141&BO141,Tabelle3[BEINH]&Tabelle3[ZZFARBIG]&Tabelle3[INHK_KFM]&Tabelle3[AZAFOV]&Tabelle3[TABELLENo]&Tabelle3[DATBI],0))))))","v":"0000223800"},{"$f":"+IF(Tabelle415[[#This Row],[KNUMH_0]]=\"\",\"\",+INDEX(Tabelle3[BETRAG],MATCH(BK141,Tabelle3[KNUMH],0)))","v":290},{"$f":"+IF(Tabelle415[[#This Row],[KNUMH_1]]=\"\",\"\",+INDEX(Tabelle3[BETRAG],MATCH(BL141,Tabelle3[KNUMH],0)))","v":290},"9999-12-31",21296]
[null,null,null,null,null,"102Z170MNA",null,null,"KN0216",null,null,"116Q",null,null,null,null,null,"-",null,null,null,null,null,null,null,null,null,null,null,290,290,290,290,null,null,null,null,null,null,null,null,null,866,null,null,null,null,null,null,null,null,null,"","",null,null,null,null,null,null,0,1,{"$f":"+IF(B142=\"x\",\"\",IF(BB142=\"x\",\"\",IF(AQ142=0,\"\",IF(BO142<=TODAY(),\"\",INDEX(Tabelle3[KNUMH],MATCH(F142&BI142&I142&L142&AQ142&BO142,Tabelle3[BEINH]&Tabelle3[ZZFARBIG]&Tabelle3[INHK_KFM]&Tabelle3[AZAFOV]&Tabelle3[TABELLENo]&Tabelle3[DATBI],0))))))","v":"0000223791"},{"$f":"+IF(B142=\"x\",\"\",IF(BB142=\"x\",\"\",IF(AQ142=0,\"\",IF(BO142<=TODAY(),\"\",INDEX(Tabelle3[KNUMH],MATCH(F142&BJ142&I142&L142&AQ142&BO142,Tabelle3[BEINH]&Tabelle3[ZZFARBIG]&Tabelle3[INHK_KFM]&Tabelle3[AZAFOV]&Tabelle3[TABELLENo]&Tabelle3[DATBI],0))))))","v":"0000223800"},{"$f":"+IF(Tabelle415[[#This Row],[KNUMH_0]]=\"\",\"\",+INDEX(Tabelle3[BETRAG],MATCH(BK142,Tabelle3[KNUMH],0)))","v":290},{"$f":"+IF(Tabelle415[[#This Row],[KNUMH_1]]=\"\",\"\",+INDEX(Tabelle3[BETRAG],MATCH(BL142,Tabelle3[KNUMH],0)))","v":290},"9999-12-31",21296]
[null,null,null,null,null,"102Z170MNA",null,null,"KN0031",null,null,0,null,null,null,null,null,"-",null,null,null,null,null,null,null,null,null,null,null,"Vorg.pr.","Vorg.pr.",1.5,1.95,null,null,null,null,null,null,null,null,null,850,null,null,null,null,null,null,null,null,null,"","",null,null,null,null,null,null,0,1,{"$f":"+IF(B143=\"x\",\"\",IF(BB143=\"x\",\"\",IF(AQ143=0,\"\",IF(BO143<=TODAY(),\"\",INDEX(Tabelle3[KNUMH],MATCH(F143&BI143&AQ143&BO143,Tabelle3[BEINH]&Tabelle3[ZZFARBIG]&Tabelle3[TABELLENo]&Tabelle3[DATBI],0))))))","v":"0000192667"},{"$f":"+IF(B143=\"x\",\"\",IF(BB143=\"x\",\"\",IF(AQ143=0,\"\",IF(BO143<=TODAY(),\"\",INDEX(Tabelle3[KNUMH],MATCH(F143&BJ143&AQ143&BO143,Tabelle3[BEINH]&Tabelle3[ZZFARBIG]&Tabelle3[TABELLENo]&Tabelle3[DATBI],0))))))","v":"0000192668"},{"$f":"+IF(Tabelle415[[#This Row],[KNUMH_0]]=\"\",\"\",+INDEX(Tabelle3[BETRAG],MATCH(BK143,Tabelle3[KNUMH],0)))","v":1.5},{"$f":"+IF(Tabelle415[[#This Row],[KNUMH_1]]=\"\",\"\",+INDEX(Tabelle3[BETRAG],MATCH(BL143,Tabelle3[KNUMH],0)))","v":1.95},"9999-12-31",21696]
[null,null,null,null,null,"102Z170MNA",null,null,"KN0031",null,null,0,null,null,null,null,null,"-",null,null,null,null,null,null,null,null,null,null,null,"Vorg.pr.","Vorg.pr.",1.5,1.95,null,null,null,null,null,null,null,null,null,850,null,null,null,null,null,null,null,null,null,"","",null,null,null,null,null,null,0,1,{"$f":"+IF(B144=\"x\",\"\",IF(BB144=\"x\",\"\",IF(AQ144=0,\"\",IF(BO144<=TODAY(),\"\",INDEX(Tabelle3[KNUMH],MATCH(F144&BI144&AQ144&BO144,Tabelle3[BEINH]&Tabelle3[ZZFARBIG]&Tabelle3[TABELLENo]&Tabelle3[DATBI],0))))))","v":"0000192667"},{"$f":"+IF(B144=\"x\",\"\",IF(BB144=\"x\",\"\",IF(AQ144=0,\"\",IF(BO144<=TODAY(),\"\",INDEX(Tabelle3[KNUMH],MATCH(F144&BJ144&AQ144&BO144,Tabelle3[BEINH]&Tabelle3[ZZFARBIG]&Tabelle3[TABELLENo]&Tabelle3[DATBI],0))))))","v":"0000192668"},{"$f":"+IF(Tabelle415[[#This Row],[KNUMH_0]]=\"\",\"\",+INDEX(Tabelle3[BETRAG],MATCH(BK144,Tabelle3[KNUMH],0)))","v":1.5},{"$f":"+IF(Tabelle415[[#This Row],[KNUMH_1]]=\"\",\"\",+INDEX(Tabelle3[BETRAG],MATCH(BL144,Tabelle3[KNUMH],0)))","v":1.95},"9999-12-31",21696]
[null,null,null,null,null,"102Z170MNA",null,null,"KN0031",null,null,0,null,null,null,null,null,"-",null,null,null,null,null,null,null,null,null,null,null,"Vorg.pr.","Vorg.pr.",1.5,1.95,null,null,null,null,null,null,null,null,null,850,null,null,null,null,null,null,null,null,null,"","",null,null,null,null,null,null,0,1,{"$f":"+IF(B145=\"x\",\"\",IF(BB145=\"x\",\"\",IF(AQ145=0,\"\",IF(BO145<=TODAY(),\"\",INDEX(Tabelle3[KNUMH],MATCH(F145&BI145&AQ145&BO145,Tabelle3[BEINH]&Tabelle3[ZZFARBIG]&Tabelle3[TABELLENo]&Tabelle3[DATBI],0))))))","v":"0000192667"},{"$f":"+IF(B145=\"x\",\"\",IF(BB145=\"x\",\"\",IF(AQ145=0,\"\",IF(BO145<=TODAY(),\"\",INDEX(Tabelle3[KNUMH],MATCH(F145&BJ145&AQ145&BO145,Tabelle3[BEINH]&Tabelle3[ZZFARBIG]&Tabelle3[TABELLENo]&Tabelle3[DATBI],0))))))","v":"0000192668"},{"$f":"+IF(Tabelle415[[#This Row],[KNUMH_0]]=\"\",\"\",+INDEX(Tabelle3[BETRAG],MATCH(BK145,Tabelle3[KNUMH],0)))","v":1.5},{"$f":"+IF(Tabelle415[[#This Row],[KNUMH_1]]=\"\",\"\",+INDEX(Tabelle3[BETRAG],MATCH(BL145,Tabelle3[KNUMH],0)))","v":1.95},"9999-12-31",21697]
[null,null,null,null,null,"102Z170MNA",null,null,"KN0031",null,null,0,null,null,null,null,null,"-",null,null,null,null,null,null,null,null,null,null,null,"Vorg.pr.","Vorg.pr.",1.5,1.95,null,null,null,null,null,null,null,null,null,850,null,null,null,null,null,null,null,null,null,"","",null,null,null,null,null,null,0,1,{"$f":"+IF(B146=\"x\",\"\",IF(BB146=\"x\",\"\",IF(AQ146=0,\"\",IF(BO146<=TODAY(),\"\",INDEX(Tabelle3[KNUMH],MATCH(F146&BI146&AQ146&BO146,Tabelle3[BEINH]&Tabelle3[ZZFARBIG]&Tabelle3[TABELLENo]&Tabelle3[DATBI],0))))))","v":"0000192667"},{"$f":"+IF(B146=\"x\",\"\",IF(BB146=\"x\",\"\",IF(AQ146=0,\"\",IF(BO146<=TODAY(),\"\",INDEX(Tabelle3[KNUMH],MATCH(F146&BJ146&AQ146&BO146,Tabelle3[BEINH]&Tabelle3[ZZFARBIG]&Tabelle3[TABELLENo]&Tabelle3[DATBI],0))))))","v":"0000192668"},{"$f":"+IF(Tabelle415[[#This Row],[KNUMH_0]]=\"\",\"\",+INDEX(Tabelle3[BETRAG],MATCH(BK146,Tabelle3[KNUMH],0)))","v":1.5},{"$f":"+IF(Tabelle415[[#This Row],[KNUMH_1]]=\"\",\"\",+INDEX(Tabelle3[BETRAG],MATCH(BL146,Tabelle3[KNUMH],0)))","v":1.95},"9999-12-31",21697]
[null,null,null,null,null,"102Z170MNA",null,null,"KN0031",null,null,0,null,null,null,null,null,"-",null,null,null,null,null,null,null,null,null,null,null,"Vorg.pr.","Vorg.pr.",1.5,1.95,null,null,null,null,null,null,null,null,null,850,null,null,null,null,null,null,null,null,null,"","",null,null,null,null,null,null,0,1,{"$f":"+IF(B147=\"x\",\"\",IF(BB147=\"x\",\"\",IF(AQ147=0,\"\",IF(BO147<=TODAY(),\"\",INDEX(Tabelle3[KNUMH],MATCH(F147&BI147&AQ147&BO147,Tabelle3[BEINH]&Tabelle3[ZZFARBIG]&Tabelle3[TABELLENo]&Tabelle3[DATBI],0))))))","v":"0000192667"},{"$f":"+IF(B147=\"x\",\"\",IF(BB147=\"x\",\"\",IF(AQ147=0,\"\",IF(BO147<=TODAY(),\"\",INDEX(Tabelle3[KNUMH],MATCH(F147&BJ147&AQ147&BO147,Tabelle3[BEINH]&Tabelle3[ZZFARBIG]&Tabelle3[TABELLENo]&Tabelle3[DATBI],0))))))","v":"0000192668"},{"$f":"+IF(Tabelle415[[#This Row],[KNUMH_0]]=\"\",\"\",+INDEX(Tabelle3[BETRAG],MATCH(BK147,Tabelle3[KNUMH],0)))","v":1.5},{"$f":"+IF(Tabelle415[[#This Row],[KNUMH_1]]=\"\",\"\",+INDEX(Tabelle3[BETRAG],MATCH(BL147,Tabelle3[KNUMH],0)))","v":1.95},"9999-12-31",21697]
[null,null,null,null,null,"102Z170MNA",null,null,"KN0031",null,null,0,null,null,null,null,null,"-",null,null,null,null,null,null,null,null,null,null,null,"Vorg.pr.","Vorg.pr.",1.5,1.95,null,null,null,null,null,null,null,null,null,850,null,null,null,null,null,null,null,null,null,"","",null,null,null,null,null,null,0,1,{"$f":"+IF(B148=\"x\",\"\",IF(BB148=\"x\",\"\",IF(AQ148=0,\"\",IF(BO148<=TODAY(),\"\",INDEX(Tabelle3[KNUMH],MATCH(F148&BI148&AQ148&BO148,Tabelle3[BEINH]&Tabelle3[ZZFARBIG]&Tabelle3[TABELLENo]&Tabelle3[DATBI],0))))))","v":"0000192667"},{"$f":"+IF(B148=\"x\",\"\",IF(BB148=\"x\",\"\",IF(AQ148=0,\"\",IF(BO148<=TODAY(),\"\",INDEX(Tabelle3[KNUMH],MATCH(F148&BJ148&AQ148&BO148,Tabelle3[BEINH]&Tabelle3[ZZFARBIG]&Tabelle3[TABELLENo]&Tabelle3[DATBI],0))))))","v":"0000192668"},{"$f":"+IF(Tabelle415[[#This Row],[KNUMH_0]]=\"\",\"\",+INDEX(Tabelle3[BETRAG],MATCH(BK148,Tabelle3[KNUMH],0)))","v":1.5},{"$f":"+IF(Tabelle415[[#This Row],[KNUMH_1]]=\"\",\"\",+INDEX(Tabelle3[BETRAG],MATCH(BL148,Tabelle3[KNUMH],0)))","v":1.95},"9999-12-31",21698]
[null,null,null,null,null,"102Z170MNA",null,null,"KN0031",null,null,0,null,null,null,null,null,"-",null,null,null,null,null,null,null,null,null,null,null,"Vorg.pr.","Vorg.pr.",1.5,1.95,null,null,null,null,null,null,null,null,null,850,null,null,null,null,null,null,null,null,null,"","",null,null,null,null,null,null,0,1,{"$f":"+IF(B149=\"x\",\"\",IF(BB149=\"x\",\"\",IF(AQ149=0,\"\",IF(BO149<=TODAY(),\"\",INDEX(Tabelle3[KNUMH],MATCH(F149&BI149&AQ149&BO149,Tabelle3[BEINH]&Tabelle3[ZZFARBIG]&Tabelle3[TABELLENo]&Tabelle3[DATBI],0))))))","v":"0000192667"},{"$f":"+IF(B149=\"x\",\"\",IF(BB149=\"x\",\"\",IF(AQ149=0,\"\",IF(BO149<=TODAY(),\"\",INDEX(Tabelle3[KNUMH],MATCH(F149&BJ149&AQ149&BO149,Tabelle3[BEINH]&Tabelle3[ZZFARBIG]&Tabelle3[TABELLENo]&Tabelle3[DATBI],0))))))","v":"0000192668"},{"$f":"+IF(Tabelle415[[#This Row],[KNUMH_0]]=\"\",\"\",+INDEX(Tabelle3[BETRAG],MATCH(BK149,Tabelle3[KNUMH],0)))","v":1.5},{"$f":"+IF(Tabelle415[[#This Row],[KNUMH_1]]=\"\",\"\",+INDEX(Tabelle3[BETRAG],MATCH(BL149,Tabelle3[KNUMH],0)))","v":1.95},"9999-12-31",21699]
[null,null,null,null,null,"102Z170MNA",null,null,"KN0031",null,null,0,null,null,null,null,null,"-",null,null,null,null,null,null,null,null,null,null,null,"Vorg.pr.","Vorg.pr.",1.5,1.95,null,null,null,null,null,null,null,null,null,850,null,null,null,null,null,null,null,null,null,"","",null,null,null,null,null,null,0,1,{"$f":"+IF(B150=\"x\",\"\",IF(BB150=\"x\",\"\",IF(AQ150=0,\"\",IF(BO150<=TODAY(),\"\",INDEX(Tabelle3[KNUMH],MATCH(F150&BI150&AQ150&BO150,Tabelle3[BEINH]&Tabelle3[ZZFARBIG]&Tabelle3[TABELLENo]&Tabelle3[DATBI],0))))))","v":"0000192667"},{"$f":"+IF(B150=\"x\",\"\",IF(BB150=\"x\",\"\",IF(AQ150=0,\"\",IF(BO150<=TODAY(),\"\",INDEX(Tabelle3[KNUMH],MATCH(F150&BJ150&AQ150&BO150,Tabelle3[BEINH]&Tabelle3[ZZFARBIG]&Tabelle3[TABELLENo]&Tabelle3[DATBI],0))))))","v":"0000192668"},{"$f":"+IF(Tabelle415[[#This Row],[KNUMH_0]]=\"\",\"\",+INDEX(Tabelle3[BETRAG],MATCH(BK150,Tabelle3[KNUMH],0)))","v":1.5},{"$f":"+IF(Tabelle415[[#This Row],[KNUMH_1]]=\"\",\"\",+INDEX(Tabelle3[BETRAG],MATCH(BL150,Tabelle3[KNUMH],0)))","v":1.95},"9999-12-31",21699]
[null,null,null,null,null,"102Z170MNA",null,null,"KN0031",null,null,0,null,null,null,null,null,"-",null,null,null,null,null,null,null,null,null,null,null,"Vorg.pr.","Vorg.pr.",1.5,1.95,null,null,null,null,null,null,null,null,null,850,null,null,null,null,null,null,null,null,null,"","",null,null,null,null,null,null,0,1,{"$f":"+IF(B151=\"x\",\"\",IF(BB151=\"x\",\"\",IF(AQ151=0,\"\",IF(BO151<=TODAY(),\"\",INDEX(Tabelle3[KNUMH],MATCH(F151&BI151&AQ151&BO151,Tabelle3[BEINH]&Tabelle3[ZZFARBIG]&Tabelle3[TABELLENo]&Tabelle3[DATBI],0))))))","v":"0000192667"},{"$f":"+IF(B151=\"x\",\"\",IF(BB151=\"x\",\"\",IF(AQ151=0,\"\",IF(BO151<=TODAY(),\"\",INDEX(Tabelle3[KNUMH],MATCH(F151&BJ151&AQ151&BO151,Tabelle3[BEINH]&Tabelle3[ZZFARBIG]&Tabelle3[TABELLENo]&Tabelle3[DATBI],0))))))","v":"0000192668"},{"$f":"+IF(Tabelle415[[#This Row],[KNUMH_0]]=\"\",\"\",+INDEX(Tabelle3[BETRAG],MATCH(BK151,Tabelle3[KNUMH],0)))","v":1.5},{"$f":"+IF(Tabelle415[[#This Row],[KNUMH_1]]=\"\",\"\",+INDEX(Tabelle3[BETRAG],MATCH(BL151,Tabelle3[KNUMH],0)))","v":1.95},"9999-12-31",21700]
[null,null,null,null,null,"102Z170MNA",null,null,"KN0031",null,null,0,null,null,null,null,null,"-",null,null,null,null,null,null,null,null,null,null,null,"Vorg.pr.","Vorg.pr.",1.5,1.95,null,null,null,null,null,null,null,null,null,850,null,null,null,null,null,null,null,null,null,"","",null,null,null,null,null,null,0,1,{"$f":"+IF(B152=\"x\",\"\",IF(BB152=\"x\",\"\",IF(AQ152=0,\"\",IF(BO152<=TODAY(),\"\",INDEX(Tabelle3[KNUMH],MATCH(F152&BI152&AQ152&BO152,Tabelle3[BEINH]&Tabelle3[ZZFARBIG]&Tabelle3[TABELLENo]&Tabelle3[DATBI],0))))))","v":"0000192667"},{"$f":"+IF(B152=\"x\",\"\",IF(BB152=\"x\",\"\",IF(AQ152=0,\"\",IF(BO152<=TODAY(),\"\",INDEX(Tabelle3[KNUMH],MATCH(F152&BJ152&AQ152&BO152,Tabelle3[BEINH]&Tabelle3[ZZFARBIG]&Tabelle3[TABELLENo]&Tabelle3[DATBI],0))))))","v":"0000192668"},{"$f":"+IF(Tabelle415[[#This Row],[KNUMH_0]]=\"\",\"\",+INDEX(Tabelle3[BETRAG],MATCH(BK152,Tabelle3[KNUMH],0)))","v":1.5},{"$f":"+IF(Tabelle415[[#This Row],[KNUMH_1]]=\"\",\"\",+INDEX(Tabelle3[BETRAG],MATCH(BL152,Tabelle3[KNUMH],0)))","v":1.95},"9999-12-31",21700]
[null,null,null,null,null,"102Z170MNA",null,null,"KN0031",null,null,0,null,null,null,null,null,"-",null,null,null,null,null,null,null,null,null,null,null,"Vorg.pr.","Vorg.pr.",1.5,1.95,null,null,null,null,null,null,null,null,null,850,null,null,null,null,null,null,null,null,null,"","",null,null,null,null,null,null,0,1,{"$f":"+IF(B153=\"x\",\"\",IF(BB153=\"x\",\"\",IF(AQ153=0,\"\",IF(BO153<=TODAY(),\"\",INDEX(Tabelle3[KNUMH],MATCH(F153&BI153&AQ153&BO153,Tabelle3[BEINH]&Tabelle3[ZZFARBIG]&Tabelle3[TABELLENo]&Tabelle3[DATBI],0))))))","v":"0000192667"},{"$f":"+IF(B153=\"x\",\"\",IF(BB153=\"x\",\"\",IF(AQ153=0,\"\",IF(BO153<=TODAY(),\"\",INDEX(Tabelle3[KNUMH],MATCH(F153&BJ153&AQ153&BO153,Tabelle3[BEINH]&Tabelle3[ZZFARBIG]&Tabelle3[TABELLENo]&Tabelle3[DATBI],0))))))","v":"0000192668"},{"$f":"+IF(Tabelle415[[#This Row],[KNUMH_0]]=\"\",\"\",+INDEX(Tabelle3[BETRAG],MATCH(BK153,Tabelle3[KNUMH],0)))","v":1.5},{"$f":"+IF(Tabelle415[[#This Row],[KNUMH_1]]=\"\",\"\",+INDEX(Tabelle3[BETRAG],MATCH(BL153,Tabelle3[KNUMH],0)))","v":1.95},"9999-12-31",21701]
[null,null,null,null,null,"102Z170MNA",null,null,"KN0031",null,null,0,null,null,null,null,null,"-",null,null,null,null,null,null,null,null,null,null,null,"Vorg.pr.","Vorg.pr.",1.5,1.95,null,null,null,null,null,null,null,null,null,850,null,null,null,null,null,null,null,null,null,"","",null,null,null,null,null,null,0,1,{"$f":"+IF(B154=\"x\",\"\",IF(BB154=\"x\",\"\",IF(AQ154=0,\"\",IF(BO154<=TODAY(),\"\",INDEX(Tabelle3[KNUMH],MATCH(F154&BI154&AQ154&BO154,Tabelle3[BEINH]&Tabelle3[ZZFARBIG]&Tabelle3[TABELLENo]&Tabelle3[DATBI],0))))))","v":"0000192667"},{"$f":"+IF(B154=\"x\",\"\",IF(BB154=\"x\",\"\",IF(AQ154=0,\"\",IF(BO154<=TODAY(),\"\",INDEX(Tabelle3[KNUMH],MATCH(F154&BJ154&AQ154&BO154,Tabelle3[BEINH]&Tabelle3[ZZFARBIG]&Tabelle3[TABELLENo]&Tabelle3[DATBI],0))))))","v":"0000192668"},{"$f":"+IF(Tabelle415[[#This Row],[KNUMH_0]]=\"\",\"\",+INDEX(Tabelle3[BETRAG],MATCH(BK154,Tabelle3[KNUMH],0)))","v":1.5},{"$f":"+IF(Tabelle415[[#This Row],[KNUMH_1]]=\"\",\"\",+INDEX(Tabelle3[BETRAG],MATCH(BL154,Tabelle3[KNUMH],0)))","v":1.95},"9999-12-31",21701]
[null,null,null,null,null,"102Z170MNA",null,null,"KN0031",null,null,0,null,null,null,null,null,"-",null,null,null,null,null,null,null,null,null,null,null,"Vorg.pr.","Vorg.pr.",1.5,1.95,null,null,null,null,null,null,null,null,null,850,null,null,null,null,null,null,null,null,null,"","",null,null,null,null,null,null,0,1,{"$f":"+IF(B155=\"x\",\"\",IF(BB155=\"x\",\"\",IF(AQ155=0,\"\",IF(BO155<=TODAY(),\"\",INDEX(Tabelle3[KNUMH],MATCH(F155&BI155&AQ155&BO155,Tabelle3[BEINH]&Tabelle3[ZZFARBIG]&Tabelle3[TABELLENo]&Tabelle3[DATBI],0))))))","v":"0000192667"},{"$f":"+IF(B155=\"x\",\"\",IF(BB155=\"x\",\"\",IF(AQ155=0,\"\",IF(BO155<=TODAY(),\"\",INDEX(Tabelle3[KNUMH],MATCH(F155&BJ155&AQ155&BO155,Tabelle3[BEINH]&Tabelle3[ZZFARBIG]&Tabelle3[TABELLENo]&Tabelle3[DATBI],0))))))","v":"0000192668"},{"$f":"+IF(Tabelle415[[#This Row],[KNUMH_0]]=\"\",\"\",+INDEX(Tabelle3[BETRAG],MATCH(BK155,Tabelle3[KNUMH],0)))","v":1.5},{"$f":"+IF(Tabelle415[[#This Row],[KNUMH_1]]=\"\",\"\",+INDEX(Tabelle3[BETRAG],MATCH(BL155,Tabelle3[KNUMH],0)))","v":1.95},"9999-12-31",21702]
[null,null,null,null,null,"102Z170MNA",null,null,"KN0031",null,null,0,null,null,null,null,null,"-",null,null,null,null,null,null,null,null,null,null,null,"Vorg.pr.","Vorg.pr.",1.5,1.95,null,null,null,null,null,null,null,null,null,850,null,null,null,null,null,null,null,null,null,"","",null,null,null,null,null,null,0,1,{"$f":"+IF(B156=\"x\",\"\",IF(BB156=\"x\",\"\",IF(AQ156=0,\"\",IF(BO156<=TODAY(),\"\",INDEX(Tabelle3[KNUMH],MATCH(F156&BI156&AQ156&BO156,Tabelle3[BEINH]&Tabelle3[ZZFARBIG]&Tabelle3[TABELLENo]&Tabelle3[DATBI],0))))))","v":"0000192667"},{"$f":"+IF(B156=\"x\",\"\",IF(BB156=\"x\",\"\",IF(AQ156=0,\"\",IF(BO156<=TODAY(),\"\",INDEX(Tabelle3[KNUMH],MATCH(F156&BJ156&AQ156&BO156,Tabelle3[BEINH]&Tabelle3[ZZFARBIG]&Tabelle3[TABELLENo]&Tabelle3[DATBI],0))))))","v":"0000192668"},{"$f":"+IF(Tabelle415[[#This Row],[KNUMH_0]]=\"\",\"\",+INDEX(Tabelle3[BETRAG],MATCH(BK156,Tabelle3[KNUMH],0)))","v":1.5},{"$f":"+IF(Tabelle415[[#This Row],[KNUMH_1]]=\"\",\"\",+INDEX(Tabelle3[BETRAG],MATCH(BL156,Tabelle3[KNUMH],0)))","v":1.95},"9999-12-31",21702]
[null,null,null,null,null,"102Z170MNA",null,null,"KN0031",null,null,0,null,null,null,null,null,"-",null,null,null,null,null,null,null,null,null,null,null,"Vorg.pr.","Vorg.pr.",1.5,1.95,null,null,null,null,null,null,null,null,null,850,null,null,null,null,null,null,null,null,null,"","",null,null,null,null,null,null,0,1,{"$f":"+IF(B157=\"x\",\"\",IF(BB157=\"x\",\"\",IF(AQ157=0,\"\",IF(BO157<=TODAY(),\"\",INDEX(Tabelle3[KNUMH],MATCH(F157&BI157&AQ157&BO157,Tabelle3[BEINH]&Tabelle3[ZZFARBIG]&Tabelle3[TABELLENo]&Tabelle3[DATBI],0))))))","v":"0000192667"},{"$f":"+IF(B157=\"x\",\"\",IF(BB157=\"x\",\"\",IF(AQ157=0,\"\",IF(BO157<=TODAY(),\"\",INDEX(Tabelle3[KNUMH],MATCH(F157&BJ157&AQ157&BO157,Tabelle3[BEINH]&Tabelle3[ZZFARBIG]&Tabelle3[TABELLENo]&Tabelle3[DATBI],0))))))","v":"0000192668"},{"$f":"+IF(Tabelle415[[#This Row],[KNUMH_0]]=\"\",\"\",+INDEX(Tabelle3[BETRAG],MATCH(BK157,Tabelle3[KNUMH],0)))","v":1.5},{"$f":"+IF(Tabelle415[[#This Row],[KNUMH_1]]=\"\",\"\",+INDEX(Tabelle3[BETRAG],MATCH(BL157,Tabelle3[KNUMH],0)))","v":1.95},"9999-12-31",21703]
[null,null,null,null,null,"102Z170MNA",null,null,"KN0031",null,null,0,null,null,null,null,null,"-",null,null,null,null,null,null,null,null,null,null,null,"Vorg.pr.","Vorg.pr.",1.5,1.95,null,null,null,null,null,null,null,null,null,850,null,null,null,null,null,null,null,null,null,"","",null,null,null,null,null,null,0,1,{"$f":"+IF(B158=\"x\",\"\",IF(BB158=\"x\",\"\",IF(AQ158=0,\"\",IF(BO158<=TODAY(),\"\",INDEX(Tabelle3[KNUMH],MATCH(F158&BI158&AQ158&BO158,Tabelle3[BEINH]&Tabelle3[ZZFARBIG]&Tabelle3[TABELLENo]&Tabelle3[DATBI],0))))))","v":"0000192667"},{"$f":"+IF(B158=\"x\",\"\",IF(BB158=\"x\",\"\",IF(AQ158=0,\"\",IF(BO158<=TODAY(),\"\",INDEX(Tabelle3[KNUMH],MATCH(F158&BJ158&AQ158&BO158,Tabelle3[BEINH]&Tabelle3[ZZFARBIG]&Tabelle3[TABELLENo]&Tabelle3[DATBI],0))))))","v":"0000192668"},{"$f":"+IF(Tabelle415[[#This Row],[KNUMH_0]]=\"\",\"\",+INDEX(Tabelle3[BETRAG],MATCH(BK158,Tabelle3[KNUMH],0)))","v":1.5},{"$f":"+IF(Tabelle415[[#This Row],[KNUMH_1]]=\"\",\"\",+INDEX(Tabelle3[BETRAG],MATCH(BL158,Tabelle3[KNUMH],0)))","v":1.95},"9999-12-31",21703]
[null,null,null,null,null,"102Z170MNA",null,null,"KN0031",null,null,0,null,null,null,null,null,"-",null,null,null,null,null,null,null,null,null,null,null,"Vorg.pr.","Vorg.pr.",1.5,1.95,null,null,null,null,null,null,null,null,null,850,null,null,null,null,null,null,null,null,null,"","",null,null,null,null,null,null,0,1,{"$f":"+IF(B159=\"x\",\"\",IF(BB159=\"x\",\"\",IF(AQ159=0,\"\",IF(BO159<=TODAY(),\"\",INDEX(Tabelle3[KNUMH],MATCH(F159&BI159&AQ159&BO159,Tabelle3[BEINH]&Tabelle3[ZZFARBIG]&Tabelle3[TABELLENo]&Tabelle3[DATBI],0))))))","v":"0000192667"},{"$f":"+IF(B159=\"x\",\"\",IF(BB159=\"x\",\"\",IF(AQ159=0,\"\",IF(BO159<=TODAY(),\"\",INDEX(Tabelle3[KNUMH],MATCH(F159&BJ159&AQ159&BO159,Tabelle3[BEINH]&Tabelle3[ZZFARBIG]&Tabelle3[TABELLENo]&Tabelle3[DATBI],0))))))","v":"0000192668"},{"$f":"+IF(Tabelle415[[#This Row],[KNUMH_0]]=\"\",\"\",+INDEX(Tabelle3[BETRAG],MATCH(BK159,Tabelle3[KNUMH],0)))","v":1.5},{"$f":"+IF(Tabelle415[[#This Row],[KNUMH_1]]=\"\",\"\",+INDEX(Tabelle3[BETRAG],MATCH(BL159,Tabelle3[KNUMH],0)))","v":1.95},"9999-12-31",21704]
[null,null,null,null,null,"102Z170MNA",null,null,"KN0031",null,null,0,null,null,null,null,null,"-",null,null,null,null,null,null,null,null,null,null,null,"Vorg.pr.","Vorg.pr.",1.5,1.95,null,null,null,null,null,null,null,null,null,850,null,null,null,null,null,null,null,null,null,"","",null,null,null,null,null,null,0,1,{"$f":"+IF(B160=\"x\",\"\",IF(BB160=\"x\",\"\",IF(AQ160=0,\"\",IF(BO160<=TODAY(),\"\",INDEX(Tabelle3[KNUMH],MATCH(F160&BI160&AQ160&BO160,Tabelle3[BEINH]&Tabelle3[ZZFARBIG]&Tabelle3[TABELLENo]&Tabelle3[DATBI],0))))))","v":"0000192667"},{"$f":"+IF(B160=\"x\",\"\",IF(BB160=\"x\",\"\",IF(AQ160=0,\"\",IF(BO160<=TODAY(),\"\",INDEX(Tabelle3[KNUMH],MATCH(F160&BJ160&AQ160&BO160,Tabelle3[BEINH]&Tabelle3[ZZFARBIG]&Tabelle3[TABELLENo]&Tabelle3[DATBI],0))))))","v":"0000192668"},{"$f":"+IF(Tabelle415[[#This Row],[KNUMH_0]]=\"\",\"\",+INDEX(Tabelle3[BETRAG],MATCH(BK160,Tabelle3[KNUMH],0)))","v":1.5},{"$f":"+IF(Tabelle415[[#This Row],[KNUMH_1]]=\"\",\"\",+INDEX(Tabelle3[BETRAG],MATCH(BL160,Tabelle3[KNUMH],0)))","v":1.95},"9999-12-31",21704]
[null,null,null,null,null,"102Z170MNA",null,null,"KN0031",null,null,0,null,null,null,null,null,"-",null,null,null,null,null,null,null,null,null,null,null,"Vorg.pr.","Vorg.pr.",1.5,1.95,null,null,null,null,null,null,null,null,null,850,null,null,null,null,null,null,null,null,null,"","",null,null,null,null,null,null,0,1,{"$f":"+IF(B161=\"x\",\"\",IF(BB161=\"x\",\"\",IF(AQ161=0,\"\",IF(BO161<=TODAY(),\"\",INDEX(Tabelle3[KNUMH],MATCH(F161&BI161&AQ161&BO161,Tabelle3[BEINH]&Tabelle3[ZZFARBIG]&Tabelle3[TABELLENo]&Tabelle3[DATBI],0))))))","v":"0000192667"},{"$f":"+IF(B161=\"x\",\"\",IF(BB161=\"x\",\"\",IF(AQ161=0,\"\",IF(BO161<=TODAY(),\"\",INDEX(Tabelle3[KNUMH],MATCH(F161&BJ161&AQ161&BO161,Tabelle3[BEINH]&Tabelle3[ZZFARBIG]&Tabelle3[TABELLENo]&Tabelle3[DATBI],0))))))","v":"0000192668"},{"$f":"+IF(Tabelle415[[#This Row],[KNUMH_0]]=\"\",\"\",+INDEX(Tabelle3[BETRAG],MATCH(BK161,Tabelle3[KNUMH],0)))","v":1.5},{"$f":"+IF(Tabelle415[[#This Row],[KNUMH_1]]=\"\",\"\",+INDEX(Tabelle3[BETRAG],MATCH(BL161,Tabelle3[KNUMH],0)))","v":1.95},"9999-12-31",21705]
[null,null,null,null,null,"102Z170MNA",null,null,"KN0031",null,null,0,null,null,null,null,null,"-",null,null,null,null,null,null,null,null,null,null,null,"Vorg.pr.","Vorg.pr.",1.5,1.95,null,null,null,null,null,null,null,null,null,850,null,null,null,null,null,null,null,null,null,"","",null,null,null,null,null,null,0,1,{"$f":"+IF(B162=\"x\",\"\",IF(BB162=\"x\",\"\",IF(AQ162=0,\"\",IF(BO162<=TODAY(),\"\",INDEX(Tabelle3[KNUMH],MATCH(F162&BI162&AQ162&BO162,Tabelle3[BEINH]&Tabelle3[ZZFARBIG]&Tabelle3[TABELLENo]&Tabelle3[DATBI],0))))))","v":"0000192667"},{"$f":"+IF(B162=\"x\",\"\",IF(BB162=\"x\",\"\",IF(AQ162=0,\"\",IF(BO162<=TODAY(),\"\",INDEX(Tabelle3[KNUMH],MATCH(F162&BJ162&AQ162&BO162,Tabelle3[BEINH]&Tabelle3[ZZFARBIG]&Tabelle3[TABELLENo]&Tabelle3[DATBI],0))))))","v":"0000192668"},{"$f":"+IF(Tabelle415[[#This Row],[KNUMH_0]]=\"\",\"\",+INDEX(Tabelle3[BETRAG],MATCH(BK162,Tabelle3[KNUMH],0)))","v":1.5},{"$f":"+IF(Tabelle415[[#This Row],[KNUMH_1]]=\"\",\"\",+INDEX(Tabelle3[BETRAG],MATCH(BL162,Tabelle3[KNUMH],0)))","v":1.95},"9999-12-31",21705]
[null,null,null,null,null,"102Z170MNA",null,null,"KN0031",null,null,0,null,null,null,null,null,"-",null,null,null,null,null,null,null,null,null,null,null,"Vorg.pr.","Vorg.pr.",1.5,1.95,null,null,null,null,null,null,null,null,null,850,null,null,null,null,null,null,null,null,null,"","",null,null,null,null,null,null,0,1,{"$f":"+IF(B163=\"x\",\"\",IF(BB163=\"x\",\"\",IF(AQ163=0,\"\",IF(BO163<=TODAY(),\"\",INDEX(Tabelle3[KNUMH],MATCH(F163&BI163&AQ163&BO163,Tabelle3[BEINH]&Tabelle3[ZZFARBIG]&Tabelle3[TABELLENo]&Tabelle3[DATBI],0))))))","v":"0000192667"},{"$f":"+IF(B163=\"x\",\"\",IF(BB163=\"x\",\"\",IF(AQ163=0,\"\",IF(BO163<=TODAY(),\"\",INDEX(Tabelle3[KNUMH],MATCH(F163&BJ163&AQ163&BO163,Tabelle3[BEINH]&Tabelle3[ZZFARBIG]&Tabelle3[TABELLENo]&Tabelle3[DATBI],0))))))","v":"0000192668"},{"$f":"+IF(Tabelle415[[#This Row],[KNUMH_0]]=\"\",\"\",+INDEX(Tabelle3[BETRAG],MATCH(BK163,Tabelle3[KNUMH],0)))","v":1.5},{"$f":"+IF(Tabelle415[[#This Row],[KNUMH_1]]=\"\",\"\",+INDEX(Tabelle3[BETRAG],MATCH(BL163,Tabelle3[KNUMH],0)))","v":1.95},"9999-12-31",21706]
[null,null,null,null,null,"102Z170MNA",null,null,"KN0031",null,null,0,null,null,null,null,null,"-",null,null,null,null,null,null,null,null,null,null,null,"Vorg.pr.","Vorg.pr.",1.5,1.95,null,null,null,null,null,null,null,null,null,850,null,null,null,null,null,null,null,null,null,"","",null,null,null,null,null,null,0,1,{"$f":"+IF(B164=\"x\",\"\",IF(BB164=\"x\",\"\",IF(AQ164=0,\"\",IF(BO164<=TODAY(),\"\",INDEX(Tabelle3[KNUMH],MATCH(F164&BI164&AQ164&BO164,Tabelle3[BEINH]&Tabelle3[ZZFARBIG]&Tabelle3[TABELLENo]&Tabelle3[DATBI],0))))))","v":"0000192667"},{"$f":"+IF(B164=\"x\",\"\",IF(BB164=\"x\",\"\",IF(AQ164=0,\"\",IF(BO164<=TODAY(),\"\",INDEX(Tabelle3[KNUMH],MATCH(F164&BJ164&AQ164&BO164,Tabelle3[BEINH]&Tabelle3[ZZFARBIG]&Tabelle3[TABELLENo]&Tabelle3[DATBI],0))))))","v":"0000192668"},{"$f":"+IF(Tabelle415[[#This Row],[KNUMH_0]]=\"\",\"\",+INDEX(Tabelle3[BETRAG],MATCH(BK164,Tabelle3[KNUMH],0)))","v":1.5},{"$f":"+IF(Tabelle415[[#This Row],[KNUMH_1]]=\"\",\"\",+INDEX(Tabelle3[BETRAG],MATCH(BL164,Tabelle3[KNUMH],0)))","v":1.95},"9999-12-31",21706]
[null,null,null,null,null,"102Z170MNA",null,null,"KN0031",null,null,0,null,null,null,null,null,"-",null,null,null,null,null,null,null,null,null,null,null,"Vorg.pr.","Vorg.pr.",1.5,1.95,null,null,null,null,null,null,null,null,null,850,null,null,null,null,null,null,null,null,null,"","",null,null,null,null,null,null,0,1,{"$f":"+IF(B165=\"x\",\"\",IF(BB165=\"x\",\"\",IF(AQ165=0,\"\",IF(BO165<=TODAY(),\"\",INDEX(Tabelle3[KNUMH],MATCH(F165&BI165&AQ165&BO165,Tabelle3[BEINH]&Tabelle3[ZZFARBIG]&Tabelle3[TABELLENo]&Tabelle3[DATBI],0))))))","v":"0000192667"},{"$f":"+IF(B165=\"x\",\"\",IF(BB165=\"x\",\"\",IF(AQ165=0,\"\",IF(BO165<=TODAY(),\"\",INDEX(Tabelle3[KNUMH],MATCH(F165&BJ165&AQ165&BO165,Tabelle3[BEINH]&Tabelle3[ZZFARBIG]&Tabelle3[TABELLENo]&Tabelle3[DATBI],0))))))","v":"0000192668"},{"$f":"+IF(Tabelle415[[#This Row],[KNUMH_0]]=\"\",\"\",+INDEX(Tabelle3[BETRAG],MATCH(BK165,Tabelle3[KNUMH],0)))","v":1.5},{"$f":"+IF(Tabelle415[[#This Row],[KNUMH_1]]=\"\",\"\",+INDEX(Tabelle3[BETRAG],MATCH(BL165,Tabelle3[KNUMH],0)))","v":1.95},"9999-12-31",21707]
[null,null,null,null,null,"102Z170MNA",null,null,"KN0031",null,null,0,null,null,null,null,null,"-",null,null,null,null,null,null,null,null,null,null,null,"Vorg.pr.","Vorg.pr.",1.5,1.95,null,null,null,null,null,null,null,null,null,850,null,null,null,null,null,null,null,null,null,"","",null,null,null,null,null,null,0,1,{"$f":"+IF(B166=\"x\",\"\",IF(BB166=\"x\",\"\",IF(AQ166=0,\"\",IF(BO166<=TODAY(),\"\",INDEX(Tabelle3[KNUMH],MATCH(F166&BI166&AQ166&BO166,Tabelle3[BEINH]&Tabelle3[ZZFARBIG]&Tabelle3[TABELLENo]&Tabelle3[DATBI],0))))))","v":"0000192667"},{"$f":"+IF(B166=\"x\",\"\",IF(BB166=\"x\",\"\",IF(AQ166=0,\"\",IF(BO166<=TODAY(),\"\",INDEX(Tabelle3[KNUMH],MATCH(F166&BJ166&AQ166&BO166,Tabelle3[BEINH]&Tabelle3[ZZFARBIG]&Tabelle3[TABELLENo]&Tabelle3[DATBI],0))))))","v":"0000192668"},{"$f":"+IF(Tabelle415[[#This Row],[KNUMH_0]]=\"\",\"\",+INDEX(Tabelle3[BETRAG],MATCH(BK166,Tabelle3[KNUMH],0)))","v":1.5},{"$f":"+IF(Tabelle415[[#This Row],[KNUMH_1]]=\"\",\"\",+INDEX(Tabelle3[BETRAG],MATCH(BL166,Tabelle3[KNUMH],0)))","v":1.95},"9999-12-31",21707]
[null,null,null,null,null,"102Z170MNA",null,null,"KN0031",null,null,0,null,null,null,null,null,"-",null,null,null,null,null,null,null,null,null,null,null,"Vorg.pr.","Vorg.pr.",1.5,1.95,null,null,null,null,null,null,null,null,null,850,null,null,null,null,null,null,null,null,null,"","",null,null,null,null,null,null,0,1,{"$f":"+IF(B167=\"x\",\"\",IF(BB167=\"x\",\"\",IF(AQ167=0,\"\",IF(BO167<=TODAY(),\"\",INDEX(Tabelle3[KNUMH],MATCH(F167&BI167&AQ167&BO167,Tabelle3[BEINH]&Tabelle3[ZZFARBIG]&Tabelle3[TABELLENo]&Tabelle3[DATBI],0))))))","v":"0000192667"},{"$f":"+IF(B167=\"x\",\"\",IF(BB167=\"x\",\"\",IF(AQ167=0,\"\",IF(BO167<=TODAY(),\"\",INDEX(Tabelle3[KNUMH],MATCH(F167&BJ167&AQ167&BO167,Tabelle3[BEINH]&Tabelle3[ZZFARBIG]&Tabelle3[TABELLENo]&Tabelle3[DATBI],0))))))","v":"0000192668"},{"$f":"+IF(Tabelle415[[#This Row],[KNUMH_0]]=\"\",\"\",+INDEX(Tabelle3[BETRAG],MATCH(BK167,Tabelle3[KNUMH],0)))","v":1.5},{"$f":"+IF(Tabelle415[[#This Row],[KNUMH_1]]=\"\",\"\",+INDEX(Tabelle3[BETRAG],MATCH(BL167,Tabelle3[KNUMH],0)))","v":1.95},"9999-12-31",21708]
[null,null,null,null,null,"102Z170MNA",null,null,"KN0031",null,null,0,null,null,null,null,null,"-",null,null,null,null,null,null,null,null,null,null,null,"Vorg.pr.","Vorg.pr.",1.5,1.95,null,null,null,null,null,null,null,null,null,850,null,null,null,null,null,null,null,null,null,"","",null,null,null,null,null,null,0,1,{"$f":"+IF(B168=\"x\",\"\",IF(BB168=\"x\",\"\",IF(AQ168=0,\"\",IF(BO168<=TODAY(),\"\",INDEX(Tabelle3[KNUMH],MATCH(F168&BI168&AQ168&BO168,Tabelle3[BEINH]&Tabelle3[ZZFARBIG]&Tabelle3[TABELLENo]&Tabelle3[DATBI],0))))))","v":"0000192667"},{"$f":"+IF(B168=\"x\",\"\",IF(BB168=\"x\",\"\",IF(AQ168=0,\"\",IF(BO168<=TODAY(),\"\",INDEX(Tabelle3[KNUMH],MATCH(F168&BJ168&AQ168&BO168,Tabelle3[BEINH]&Tabelle3[ZZFARBIG]&Tabelle3[TABELLENo]&Tabelle3[DATBI],0))))))","v":"0000192668"},{"$f":"+IF(Tabelle415[[#This Row],[KNUMH_0]]=\"\",\"\",+INDEX(Tabelle3[BETRAG],MATCH(BK168,Tabelle3[KNUMH],0)))","v":1.5},{"$f":"+IF(Tabelle415[[#This Row],[KNUMH_1]]=\"\",\"\",+INDEX(Tabelle3[BETRAG],MATCH(BL168,Tabelle3[KNUMH],0)))","v":1.95},"9999-12-31",21708]
[null,null,null,null,null,"102Z170MNA",null,null,"KN0031",null,null,0,null,null,null,null,null,"-",null,null,null,null,null,null,null,null,null,null,null,"Vorg.pr.","Vorg.pr.",1.5,1.95,null,null,null,null,null,null,null,null,null,850,null,null,null,null,null,null,null,null,null,"","",null,null,null,null,null,null,0,1,{"$f":"+IF(B169=\"x\",\"\",IF(BB169=\"x\",\"\",IF(AQ169=0,\"\",IF(BO169<=TODAY(),\"\",INDEX(Tabelle3[KNUMH],MATCH(F169&BI169&AQ169&BO169,Tabelle3[BEINH]&Tabelle3[ZZFARBIG]&Tabelle3[TABELLENo]&Tabelle3[DATBI],0))))))","v":"0000192667"},{"$f":"+IF(B169=\"x\",\"\",IF(BB169=\"x\",\"\",IF(AQ169=0,\"\",IF(BO169<=TODAY(),\"\",INDEX(Tabelle3[KNUMH],MATCH(F169&BJ169&AQ169&BO169,Tabelle3[BEINH]&Tabelle3[ZZFARBIG]&Tabelle3[TABELLENo]&Tabelle3[DATBI],0))))))","v":"0000192668"},{"$f":"+IF(Tabelle415[[#This Row],[KNUMH_0]]=\"\",\"\",+INDEX(Tabelle3[BETRAG],MATCH(BK169,Tabelle3[KNUMH],0)))","v":1.5},{"$f":"+IF(Tabelle415[[#This Row],[KNUMH_1]]=\"\",\"\",+INDEX(Tabelle3[BETRAG],MATCH(BL169,Tabelle3[KNUMH],0)))","v":1.95},"9999-12-31",21709]
[null,null,null,null,null,"102Z170MNA",null,null,"KN0031",null,null,0,null,null,null,null,null,"-",null,null,null,null,null,null,null,null,null,null,null,"Vorg.pr.","Vorg.pr.",1.5,1.95,null,null,null,null,null,null,null,null,null,850,null,null,null,null,null,null,null,null,null,"","",null,null,null,null,null,null,0,1,{"$f":"+IF(B170=\"x\",\"\",IF(BB170=\"x\",\"\",IF(AQ170=0,\"\",IF(BO170<=TODAY(),\"\",INDEX(Tabelle3[KNUMH],MATCH(F170&BI170&AQ170&BO170,Tabelle3[BEINH]&Tabelle3[ZZFARBIG]&Tabelle3[TABELLENo]&Tabelle3[DATBI],0))))))","v":"0000192667"},{"$f":"+IF(B170=\"x\",\"\",IF(BB170=\"x\",\"\",IF(AQ170=0,\"\",IF(BO170<=TODAY(),\"\",INDEX(Tabelle3[KNUMH],MATCH(F170&BJ170&AQ170&BO170,Tabelle3[BEINH]&Tabelle3[ZZFARBIG]&Tabelle3[TABELLENo]&Tabelle3[DATBI],0))))))","v":"0000192668"},{"$f":"+IF(Tabelle415[[#This Row],[KNUMH_0]]=\"\",\"\",+INDEX(Tabelle3[BETRAG],MATCH(BK170,Tabelle3[KNUMH],0)))","v":1.5},{"$f":"+IF(Tabelle415[[#This Row],[KNUMH_1]]=\"\",\"\",+INDEX(Tabelle3[BETRAG],MATCH(BL170,Tabelle3[KNUMH],0)))","v":1.95},"9999-12-31",21709]
[null,null,null,null,null,"102Z170MNA",null,null,"KN0031",null,null,0,null,null,null,null,null,"-",null,null,null,null,null,null,null,null,null,null,null,"Vorg.pr.","Vorg.pr.",1.5,1.95,null,null,null,null,null,null,null,null,null,850,null,null,null,null,null,null,null,null,null,"","",null,null,null,null,null,null,0,1,{"$f":"+IF(B171=\"x\",\"\",IF(BB171=\"x\",\"\",IF(AQ171=0,\"\",IF(BO171<=TODAY(),\"\",INDEX(Tabelle3[KNUMH],MATCH(F171&BI171&AQ171&BO171,Tabelle3[BEINH]&Tabelle3[ZZFARBIG]&Tabelle3[TABELLENo]&Tabelle3[DATBI],0))))))","v":"0000192667"},{"$f":"+IF(B171=\"x\",\"\",IF(BB171=\"x\",\"\",IF(AQ171=0,\"\",IF(BO171<=TODAY(),\"\",INDEX(Tabelle3[KNUMH],MATCH(F171&BJ171&AQ171&BO171,Tabelle3[BEINH]&Tabelle3[ZZFARBIG]&Tabelle3[TABELLENo]&Tabelle3[DATBI],0))))))","v":"0000192668"},{"$f":"+IF(Tabelle415[[#This Row],[KNUMH_0]]=\"\",\"\",+INDEX(Tabelle3[BETRAG],MATCH(BK171,Tabelle3[KNUMH],0)))","v":1.5},{"$f":"+IF(Tabelle415[[#This Row],[KNUMH_1]]=\"\",\"\",+INDEX(Tabelle3[BETRAG],MATCH(BL171,Tabelle3[KNUMH],0)))","v":1.95},"9999-12-31",21710]
[null,null,null,null,null,"102Z170MNA",null,null,"KN0031",null,null,0,null,null,null,null,null,"-",null,null,null,null,null,null,null,null,null,null,null,"Vorg.pr.","Vorg.pr.",1.5,1.95,null,null,null,null,null,null,null,null,null,850,null,null,null,null,null,null,null,null,null,"","",null,null,null,null,null,null,0,1,{"$f":"+IF(B172=\"x\",\"\",IF(BB172=\"x\",\"\",IF(AQ172=0,\"\",IF(BO172<=TODAY(),\"\",INDEX(Tabelle3[KNUMH],MATCH(F172&BI172&AQ172&BO172,Tabelle3[BEINH]&Tabelle3[ZZFARBIG]&Tabelle3[TABELLENo]&Tabelle3[DATBI],0))))))","v":"0000192667"},{"$f":"+IF(B172=\"x\",\"\",IF(BB172=\"x\",\"\",IF(AQ172=0,\"\",IF(BO172<=TODAY(),\"\",INDEX(Tabelle3[KNUMH],MATCH(F172&BJ172&AQ172&BO172,Tabelle3[BEINH]&Tabelle3[ZZFARBIG]&Tabelle3[TABELLENo]&Tabelle3[DATBI],0))))))","v":"0000192668"},{"$f":"+IF(Tabelle415[[#This Row],[KNUMH_0]]=\"\",\"\",+INDEX(Tabelle3[BETRAG],MATCH(BK172,Tabelle3[KNUMH],0)))","v":1.5},{"$f":"+IF(Tabelle415[[#This Row],[KNUMH_1]]=\"\",\"\",+INDEX(Tabelle3[BETRAG],MATCH(BL172,Tabelle3[KNUMH],0)))","v":1.95},"9999-12-31",21710]
[null,null,null,null,null,"102Z170MNA",null,null,"KN0031",null,null,0,null,null,null,null,null,"-",null,null,null,null,null,null,null,null,null,null,null,"Vorg.pr.","Vorg.pr.",1.5,1.95,null,null,null,null,null,null,null,null,null,850,null,null,null,null,null,null,null,null,null,"","",null,null,null,null,null,null,0,1,{"$f":"+IF(B173=\"x\",\"\",IF(BB173=\"x\",\"\",IF(AQ173=0,\"\",IF(BO173<=TODAY(),\"\",INDEX(Tabelle3[KNUMH],MATCH(F173&BI173&AQ173&BO173,Tabelle3[BEINH]&Tabelle3[ZZFARBIG]&Tabelle3[TABELLENo]&Tabelle3[DATBI],0))))))","v":"0000192667"},{"$f":"+IF(B173=\"x\",\"\",IF(BB173=\"x\",\"\",IF(AQ173=0,\"\",IF(BO173<=TODAY(),\"\",INDEX(Tabelle3[KNUMH],MATCH(F173&BJ173&AQ173&BO173,Tabelle3[BEINH]&Tabelle3[ZZFARBIG]&Tabelle3[TABELLENo]&Tabelle3[DATBI],0))))))","v":"0000192668"},{"$f":"+IF(Tabelle415[[#This Row],[KNUMH_0]]=\"\",\"\",+INDEX(Tabelle3[BETRAG],MATCH(BK173,Tabelle3[KNUMH],0)))","v":1.5},{"$f":"+IF(Tabelle415[[#This Row],[KNUMH_1]]=\"\",\"\",+INDEX(Tabelle3[BETRAG],MATCH(BL173,Tabelle3[KNUMH],0)))","v":1.95},"9999-12-31",21711]
[null,null,null,null,null,"102Z170MNA",null,null,"KN0031",null,null,0,null,null,null,null,null,"-",null,null,null,null,null,null,null,null,null,null,null,"Vorg.pr.","Vorg.pr.",1.5,1.95,null,null,null,null,null,null,null,null,null,850,null,null,null,null,null,null,null,null,null,"","",null,null,null,null,null,null,0,1,{"$f":"+IF(B174=\"x\",\"\",IF(BB174=\"x\",\"\",IF(AQ174=0,\"\",IF(BO174<=TODAY(),\"\",INDEX(Tabelle3[KNUMH],MATCH(F174&BI174&AQ174&BO174,Tabelle3[BEINH]&Tabelle3[ZZFARBIG]&Tabelle3[TABELLENo]&Tabelle3[DATBI],0))))))","v":"0000192667"},{"$f":"+IF(B174=\"x\",\"\",IF(BB174=\"x\",\"\",IF(AQ174=0,\"\",IF(BO174<=TODAY(),\"\",INDEX(Tabelle3[KNUMH],MATCH(F174&BJ174&AQ174&BO174,Tabelle3[BEINH]&Tabelle3[ZZFARBIG]&Tabelle3[TABELLENo]&Tabelle3[DATBI],0))))))","v":"0000192668"},{"$f":"+IF(Tabelle415[[#This Row],[KNUMH_0]]=\"\",\"\",+INDEX(Tabelle3[BETRAG],MATCH(BK174,Tabelle3[KNUMH],0)))","v":1.5},{"$f":"+IF(Tabelle415[[#This Row],[KNUMH_1]]=\"\",\"\",+INDEX(Tabelle3[BETRAG],MATCH(BL174,Tabelle3[KNUMH],0)))","v":1.95},"9999-12-31",21711]
[null,null,null,null,null,"102Z170MNA",null,null,"KN0031",null,null,0,null,null,null,null,null,"-",null,null,null,null,null,null,null,null,null,null,null,"Vorg.pr.","Vorg.pr.",1.5,1.95,null,null,null,null,null,null,null,null,null,850,null,null,null,null,null,null,null,null,null,"","",null,null,null,null,null,null,0,1,{"$f":"+IF(B175=\"x\",\"\",IF(BB175=\"x\",\"\",IF(AQ175=0,\"\",IF(BO175<=TODAY(),\"\",INDEX(Tabelle3[KNUMH],MATCH(F175&BI175&AQ175&BO175,Tabelle3[BEINH]&Tabelle3[ZZFARBIG]&Tabelle3[TABELLENo]&Tabelle3[DATBI],0))))))","v":"0000192667"},{"$f":"+IF(B175=\"x\",\"\",IF(BB175=\"x\",\"\",IF(AQ175=0,\"\",IF(BO175<=TODAY(),\"\",INDEX(Tabelle3[KNUMH],MATCH(F175&BJ175&AQ175&BO175,Tabelle3[BEINH]&Tabelle3[ZZFARBIG]&Tabelle3[TABELLENo]&Tabelle3[DATBI],0))))))","v":"0000192668"},{"$f":"+IF(Tabelle415[[#This Row],[KNUMH_0]]=\"\",\"\",+INDEX(Tabelle3[BETRAG],MATCH(BK175,Tabelle3[KNUMH],0)))","v":1.5},{"$f":"+IF(Tabelle415[[#This Row],[KNUMH_1]]=\"\",\"\",+INDEX(Tabelle3[BETRAG],MATCH(BL175,Tabelle3[KNUMH],0)))","v":1.95},"9999-12-31",21712]
[null,null,null,null,null,"102Z170MNA",null,null,"KN0031",null,null,0,null,null,null,null,null,"-",null,null,null,null,null,null,null,null,null,null,null,"Vorg.pr.","Vorg.pr.",1.5,1.95,null,null,null,null,null,null,null,null,null,850,null,null,null,null,null,null,null,null,null,"","",null,null,null,null,null,null,0,1,{"$f":"+IF(B176=\"x\",\"\",IF(BB176=\"x\",\"\",IF(AQ176=0,\"\",IF(BO176<=TODAY(),\"\",INDEX(Tabelle3[KNUMH],MATCH(F176&BI176&AQ176&BO176,Tabelle3[BEINH]&Tabelle3[ZZFARBIG]&Tabelle3[TABELLENo]&Tabelle3[DATBI],0))))))","v":"0000192667"},{"$f":"+IF(B176=\"x\",\"\",IF(BB176=\"x\",\"\",IF(AQ176=0,\"\",IF(BO176<=TODAY(),\"\",INDEX(Tabelle3[KNUMH],MATCH(F176&BJ176&AQ176&BO176,Tabelle3[BEINH]&Tabelle3[ZZFARBIG]&Tabelle3[TABELLENo]&Tabelle3[DATBI],0))))))","v":"0000192668"},{"$f":"+IF(Tabelle415[[#This Row],[KNUMH_0]]=\"\",\"\",+INDEX(Tabelle3[BETRAG],MATCH(BK176,Tabelle3[KNUMH],0)))","v":1.5},{"$f":"+IF(Tabelle415[[#This Row],[KNUMH_1]]=\"\",\"\",+INDEX(Tabelle3[BETRAG],MATCH(BL176,Tabelle3[KNUMH],0)))","v":1.95},"9999-12-31",21712]
[null,null,null,null,null,"102Z170MNA",null,null,"KN0031",null,null,0,null,null,null,null,null,"-",null,null,null,null,null,null,null,null,null,null,null,"Vorg.pr.","Vorg.pr.",1.5,1.95,null,null,null,null,null,null,null,null,null,850,null,null,null,null,null,null,null,null,null,"","",null,null,null,null,null,null,0,1,{"$f":"+IF(B177=\"x\",\"\",IF(BB177=\"x\",\"\",IF(AQ177=0,\"\",IF(BO177<=TODAY(),\"\",INDEX(Tabelle3[KNUMH],MATCH(F177&BI177&AQ177&BO177,Tabelle3[BEINH]&Tabelle3[ZZFARBIG]&Tabelle3[TABELLENo]&Tabelle3[DATBI],0))))))","v":"0000192667"},{"$f":"+IF(B177=\"x\",\"\",IF(BB177=\"x\",\"\",IF(AQ177=0,\"\",IF(BO177<=TODAY(),\"\",INDEX(Tabelle3[KNUMH],MATCH(F177&BJ177&AQ177&BO177,Tabelle3[BEINH]&Tabelle3[ZZFARBIG]&Tabelle3[TABELLENo]&Tabelle3[DATBI],0))))))","v":"0000192668"},{"$f":"+IF(Tabelle415[[#This Row],[KNUMH_0]]=\"\",\"\",+INDEX(Tabelle3[BETRAG],MATCH(BK177,Tabelle3[KNUMH],0)))","v":1.5},{"$f":"+IF(Tabelle415[[#This Row],[KNUMH_1]]=\"\",\"\",+INDEX(Tabelle3[BETRAG],MATCH(BL177,Tabelle3[KNUMH],0)))","v":1.95},"9999-12-31",21713]
[null,null,null,null,null,"102Z170MNA",null,null,"KN0031",null,null,0,null,null,null,null,null,"-",null,null,null,null,null,null,null,null,null,null,null,"Vorg.pr.","Vorg.pr.",1.5,1.95,null,null,null,null,null,null,null,null,null,850,null,null,null,null,null,null,null,null,null,"","",null,null,null,null,null,null,0,1,{"$f":"+IF(B178=\"x\",\"\",IF(BB178=\"x\",\"\",IF(AQ178=0,\"\",IF(BO178<=TODAY(),\"\",INDEX(Tabelle3[KNUMH],MATCH(F178&BI178&AQ178&BO178,Tabelle3[BEINH]&Tabelle3[ZZFARBIG]&Tabelle3[TABELLENo]&Tabelle3[DATBI],0))))))","v":"0000192667"},{"$f":"+IF(B178=\"x\",\"\",IF(BB178=\"x\",\"\",IF(AQ178=0,\"\",IF(BO178<=TODAY(),\"\",INDEX(Tabelle3[KNUMH],MATCH(F178&BJ178&AQ178&BO178,Tabelle3[BEINH]&Tabelle3[ZZFARBIG]&Tabelle3[TABELLENo]&Tabelle3[DATBI],0))))))","v":"0000192668"},{"$f":"+IF(Tabelle415[[#This Row],[KNUMH_0]]=\"\",\"\",+INDEX(Tabelle3[BETRAG],MATCH(BK178,Tabelle3[KNUMH],0)))","v":1.5},{"$f":"+IF(Tabelle415[[#This Row],[KNUMH_1]]=\"\",\"\",+INDEX(Tabelle3[BETRAG],MATCH(BL178,Tabelle3[KNUMH],0)))","v":1.95},"9999-12-31",21713]
[null,null,null,null,null,"102Z170MNA",null,null,"KN0031",null,null,0,null,null,null,null,null,"-",null,null,null,null,null,null,null,null,null,null,null,"Vorg.pr.","Vorg.pr.",1.5,1.95,null,null,null,null,null,null,null,null,null,850,null,null,null,null,null,null,null,null,null,"","",null,null,null,null,null,null,0,1,{"$f":"+IF(B179=\"x\",\"\",IF(BB179=\"x\",\"\",IF(AQ179=0,\"\",IF(BO179<=TODAY(),\"\",INDEX(Tabelle3[KNUMH],MATCH(F179&BI179&AQ179&BO179,Tabelle3[BEINH]&Tabelle3[ZZFARBIG]&Tabelle3[TABELLENo]&Tabelle3[DATBI],0))))))","v":"0000192667"},{"$f":"+IF(B179=\"x\",\"\",IF(BB179=\"x\",\"\",IF(AQ179=0,\"\",IF(BO179<=TODAY(),\"\",INDEX(Tabelle3[KNUMH],MATCH(F179&BJ179&AQ179&BO179,Tabelle3[BEINH]&Tabelle3[ZZFARBIG]&Tabelle3[TABELLENo]&Tabelle3[DATBI],0))))))","v":"0000192668"},{"$f":"+IF(Tabelle415[[#This Row],[KNUMH_0]]=\"\",\"\",+INDEX(Tabelle3[BETRAG],MATCH(BK179,Tabelle3[KNUMH],0)))","v":1.5},{"$f":"+IF(Tabelle415[[#This Row],[KNUMH_1]]=\"\",\"\",+INDEX(Tabelle3[BETRAG],MATCH(BL179,Tabelle3[KNUMH],0)))","v":1.95},"9999-12-31",21714]
[null,null,null,null,null,"102Z170MNA",null,null,"KN0031",null,null,0,null,null,null,null,null,"-",null,null,null,null,null,null,null,null,null,null,null,"Vorg.pr.","Vorg.pr.",1.5,1.95,null,null,null,null,null,null,null,null,null,850,null,null,null,null,null,null,null,null,null,"","",null,null,null,null,null,null,0,1,{"$f":"+IF(B180=\"x\",\"\",IF(BB180=\"x\",\"\",IF(AQ180=0,\"\",IF(BO180<=TODAY(),\"\",INDEX(Tabelle3[KNUMH],MATCH(F180&BI180&AQ180&BO180,Tabelle3[BEINH]&Tabelle3[ZZFARBIG]&Tabelle3[TABELLENo]&Tabelle3[DATBI],0))))))","v":"0000192667"},{"$f":"+IF(B180=\"x\",\"\",IF(BB180=\"x\",\"\",IF(AQ180=0,\"\",IF(BO180<=TODAY(),\"\",INDEX(Tabelle3[KNUMH],MATCH(F180&BJ180&AQ180&BO180,Tabelle3[BEINH]&Tabelle3[ZZFARBIG]&Tabelle3[TABELLENo]&Tabelle3[DATBI],0))))))","v":"0000192668"},{"$f":"+IF(Tabelle415[[#This Row],[KNUMH_0]]=\"\",\"\",+INDEX(Tabelle3[BETRAG],MATCH(BK180,Tabelle3[KNUMH],0)))","v":1.5},{"$f":"+IF(Tabelle415[[#This Row],[KNUMH_1]]=\"\",\"\",+INDEX(Tabelle3[BETRAG],MATCH(BL180,Tabelle3[KNUMH],0)))","v":1.95},"9999-12-31",21714]
[null,null,null,null,null,"102Z170MNA",null,null,"KN0031",null,null,0,null,null,null,null,null,"-",null,null,null,null,null,null,null,null,null,null,null,"Vorg.pr.","Vorg.pr.",1.5,1.95,null,null,null,null,null,null,null,null,null,850,null,null,null,null,null,null,null,null,null,"","",null,null,null,null,null,null,0,1,{"$f":"+IF(B181=\"x\",\"\",IF(BB181=\"x\",\"\",IF(AQ181=0,\"\",IF(BO181<=TODAY(),\"\",INDEX(Tabelle3[KNUMH],MATCH(F181&BI181&AQ181&BO181,Tabelle3[BEINH]&Tabelle3[ZZFARBIG]&Tabelle3[TABELLENo]&Tabelle3[DATBI],0))))))","v":"0000192667"},{"$f":"+IF(B181=\"x\",\"\",IF(BB181=\"x\",\"\",IF(AQ181=0,\"\",IF(BO181<=TODAY(),\"\",INDEX(Tabelle3[KNUMH],MATCH(F181&BJ181&AQ181&BO181,Tabelle3[BEINH]&Tabelle3[ZZFARBIG]&Tabelle3[TABELLENo]&Tabelle3[DATBI],0))))))","v":"0000192668"},{"$f":"+IF(Tabelle415[[#This Row],[KNUMH_0]]=\"\",\"\",+INDEX(Tabelle3[BETRAG],MATCH(BK181,Tabelle3[KNUMH],0)))","v":1.5},{"$f":"+IF(Tabelle415[[#This Row],[KNUMH_1]]=\"\",\"\",+INDEX(Tabelle3[BETRAG],MATCH(BL181,Tabelle3[KNUMH],0)))","v":1.95},"9999-12-31",21715]
[null,null,null,null,null,"102Z170MNA",null,null,"KN0031",null,null,0,null,null,null,null,null,"-",null,null,null,null,null,null,null,null,null,null,null,"Vorg.pr.","Vorg.pr.",1.5,1.95,null,null,null,null,null,null,null,null,null,850,null,null,null,null,null,null,null,null,null,"","",null,null,null,null,null,null,0,1,{"$f":"+IF(B182=\"x\",\"\",IF(BB182=\"x\",\"\",IF(AQ182=0,\"\",IF(BO182<=TODAY(),\"\",INDEX(Tabelle3[KNUMH],MATCH(F182&BI182&AQ182&BO182,Tabelle3[BEINH]&Tabelle3[ZZFARBIG]&Tabelle3[TABELLENo]&Tabelle3[DATBI],0))))))","v":"0000192667"},{"$f":"+IF(B182=\"x\",\"\",IF(BB182=\"x\",\"\",IF(AQ182=0,\"\",IF(BO182<=TODAY(),\"\",INDEX(Tabelle3[KNUMH],MATCH(F182&BJ182&AQ182&BO182,Tabelle3[BEINH]&Tabelle3[ZZFARBIG]&Tabelle3[TABELLENo]&Tabelle3[DATBI],0))))))","v":"0000192668"},{"$f":"+IF(Tabelle415[[#This Row],[KNUMH_0]]=\"\",\"\",+INDEX(Tabelle3[BETRAG],MATCH(BK182,Tabelle3[KNUMH],0)))","v":1.5},{"$f":"+IF(Tabelle415[[#This Row],[KNUMH_1]]=\"\",\"\",+INDEX(Tabelle3[BETRAG],MATCH(BL182,Tabelle3[KNUMH],0)))","v":1.95},"9999-12-31",21715]
[null,null,null,null,null,"102Z170MNA",null,null,"KN0330",null,null,"132Q",null,null,null,null,null,"-",null,null,null,null,null,null,null,null,null,null,null,160,160,null,null,null,null,null,null,null,null,null,null,null,866,null,null,null,null,null,null,null,null,null,"","",null,null,null,null,null,null,0,1,{"$f":"+IF(B183=\"x\",\"\",IF(BB183=\"x\",\"\",IF(AQ183=0,\"\",IF(BO183<=TODAY(),\"\",INDEX(Tabelle3[KNUMH],MATCH(F183&BI183&I183&L183&AQ183&BO183,Tabelle3[BEINH]&Tabelle3[ZZFARBIG]&Tabelle3[INHK_KFM]&Tabelle3[AZAFOV]&Tabelle3[TABELLENo]&Tabelle3[DATBI],0))))))","v":{"$error":"#N/A"}},{"$f":"+IF(B183=\"x\",\"\",IF(BB183=\"x\",\"\",IF(AQ183=0,\"\",IF(BO183<=TODAY(),\"\",INDEX(Tabelle3[KNUMH],MATCH(F183&BJ183&I183&L183&AQ183&BO183,Tabelle3[BEINH]&Tabelle3[ZZFARBIG]&Tabelle3[INHK_KFM]&Tabelle3[AZAFOV]&Tabelle3[TABELLENo]&Tabelle3[DATBI],0))))))","v":{"$error":"#N/A"}},{"$f":"+IF(Tabelle415[[#This Row],[KNUMH_0]]=\"\",\"\",+INDEX(Tabelle3[BETRAG],MATCH(BK183,Tabelle3[KNUMH],0)))","v":{"$error":"#N/A"}},{"$f":"+IF(Tabelle415[[#This Row],[KNUMH_1]]=\"\",\"\",+INDEX(Tabelle3[BETRAG],MATCH(BL183,Tabelle3[KNUMH],0)))","v":{"$error":"#N/A"}},"2022-12-31",22124]
[null,null,null,null,null,"102Z170MNA",null,null,"EMTX",null,"EMTX","F237",null,null,null,null,null,"B267",null,null,null,null,null,null,null,null,null,null,null,162.5,162.5,null,null,null,null,null,null,null,null,null,null,null,879,null,null,null,null,null,null,null,null,null,"","",null,null,null,null,null,null,0,1,{"$f":"+IF(B184=\"x\",\"\",IF(BB184=\"x\",\"\",IF(AQ184=0,\"\",IF(BO184<=TODAY(),\"\",INDEX(Tabelle3[KNUMH],MATCH(F184&BI184&K184&L184&R184&AQ184&BO184,Tabelle3[BEINH]&Tabelle3[ZZFARBIG]&Tabelle3[IHKOMP]&Tabelle3[AZAFOV]&Tabelle3[AZAPLZ]&Tabelle3[TABELLENo]&Tabelle3[DATBI],0))))))","v":"0000223140"},{"$f":"+IF(B184=\"x\",\"\",IF(BB184=\"x\",\"\",IF(AQ184=0,\"\",IF(BO184<=TODAY(),\"\",INDEX(Tabelle3[KNUMH],MATCH(F184&BJ184&K184&L184&R184&AQ184&BO184,Tabelle3[BEINH]&Tabelle3[ZZFARBIG]&Tabelle3[IHKOMP]&Tabelle3[AZAFOV]&Tabelle3[AZAPLZ]&Tabelle3[TABELLENo]&Tabelle3[DATBI],0))))))","v":"0000223141"},{"$f":"+IF(Tabelle415[[#This Row],[KNUMH_0]]=\"\",\"\",+INDEX(Tabelle3[BETRAG],MATCH(BK184,Tabelle3[KNUMH],0)))","v":162.5},{"$f":"+IF(Tabelle415[[#This Row],[KNUMH_1]]=\"\",\"\",+INDEX(Tabelle3[BETRAG],MATCH(BL184,Tabelle3[KNUMH],0)))","v":162.5},"2022-12-31",22226]
[null,null,null,null,null,"102Z170MNA",null,null,"KN0053",null,null,0,null,null,null,null,null,"-",null,null,null,null,null,null,null,null,null,null,null,"Vorg.pr.","Vorg.pr.",null,null,null,null,null,null,null,null,null,null,null,0,null,null,null,null,null,null,null,null,null,"","",null,null,null,null,null,null,0,1,{"$f":"+IF(B185=\"x\",\"\",IF(BB185=\"x\",\"\",IF(AQ185=0,\"\",IF(BO185<=TODAY(),\"\",INDEX(Tabelle3[KNUMH],MATCH(F185&BI185&K185&L185&R185&AQ185&BO185,Tabelle3[BEINH]&Tabelle3[ZZFARBIG]&Tabelle3[IHKOMP]&Tabelle3[AZAFOV]&Tabelle3[AZAPLZ]&Tabelle3[TABELLENo]&Tabelle3[DATBI],0))))))","v":""},{"$f":"+IF(B185=\"x\",\"\",IF(BB185=\"x\",\"\",IF(AQ185=0,\"\",IF(BO185<=TODAY(),\"\",INDEX(Tabelle3[KNUMH],MATCH(F185&BJ185&K185&L185&R185&AQ185&BO185,Tabelle3[BEINH]&Tabelle3[ZZFARBIG]&Tabelle3[IHKOMP]&Tabelle3[AZAFOV]&Tabelle3[AZAPLZ]&Tabelle3[TABELLENo]&Tabelle3[DATBI],0))))))","v":""},{"$f":"+IF(Tabelle415[[#This Row],[KNUMH_0]]=\"\",\"\",+INDEX(Tabelle3[BETRAG],MATCH(BK185,Tabelle3[KNUMH],0)))","v":""},{"$f":"+IF(Tabelle415[[#This Row],[KNUMH_1]]=\"\",\"\",+INDEX(Tabelle3[BETRAG],MATCH(BL185,Tabelle3[KNUMH],0)))","v":""},"2022-12-31",22378]

{"sheet":"Z_SAP_TARIFE-3","index":1,"n_rows":182,"n_cols":34,"rows_kept":182,"cut":false,"hidden":false,"merged":[]}
["MANDT","KAPPL","KSCHL","VKORG","BEINH","ZZFARBIG","IHKOMP","INHK_KFM","AZAFOV","KFRST","AZAPLZ","TMOT_KENNZ","SINSBEARB","SI_TYP","SI_SEITEN","DATBI","DATAB","KNUMH","TABELLENo","ANZWDHLG","LOEVM_KO","V","W","X","Y","Z","BETRAG","KONWA","Betrag_SI_25g","Betrag_SI_50g","Betrag_SI_75g","Betrag_SI_100g","Betrag_SI_125g","Betrag_SI_150g"]
["200","JA","ZPRB","6010","102Z170MNA",0,"EMTX",null,"F235",null,"B009",null,null,null,null,"9999-12-31","2022-01-01","0000219930",879,null,"",null,null,null,null,null,1700,"CHF"]
["200","JA","ZPRB","6010","102Z170MNA",0,"EMTX",null,"F235",null,"P065",null,null,null,null,"9999-12-31","2019-01-01","0000182028",879,null,"",null,null,null,null,null,1700,"CHF"]
["200","JA","ZPRB","6010","102Z170MNA",0,"EMTX",null,"F237",null,"B220",null,null,null,null,"9999-12-31","2019-01-01","0000184785",879,null,"",null,null,null,null,null,1440,"CHF"]
["200","JA","ZPRB","6010","102Z170MNA",0,"EMTX",null,"F237",null,"B266",null,null,null,null,"2021-12-31","2021-01-01","0000210997",879,null,"",null,null,null,null,null,162.5,"CHF"]
["200","JA","ZPRB","6010","102Z170MNA",0,"EMTX",null,"F237",null,"B267",null,null,null,null,"2022-12-31","2022-01-01","0000223140",879,null,"",null,null,null,null,null,162.5,"CHF"]
["200","JA","ZPRB","6010","102Z170MNA",0,"EMTXR",null,"F207",null,"B249",null,null,null,null,"9999-12-31","2019-01-01","0000182242",879,null,"",null,null,null,null,null,592,"CHF"]
["200","JA","ZPRB","6010","102Z170MNA",0,"EMTXR",null,"F234",null,"B210",null,null,null,null,"9999-12-31","2019-01-01","0000182248",879,null,"",null,null,null,null,null,200,"CHF"]
["200","JA","ZPRB","6010","102Z170MNA",0,"EMTXR",null,"F245",null,"B209",null,null,null,null,"2022-01-31","2019-01-01","0000182250",879,null,"",null,null,null,null,null,296,"CHF"]
["200","JA","ZPRB","6010","102Z170MNA",0,"EMTXR",null,"F245",null,"B209",null,null,null,null,"9999-12-31","2022-02-01","0000219766",879,null,"",null,null,null,null,null,296,"CHF"]
["200","JA","ZPRB","6010","102Z170MNA",0,"EMTXR",null,"F245",null,"B249",null,null,null,null,"9999-12-31","2022-02-01","0000219850",879,null,"",null,null,null,null,null,296,"CHF"]
["200","JA","ZPRB","6010","102Z170MNA",0,"EMTXR",null,"F314",null,"B249",null,null,null,null,"9999-12-31","2019-01-01","0000184812",879,null,"",null,null,null,null,null,592,"CHF"]
["200","JA","ZPRB","6010","102Z170MNA",1,"EMTX",null,"F235",null,"B009",null,null,null,null,"9999-12-31","2022-01-01","0000219931",879,null,"",null,null,null,null,null,1700,"CHF"]
["200","JA","ZPRB","6010","102Z170MNA",1,"EMTX",null,"F235",null,"P065",null,null,null,null,"9999-12-31","2019-01-01","0000182252",879,null,"",null,null,null,null,null,1700,"CHF"]
["200","JA","ZPRB","6010","102Z170MNA",1,"EMTX",null,"F237",null,"B220",null,null,null,null,"9999-12-31","2019-01-01","0000184803",879,null,"",null,null,null,null,null,1440,"CHF"]
["200","JA","ZPRB","6010","102Z170MNA",1,"EMTX",null,"F237",null,"B266",null,null,null,null,"2021-12-31","2021-01-01","0000210998",879,null,"",null,null,null,null,null,162.5,"CHF"]
["200","JA","ZPRB","6010","102Z170MNA",1,"EMTX",null,"F237",null,"B267",null,null,null,null,"2022-12-31","2022-01-01","0000223141",879,null,"",null,null,null,null,null,162.5,"CHF"]
["200","JA","ZPRB","6010","102Z170MNA",1,"EMTXR",null,"F207",null,"B249",null,null,null,null,"9999-12-31","2019-01-01","0000182253",879,null,"",null,null,null,null,null,592,"CHF"]
["200","JA","ZPRB","6010","102Z170MNA",1,"EMTXR",null,"F234",null,"B210",null,null,null,null,"9999-12-31","2019-01-01","0000184811",879,null,"",null,null,null,null,null,200,"CHF"]
["200","JA","ZPRB","6010","102Z170MNA",1,"EMTXR",null,"F245",null,"B209",null,null,null,null,"2022-01-31","2019-01-01","0000182254",879,null,"",null,null,null,null,null,296,"CHF"]
["200","JA","ZPRB","6010","102Z170MNA",1,"EMTXR",null,"F245",null,"B209",null,null,null,null,"9999-12-31","2022-02-01","0000219767",879,null,"",null,null,null,null,null,296,"CHF"]
["200","JA","ZPRB","6010","102Z170MNA",1,"EMTXR",null,"F245",null,"B249",null,null,null,null,"9999-12-31","2022-02-01","0000219851",879,null,"",null,null,null,null,null,296,"CHF"]
["200","JA","ZPRB","6010","102Z170MNA",1,"EMTXR",null,"F314",null,"B249",null,null,null,null,"9999-12-31","2019-01-01","0000184809",879,null,"",null,null,null,null,null,592,"CHF"]
["200","JA","ZPRB","6010","102Z170MNA",0,"EMTX",null,null,null,"B220",null,null,null,null,"9999-12-31","2021-01-01","0000208739",878,null,"",null,null,null,null,null,2880,"CHF"]
["200","JA","ZPRB","6010","102Z170MNA",1,"EMTX",null,null,null,"B220",null,null,null,null,"9999-12-31","2021-01-01","0000208740",878,null,"",null,null,null,null,null,2880,"CHF"]
["200","JA","ZPRB","6010","102Z170MNA",0,null,null,11,null,null,null,null,null,null,"2022-12-31","2019-01-01","0000184002",867,null,"",null,null,null,null,null,8630,"CHF"]
["200","JA","ZPRB","6010","102Z170MNA",0,null,null,11,null,null,null,null,null,null,"9999-12-31","2023-01-01","0000227018",867,null,"",null,null,null,null,null,7700,"CHF"]
["200","JA","ZPRB","6010","102Z170MNA",0,null,null,21,null,null,null,null,null,null,"9999-12-31","2023-01-01","0000228039",867,null,"",null,null,null,null,null,15400,"CHF"]
["200","JA","ZPRB","6010","102Z170MNA",0,null,null,"12Q",null,null,null,null,null,null,"2022-12-31","2019-01-01","0000183999",867,null,"",null,null,null,null,null,4290,"CHF"]
["200","JA","ZPRB","6010","102Z170MNA",0,null,null,"12Q",null,null,null,null,null,null,"9999-12-31","2023-01-01","0000227019",867,null,"",null,null,null,null,null,4250,"CHF"]
["200","JA","ZPRB","6010","102Z170MNA",0,null,null,"14B",null,null,null,null,null,null,"9999-12-31","2023-01-01","0000228079",867,null,"",null,null,null,null,null,2125,"CHF"]
["200","JA","ZPRB","6010","102Z170MNA",0,null,null,"14Q",null,null,null,null,null,null,"9999-12-31","2023-01-01","0000228043",867,null,"",null,null,null,null,null,2125,"CHF"]
["200","JA","ZPRB","6010","102Z170MNA",1,null,null,11,null,null,null,null,null,null,"2022-12-31","2019-01-01","0000181472",867,null,"",null,null,null,null,null,8630,"CHF"]
["200","JA","ZPRB","6010","102Z170MNA",1,null,null,11,null,null,null,null,null,null,"9999-12-31","2023-01-01","0000227020",867,null,"",null,null,null,null,null,7700,"CHF"]
["200","JA","ZPRB","6010","102Z170MNA",1,null,null,21,null,null,null,null,null,null,"9999-12-31","2023-01-01","0000228040",867,null,"",null,null,null,null,null,15400,"CHF"]
["200","JA","ZPRB","6010","102Z170MNA",1,null,null,"12Q",null,null,null,null,null,null,"2022-12-31","2019-01-01","0000181263",867,null,"",null,null,null,null,null,4290,"CHF"]
["200","JA","ZPRB","6010","102Z170MNA",1,null,null,"12Q",null,null,null,null,null,null,"9999-12-31","2023-01-01","0000227021",867,null,"",null,null,null,null,null,4250,"CHF"]
["200","JA","ZPRB","6010","102Z170MNA",1,null,null,"14B",null,null,null,null,null,null,"9999-12-31","2023-01-01","0000228080",867,null,"",null,null,null,null,null,2125,"CHF"]
["200","JA","ZPRB","6010","102Z170MNA",1,null,null,"14Q",null,null,null,null,null,null,"9999-12-31","2023-01-01","0000228044",867,null,"",null,null,null,null,null,2125,"CHF"]
["200","JA","ZPRB","6010","102Z170MNA",0,null,"EMPR",11,null,null,null,null,null,null,"2022-12-31","2019-01-01","0000193126",866,null,"",null,null,null,null,null,6098,"CHF"]
["200","JA","ZPRB","6010","102Z170MNA",0,null,"EMPR","12Q",null,null,null,null,null,null,"2022-12-31","2019-01-01","0000193128",866,null,"",null,null,null,null,null,3224,"CHF"]
["200","JA","ZPRB","6010","102Z170MNA",0,null,"EMTX","14Q",null,null,null,null,null,null,"9999-12-31","2023-01-01","0000228047",866,null,"",null,null,null,null,null,2750,"CHF"]
["200","JA","ZPRB","6010","102Z170MNA",0,null,"EMTXPR","12Q",null,null,null,null,null,null,"2015-01-01","2015-01-01","0000227026",866,null,"",null,null,null,null,null,5500,"CHF"]
["200","JA","ZPRB","6010","102Z170MNA",0,null,"EMTXPR","12Q",null,null,null,null,null,null,"2022-12-31","2019-01-01","0000193131",866,null,"",null,null,null,null,null,3818,"CHF"]
["200","JA","ZPRB","6010","102Z170MNA",0,null,"EMVERA","F353",null,null,null,null,null,null,"9999-12-31","2019-01-01","0000194060",866,null,"",null,null,null,null,null,300,"CHF"]
["200","JA","ZPRB","6010","102Z170MNA",0,null,"EMVERA","F354",null,null,null,null,null,null,"9999-12-31","2019-01-01","0000194061",866,null,"",null,null,null,null,null,300,"CHF"]
["200","JA","ZPRB","6010","102Z170MNA",0,null,"KN0201",11,null,null,null,null,null,null,"9999-12-31","2021-01-01","0000212241",866,null,"",null,null,null,null,null,3890,"CHF"]
["200","JA","ZPRB","6010","102Z170MNA",0,null,"KN0201","116L",null,null,null,null,null,null,"9999-12-31","2021-01-01","0000212242",866,null,"",null,null,null,null,null,290,"CHF"]
["200","JA","ZPRB","6010","102Z170MNA",0,null,"KN0201","116Q",null,null,null,null,null,null,"9999-12-31","2021-01-01","0000212243",866,null,"",null,null,null,null,null,290,"CHF"]
["200","JA","ZPRB","6010","102Z170MNA",0,null,"KN0201","12Q",null,null,null,null,null,null,"9999-12-31","2021-01-01","0000212244",866,null,"",null,null,null,null,null,1950,"CHF"]
["200","JA","ZPRB","6010","102Z170MNA",0,null,"KN0201","132Q",null,null,null,null,null,null,"9999-12-31","2021-01-01","0000212245",866,null,"",null,null,null,null,null,160,"CHF"]
["200","JA","ZPRB","6010","102Z170MNA",0,null,"KN0201","14B",null,null,null,null,null,null,"9999-12-31","2021-01-01","0000212246",866,null,"",null,null,null,null,null,1030,"CHF"]
["200","JA","ZPRB","6010","102Z170MNA",0,null,"KN0201","14Q",null,null,null,null,null,null,"9999-12-31","2021-01-01","0000212247",866,null,"",null,null,null,null,null,1030,"CHF"]
["200","JA","ZPRB","6010","102Z170MNA",0,null,"KN0201","18L",null,null,null,null,null,null,"9999-12-31","2021-01-01","0000212248",866,null,"",null,null,null,null,null,550,"CHF"]
["200","JA","ZPRB","6010","102Z170MNA",0,null,"KN0201","18Q",null,null,null,null,null,null,"9999-12-31","2021-01-01","0000212249",866,null,"",null,null,null,null,null,550,"CHF"]
["200","JA","ZPRB","6010","102Z170MNA",0,null,"KN0216",11,null,null,null,null,null,null,"9999-12-31","2022-01-01","0000223789",866,null,"",null,null,null,null,null,3890,"CHF"]
["200","JA","ZPRB","6010","102Z170MNA",0,null,"KN0216","116L",null,null,null,null,null,null,"9999-12-31","2022-01-01","0000223790",866,null,"",null,null,null,null,null,290,"CHF"]
["200","JA","ZPRB","6010","102Z170MNA",0,null,"KN0216","116Q",null,null,null,null,null,null,"9999-12-31","2022-01-01","0000223791",866,null,"",null,null,null,null,null,290,"CHF"]
["200","JA","ZPRB","6010","102Z170MNA",0,null,"KN0216","12Q",null,null,null,null,null,null,"9999-12-31","2022-01-01","0000223792",866,null,"",null,null,null,null,null,1950,"CHF"]
["200","JA","ZPRB","6010","102Z170MNA",0,null,"KN0216","132Q",null,null,null,null,null,null,"9999-12-31","2022-01-01","0000223793",866,null,"",null,null,null,null,null,160,"CHF"]
["200","JA","ZPRB","6010","102Z170MNA",0,null,"KN0216","14B",null,null,null,null,null,null,"9999-12-31","2022-01-01","0000223794",866,null,"",null,null,null,null,null,1030,"CHF"]
["200","JA","ZPRB","6010","102Z170MNA",0,null,"KN0216","14Q",null,null,null,null,null,null,"9999-12-31","2022-01-01","0000223795",866,null,"",null,null,null,null,null,1030,"CHF"]
["200","JA","ZPRB","6010","102Z170MNA",0,null,"KN0216","18L",null,null,null,null,null,null,"9999-12-31","2022-01-01","0000223796",866,null,"",null,null,null,null,null,550,"CHF"]
["200","JA","ZPRB","6010","102Z170MNA",0,null,"KN0216","18Q",null,null,null,null,null,null,"9999-12-31","2022-01-01","0000223797",866,null,"",null,null,null,null,null,550,"CHF"]
["200","JA","ZPRB","6010","102Z170MNA",0,null,"KN0329","116B",null,null,null,null,null,null,"9999-12-31","2022-01-01","0000222292",866,null,"",null,null,null,null,null,290,"CHF"]
["200","JA","ZPRB","6010","102Z170MNA",0,null,"KN0329","116Q",null,null,null,null,null,null,"9999-12-31","2022-01-01","0000222293",866,null,"",null,null,null,null,null,290,"CHF"]
["200","JA","ZPRB","6010","102Z170MNA",0,null,"KN0329","132Q",null,null,null,null,null,null,"9999-12-31","2022-01-01","0000222294",866,null,"",null,null,null,null,null,160,"CHF"]
["200","JA","ZPRB","6010","102Z170MNA",0,null,"KN0329","14B",null,null,null,null,null,null,"9999-12-31","2022-01-01","0000222295",866,null,"",null,null,null,null,null,1030,"CHF"]
["200","JA","ZPRB","6010","102Z170MNA",0,null,"KN0329","14Q",null,null,null,null,null,null,"9999-12-31","2022-01-01","0000222296",866,null,"",null,null,null,null,null,1030,"CHF"]
["200","JA","ZPRB","6010","102Z170MNA",0,null,"KN0329","18L",null,null,null,null,null,null,"9999-12-31","2022-01-01","0000222297",866,null,"",null,null,null,null,null,550,"CHF"]
["200","JA","ZPRB","6010","102Z170MNA",0,null,"KN0329","18Q",null,null,null,null,null,null,"9999-12-31","2022-01-01","0000222298",866,null,"",null,null,null,null,null,550,"CHF"]
["200","JA","ZPRB","6010","102Z170MNA",0,null,"KN0330","116B",null,null,null,null,null,null,"9999-12-31","2022-01-01","0000222306",866,null,"",null,null,null,null,null,290,"CHF"]
["200","JA","ZPRB","6010","102Z170MNA",0,null,"KN0330","116Q",null,null,null,null,null,null,"9999-12-31","2022-01-01","0000222307",866,null,"",null,null,null,null,null,290,"CHF"]
["200","JA","ZPRB","6010","102Z170MNA",0,null,"KN0330","132Q",null,null,null,null,null,null,"9999-12-31","2022-01-01","0000222308",866,null,"",null,null,null,null,null,160,"CHF"]
["200","JA","ZPRB","6010","102Z170MNA",0,null,"KN0330","14B",null,null,null,null,null,null,"9999-12-31","2022-01-01","0000222309",866,null,"",null,null,null,null,null,1030,"CHF"]
["200","JA","ZPRB","6010","102Z170MNA",0,null,"KN0330","14Q",null,null,null,null,null,null,"9999-12-31","2022-01-01","0000222310",866,null,"",null,null,null,null,null,1030,"CHF"]
["200","JA","ZPRB","6010","102Z170MNA",0,null,"KN0330","18L",null,null,null,null,null,null,"9999-12-31","2022-01-01","0000222311",866,null,"",null,null,null,null,null,550,"CHF"]
["200","JA","ZPRB","6010","102Z170MNA",0,null,"KN0330","18Q",null,null,null,null,null,null,"9999-12-31","2022-01-01","0000222312",866,null,"",null,null,null,null,null,550,"CHF"]
["200","JA","ZPRB","6010","102Z170MNA",0,null,"PN0002",11,null,null,null,null,null,null,"9999-12-31","2021-01-01","0000209795",866,null,"",null,null,null,null,null,3890,"CHF"]
["200","JA","ZPRB","6010","102Z170MNA",0,null,"PN0002","116L",null,null,null,null,null,null,"9999-12-31","2021-01-01","0000209796",866,null,"",null,null,null,null,null,290,"CHF"]
["200","JA","ZPRB","6010","102Z170MNA",0,null,"PN0002","116Q",null,null,null,null,null,null,"9999-12-31","2021-01-01","0000209797",866,null,"",null,null,null,null,null,290,"CHF"]
["200","JA","ZPRB","6010","102Z170MNA",0,null,"PN0002","12Q",null,null,null,null,null,null,"9999-12-31","2021-01-01","0000209798",866,null,"",null,null,null,null,null,1950,"CHF"]
["200","JA","ZPRB","6010","102Z170MNA",0,null,"PN0002","132Q",null,null,null,null,null,null,"9999-12-31","2021-01-01","0000209799",866,null,"",null,null,null,null,null,160,"CHF"]
["200","JA","ZPRB","6010","102Z170MNA",0,null,"PN0002","14B",null,null,null,null,null,null,"9999-12-31","2021-01-01","0000209800",866,null,"",null,null,null,null,null,1030,"CHF"]
["200","JA","ZPRB","6010","102Z170MNA",0,null,"PN0002","14Q",null,null,null,null,null,null,"9999-12-31","2021-01-01","0000209801",866,null,"",null,null,null,null,null,1030,"CHF"]
["200","JA","ZPRB","6010","102Z170MNA",0,null,"PN0002","18L",null,null,null,null,null,null,"9999-12-31","2021-01-01","0000209802",866,null,"",null,null,null,null,null,550,"CHF"]
["200","JA","ZPRB","6010","102Z170MNA",0,null,"PN0002","18Q",null,null,null,null,null,null,"9999-12-31","2021-01-01","0000209803",866,null,"",null,null,null,null,null,550,"CHF"]
["200","JA","ZPRB","6010","102Z170MNA",1,null,"EMPR",11,null,null,null,null,null,null,"2022-12-31","2019-01-01","0000193133",866,null,"",null,null,null,null,null,6098,"CHF"]
["200","JA","ZPRB","6010","102Z170MNA",1,null,"EMPR","12Q",null,null,null,null,null,null,"2022-12-31","2019-01-01","0000193134",866,null,"",null,null,null,null,null,3224,"CHF"]
["200","JA","ZPRB","6010","102Z170MNA",1,null,"EMTX","14Q",null,null,null,null,null,null,"9999-12-31","2023-01-01","0000228048",866,null,"",null,null,null,null,null,2750,"CHF"]
["200","JA","ZPRB","6010","102Z170MNA",1,null,"EMTXPR","12Q",null,null,null,null,null,null,"2015-01-01","2015-01-01","0000227027",866,null,"",null,null,null,null,null,5500,"CHF"]
["200","JA","ZPRB","6010","102Z170MNA",1,null,"EMTXPR","12Q",null,null,null,null,null,null,"2022-12-31","2019-01-01","0000193137",866,null,"",null,null,null,null,null,3818,"CHF"]
["200","JA","ZPRB","6010","102Z170MNA",1,null,"EMVERA","F353",null,null,null,null,null,null,"9999-12-31","2019-01-01","0000194062",866,null,"",null,null,null,null,null,300,"CHF"]
["200","JA","ZPRB","6010","102Z170MNA",1,null,"EMVERA","F354",null,null,null,null,null,null,"9999-12-31","2019-01-01","0000194063",866,null,"",null,null,null,null,null,300,"CHF"]
["200","JA","ZPRB","6010","102Z170MNA",1,null,"KN0201",11,null,null,null,null,null,null,"9999-12-31","2021-01-01","0000212250",866,null,"",null,null,null,null,null,3890,"CHF"]
["200","JA","ZPRB","6010","102Z170MNA",1,null,"KN0201","116L",null,null,null,null,null,null,"9999-12-31","2021-01-01","0000212251",866,null,"",null,null,null,null,null,290,"CHF"]
["200","JA","ZPRB","6010","102Z170MNA",1,null,"KN0201","116Q",null,null,null,null,null,null,"9999-12-31","2021-01-01","0000212252",866,null,"",null,null,null,null,null,290,"CHF"]
["200","JA","ZPRB","6010","102Z170MNA",1,null,"KN0201","12Q",null,null,null,null,null,null,"9999-12-31","2021-01-01","0000212253",866,null,"",null,null,null,null,null,1950,"CHF"]
["200","JA","ZPRB","6010","102Z170MNA",1,null,"KN0201","132Q",null,null,null,null,null,null,"9999-12-31","2021-01-01","0000212254",866,null,"",null,null,null,null,null,160,"CHF"]
["200","JA","ZPRB","6010","102Z170MNA",1,null,"KN0201","14B",null,null,null,null,null,null,"9999-12-31","2021-01-01","0000212255",866,null,"",null,null,null,null,null,1030,"CHF"]
["200","JA","ZPRB","6010","102Z170MNA",1,null,"KN0201","14Q",null,null,null,null,null,null,"9999-12-31","2021-01-01","0000212256",866,null,"",null,null,null,null,null,1030,"CHF"]
["200","JA","ZPRB","6010","102Z170MNA",1,null,"KN0201","18L",null,null,null,null,null,null,"9999-12-31","2021-01-01","0000212257",866,null,"",null,null,null,null,null,550,"CHF"]
["200","JA","ZPRB","6010","102Z170MNA",1,null,"KN0201","18Q",null,null,null,null,null,null,"9999-12-31","2021-01-01","0000212258",866,null,"",null,null,null,null,null,550,"CHF"]
["200","JA","ZPRB","6010","102Z170MNA",1,null,"KN0216",11,null,null,null,null,null,null,"9999-12-31","2022-01-01","0000223798",866,null,"",null,null,null,null,null,3890,"CHF"]
["200","JA","ZPRB","6010","102Z170MNA",1,null,"KN0216","116L",null,null,null,null,null,null,"9999-12-31","2022-01-01","0000223799",866,null,"",null,null,null,null,null,290,"CHF"]
["200","JA","ZPRB","6010","102Z170MNA",1,null,"KN0216","116Q",null,null,null,null,null,null,"9999-12-31","2022-01-01","0000223800",866,null,"",null,null,null,null,null,290,"CHF"]
["200","JA","ZPRB","6010","102Z170MNA",1,null,"KN0216","12Q",null,null,null,null,null,null,"9999-12-31","2022-01-01","0000223801",866,null,"",null,null,null,null,null,1950,"CHF"]
["200","JA","ZPRB","6010","102Z170MNA",1,null,"KN0216","132Q",null,null,null,null,null,null,"9999-12-31","2022-01-01","0000223802",866,null,"",null,null,null,null,null,160,"CHF"]
["200","JA","ZPRB","6010","102Z170MNA",1,null,"KN0216","14B",null,null,null,null,null,null,"9999-12-31","2022-01-01","0000223803",866,null,"",null,null,null,null,null,1030,"CHF"]
["200","JA","ZPRB","6010","102Z170MNA",1,null,"KN0216","14Q",null,null,null,null,null,null,"9999-12-31","2022-01-01","0000223804",866,null,"",null,null,null,null,null,1030,"CHF"]
["200","JA","ZPRB","6010","102Z170MNA",1,null,"KN0216","18L",null,null,null,null,null,null,"9999-12-31","2022-01-01","0000223805",866,null,"",null,null,null,null,null,550,"CHF"]
["200","JA","ZPRB","6010","102Z170MNA",1,null,"KN0216","18Q",null,null,null,null,null,null,"9999-12-31","2022-01-01","0000223806",866,null,"",null,null,null,null,null,550,"CHF"]
["200","JA","ZPRB","6010","102Z170MNA",1,null,"KN0329","116B",null,null,null,null,null,null,"9999-12-31","2022-01-01","0000222299",866,null,"",null,null,null,null,null,290,"CHF"]
["200","JA","ZPRB","6010","102Z170MNA",1,null,"KN0329","116Q",null,null,null,null,null,null,"9999-12-31","2022-01-01","0000222300",866,null,"",null,null,null,null,null,290,"CHF"]
["200","JA","ZPRB","6010","102Z170MNA",1,null,"KN0329","132Q",null,null,null,null,null,null,"9999-12-31","2022-01-01","0000222301",866,null,"",null,null,null,null,null,160,"CHF"]
["200","JA","ZPRB","6010","102Z170MNA",1,null,"KN0329","14B",null,null,null,null,null,null,"9999-12-31","2022-01-01","0000222302",866,null,"",null,null,null,null,null,1030,"CHF"]
["200","JA","ZPRB","6010","102Z170MNA",1,null,"KN0329","14Q",null,null,null,null,null,null,"9999-12-31","2022-01-01","0000222303",866,null,"",null,null,null,null,null,1030,"CHF"]
["200","JA","ZPRB","6010","102Z170MNA",1,null,"KN0329","18L",null,null,null,null,null,null,"9999-12-31","2022-01-01","0000222304",866,null,"",null,null,null,null,null,550,"CHF"]
["200","JA","ZPRB","6010","102Z170MNA",1,null,"KN0329","18Q",null,null,null,null,null,null,"9999-12-31","2022-01-01","0000222305",866,null,"",null,null,null,null,null,550,"CHF"]
["200","JA","ZPRB","6010","102Z170MNA",1,null,"KN0330","116B",null,null,null,null,null,null,"9999-12-31","2022-01-01","0000222313",866,null,"",null,null,null,null,null,290,"CHF"]
["200","JA","ZPRB","6010","102Z170MNA",1,null,"KN0330","116Q",null,null,null,null,null,null,"9999-12-31","2022-01-01","0000222314",866,null,"",null,null,null,null,null,290,"CHF"]
["200","JA","ZPRB","6010","102Z170MNA",1,null,"KN0330","132Q",null,null,null,null,null,null,"9999-12-31","2022-01-01","0000222315",866,null,"",null,null,null,null,null,160,"CHF"]
["200","JA","ZPRB","6010","102Z170MNA",1,null,"KN0330","14B",null,null,null,null,null,null,"9999-12-31","2022-01-01","0000222316",866,null,"",null,null,null,null,null,1030,"CHF"]
["200","JA","ZPRB","6010","102Z170MNA",1,null,"KN0330","14Q",null,null,null,null,null,null,"9999-12-31","2022-01-01","0000222317",866,null,"",null,null,null,null,null,1030,"CHF"]
["200","JA","ZPRB","6010","102Z170MNA",1,null,"KN0330","18L",null,null,null,null,null,null,"9999-12-31","2022-01-01","0000222318",866,null,"",null,null,null,null,null,550,"CHF"]
["200","JA","ZPRB","6010","102Z170MNA",1,null,"KN0330","18Q",null,null,null,null,null,null,"9999-12-31","2022-01-01","0000222319",866,null,"",null,null,null,null,null,550,"CHF"]
["200","JA","ZPRB","6010","102Z170MNA",1,null,"PN0002",11,null,null,null,null,null,null,"9999-12-31","2021-01-01","0000209804",866,null,"",null,null,null,null,null,3890,"CHF"]
["200","JA","ZPRB","6010","102Z170MNA",1,null,"PN0002","116L",null,null,null,null,null,null,"9999-12-31","2021-01-01","0000209805",866,null,"",null,null,null,null,null,290,"CHF"]
["200","JA","ZPRB","6010","102Z170MNA",1,null,"PN0002","116Q",null,null,null,null,null,null,"9999-12-31","2021-01-01","0000209806",866,null,"",null,null,null,null,null,290,"CHF"]
["200","JA","ZPRB","6010","102Z170MNA",1,null,"PN0002","12Q",null,null,null,null,null,null,"9999-12-31","2021-01-01","0000209807",866,null,"",null,null,null,null,null,1950,"CHF"]
["200","JA","ZPRB","6010","102Z170MNA",1,null,"PN0002","132Q",null,null,null,null,null,null,"9999-12-31","2021-01-01","0000209808",866,null,"",null,null,null,null,null,160,"CHF"]
["200","JA","ZPRB","6010","102Z170MNA",1,null,"PN0002","14B",null,null,null,null,null,null,"9999-12-31","2021-01-01","0000209809",866,null,"",null,null,null,null,null,1030,"CHF"]
["200","JA","ZPRB","6010","102Z170MNA",1,null,"PN0002","14Q",null,null,null,null,null,null,"9999-12-31","2021-01-01","0000209810",866,null,"",null,null,null,null,null,1030,"CHF"]
["200","JA","ZPRB","6010","102Z170MNA",1,null,"PN0002","18L",null,null,null,null,null,null,"9999-12-31","2021-01-01","0000209811",866,null,"",null,null,null,null,null,550,"CHF"]
["200","JA","ZPRB","6010","102Z170MNA",1,null,"PN0002","18Q",null,null,null,null,null,null,"9999-12-31","2021-01-01","0000209812",866,null,"",null,null,null,null,null,550,"CHF"]
["200","JA","ZPRB","6010","102Z170MNA",0,"EMTX",null,null,null,null,null,null,null,null,"2022-12-31","2019-01-01","0000180654",859,null,"",null,null,null,null,null,2.4,"CHF"]
["200","JA","ZPRB","6010","102Z170MNA",0,"EMTX",null,null,null,null,null,null,null,null,"9999-12-31","2023-01-01","0000227684",859,null,"",null,null,null,null,null,2.5299999999999998,"CHF"]
["200","JA","ZPRB","6010","102Z170MNA",0,"EMTXR",null,null,null,null,null,null,null,null,"9999-12-31","2019-01-01","0000183131",859,null,"",null,null,null,null,null,4,"CHF"]
["200","JA","ZPRB","6010","102Z170MNA",0,"ST",null,null,null,null,null,null,null,null,"2020-05-31","2019-01-01","0000199570",859,null,"",null,null,null,null,null,2.2000000000000002,"CHF"]
["200","JA","ZPRB","6010","102Z170MNA",0,"ST",null,null,null,null,null,null,null,null,"9999-12-31","2020-06-01","0000199532",859,null,"",null,null,null,null,null,2.09,"CHF"]
["200","JA","ZPRB","6010","102Z170MNA",1,"EMTX",null,null,null,null,null,null,null,null,"2022-12-31","2019-01-01","0000183135",859,null,"",null,null,null,null,null,2.4,"CHF"]
["200","JA","ZPRB","6010","102Z170MNA",1,"EMTX",null,null,null,null,null,null,null,null,"9999-12-31","2023-01-01","0000227685",859,null,"",null,null,null,null,null,2.5299999999999998,"CHF"]
["200","JA","ZPRB","6010","102Z170MNA",1,"EMTXR",null,null,null,null,null,null,null,null,"9999-12-31","2019-01-01","0000180656",859,null,"",null,null,null,null,null,4,"CHF"]
["200","JA","ZPRB","6010","102Z170MNA",1,"ST",null,null,null,null,null,null,null,null,"2020-05-31","2019-01-01","0000199572",859,null,"",null,null,null,null,null,2.2000000000000002,"CHF"]
["200","JA","ZPRB","6010","102Z170MNA",1,"ST",null,null,null,null,null,null,null,null,"9999-12-31","2020-06-01","0000199533",859,null,"",null,null,null,null,null,2.09,"CHF"]
["200","JA","ZPRB","6010","102Z170MNA",0,null,"EMAM",null,null,null,null,null,null,null,"2020-09-30","2019-01-01","0000199649",858,null,"",null,null,null,null,null,1.08,"CHF"]
["200","JA","ZPRB","6010","102Z170MNA",0,null,"EMAM",null,null,null,null,null,null,null,"2022-02-28","2020-10-01","0000204088",858,null,"",null,null,null,null,null,1.08,"CHF"]
["200","JA","ZPRB","6010","102Z170MNA",0,null,"EMAM",null,null,null,null,null,null,null,"9999-12-31","2022-03-01","0000220834",858,null,"",null,null,null,null,null,1.08,"CHF"]
["200","JA","ZPRB","6010","102Z170MNA",0,null,"IMK00",null,null,null,null,null,null,null,"2021-12-31","2019-01-01","0000199682",858,null,"",null,null,null,null,null,1.5,"CHF"]
["200","JA","ZPRB","6010","102Z170MNA",0,null,"IMM00",null,null,null,null,null,null,null,"2021-12-31","2019-01-01","0000199679",858,null,"",null,null,null,null,null,1.5,"CHF"]
["200","JA","ZPRB","6010","102Z170MNA",0,null,"KN0027",null,null,null,null,null,null,null,"9999-12-31","2019-01-01","0000199676",858,null,"",null,null,null,null,null,1.6,"CHF"]
["200","JA","ZPRB","6010","102Z170MNA",0,null,"KN0053",null,null,null,null,null,null,null,"9999-12-31","2019-01-01","0000204010",858,null,"",null,null,null,null,null,1,"CHF"]
["200","JA","ZPRB","6010","102Z170MNA",0,null,"KN0181",null,null,null,null,null,null,null,"2021-12-31","2019-01-01","0000206052",858,null,"",null,null,null,null,null,1.95,"CHF"]
["200","JA","ZPRB","6010","102Z170MNA",0,null,"STAN",null,null,null,null,null,null,null,"2021-12-31","2020-06-01","0000199674",858,null,"",null,null,null,null,null,2.09,"CHF"]
["200","JA","ZPRB","6010","102Z170MNA",1,null,"EMAM",null,null,null,null,null,null,null,"2021-12-31","2019-01-01","0000199672",858,null,"",null,null,null,null,null,1.5,"CHF"]
["200","JA","ZPRB","6010","102Z170MNA",1,null,"EMAM",null,null,null,null,null,null,null,"9999-12-31","2022-03-01","0000220835",858,null,"",null,null,null,null,null,1.5,"CHF"]
["200","JA","ZPRB","6010","102Z170MNA",1,null,"IMK00",null,null,null,null,null,null,null,"2021-12-31","2019-01-01","0000199670",858,null,"",null,null,null,null,null,1.95,"CHF"]
["200","JA","ZPRB","6010","102Z170MNA",1,null,"IMM00",null,null,null,null,null,null,null,"2021-12-31","2019-01-01","0000199668",858,null,"",null,null,null,null,null,1.95,"CHF"]
["200","JA","ZPRB","6010","102Z170MNA",1,null,"KN0027",null,null,null,null,null,null,null,"9999-12-31","2019-01-01","0000199667",858,null,"",null,null,null,null,null,2.0499999999999998,"CHF"]
["200","JA","ZPRB","6010","102Z170MNA",1,null,"KN0053",null,null,null,null,null,null,null,"9999-12-31","2019-01-01","0000204011",858,null,"",null,null,null,null,null,1,"CHF"]
["200","JA","ZPRB","6010","102Z170MNA",1,null,"KN0181",null,null,null,null,null,null,null,"2021-12-31","2019-01-01","0000206053",858,null,"",null,null,null,null,null,1.95,"CHF"]
["200","JA","ZPRB","6010","102Z170MNA",1,null,"STAN",null,null,null,null,null,null,null,"2021-12-31","2020-06-01","0000199665",858,null,"",null,null,null,null,null,2.09,"CHF"]
["200","JA","ZPRB","6010","102Z170MNA",0,null,null,"F347",null,"B209",null,null,null,null,"9999-12-31","2019-01-01","0000191825",857,null,"",null,null,null,null,null,592,"CHF"]
["200","JA","ZPRB","6010","102Z170MNA",0,null,null,"F347",null,"B249",null,null,null,null,"9999-12-31","2019-01-01","0000191826",857,null,"",null,null,null,null,null,592,"CHF"]
["200","JA","ZPRB","6010","102Z170MNA",0,null,null,"F348",null,"B209",null,null,null,null,"9999-12-31","2019-01-01","0000191827",857,null,"",null,null,null,null,null,296,"CHF"]
["200","JA","ZPRB","6010","102Z170MNA",0,null,null,"F348",null,"B249",null,null,null,null,"9999-12-31","2019-01-01","0000191828",857,null,"",null,null,null,null,null,296,"CHF"]
["200","JA","ZPRB","6010","102Z170MNA",0,null,null,"F349",null,"B209",null,null,null,null,"9999-12-31","2019-01-01","0000191830",857,null,"",null,null,null,null,null,592,"CHF"]
["200","JA","ZPRB","6010","102Z170MNA",0,null,null,"F349",null,"B249",null,null,null,null,"9999-12-31","2019-01-01","0000191829",857,null,"",null,null,null,null,null,592,"CHF"]
["200","JA","ZPRB","6010","102Z170MNA",1,null,null,"F347",null,"B209",null,null,null,null,"9999-12-31","2019-01-01","0000191831",857,null,"",null,null,null,null,null,592,"CHF"]
["200","JA","ZPRB","6010","102Z170MNA",1,null,null,"F347",null,"B249",null,null,null,null,"9999-12-31","2019-01-01","0000191832",857,null,"",null,null,null,null,null,592,"CHF"]
["200","JA","ZPRB","6010","102Z170MNA",1,null,null,"F348",null,"B209",null,null,null,null,"9999-12-31","2019-01-01","0000191834",857,null,"",null,null,null,null,null,296,"CHF"]
["200","JA","ZPRB","6010","102Z170MNA",1,null,null,"F348",null,"B249",null,null,null,null,"9999-12-31","2019-01-01","0000191833",857,null,"",null,null,null,null,null,296,"CHF"]
["200","JA","ZPRB","6010","102Z170MNA",1,null,null,"F349",null,"B209",null,null,null,null,"9999-12-31","2019-01-01","0000191835",857,null,"",null,null,null,null,null,592,"CHF"]
["200","JA","ZPRB","6010","102Z170MNA",1,null,null,"F349",null,"B249",null,null,null,null,"9999-12-31","2019-01-01","0000191836",857,null,"",null,null,null,null,null,592,"CHF"]
["200","JA","ZPRB","6010","102Z170MNA",0,null,null,null,null,null,null,null,null,null,"9999-12-31","2019-01-01","0000192667",850,null,"",null,null,null,null,null,1.5,"CHF"]
["200","JA","ZPRB","6010","102Z170MNA",1,null,null,null,null,null,null,null,null,null,"9999-12-31","2019-01-01","0000192668",850,null,"",null,null,null,null,null,1.95,"CHF"]
["200","JA","ZPRB","6010","102Z170MNA",0,"EMTX",null,"12Q","",null,null,null,null,null,"2022-12-31","2019-01-01","0000178451",848,null,"",null,null,null,null,null,5280,"CHF"]
["200","JA","ZPRB","6010","102Z170MNA",0,"EMTX",null,"12Q","",null,null,null,null,null,"9999-12-31","2023-01-01","0000227010",848,null,"",null,null,null,null,null,5500,"CHF"]
["200","JA","ZPRB","6010","102Z170MNA",0,"EMTXPR",null,"12Q","",null,null,null,null,null,"9999-12-31","2023-01-01","0000227824",848,null,"",null,null,null,null,null,5500,"CHF"]
["200","JA","ZPRB","6010","102Z170MNA",1,"EMTX",null,"12Q","",null,null,null,null,null,"2022-12-31","2019-01-01","0000178450",848,null,"",null,null,null,null,null,5280,"CHF"]
["200","JA","ZPRB","6010","102Z170MNA",1,"EMTX",null,"12Q","",null,null,null,null,null,"9999-12-31","2023-01-01","0000227011",848,null,"",null,null,null,null,null,5500,"CHF"]
["200","JA","ZPRB","6010","102Z170MNA",1,"EMTXPR",null,"12Q","",null,null,null,null,null,"9999-12-31","2023-01-01","0000227825",848,null,"",null,null,null,null,null,5500,"CHF"]

{"sheet":"Formeln_415","index":2,"n_rows":7,"n_cols":3,"rows_kept":7,"cut":false,"hidden":false,"merged":[]}
["0","850","866"]
[null,"BE-Code","BE-Code"]
[null,"FARBCODE_0","FARBCODE_0"]
[null,"SAP_TARIF_TABELLE","IHK-Code"]
[null,"DATBI","Format-Code"]
[null,null,"SAP_TARIF_TABELLE"]
[null,null,"DATBI"]

{"sheet":"Formeln_3","index":3,"n_rows":7,"n_cols":3,"rows_kept":7,"cut":false,"hidden":false,"merged":[]}
["0","850","866"]
[null,"BEINH","BEINH"]
[null,"ZZFARBIG","ZZFARBIG"]
[null,"TABELLENO","INHK_KFM"]
[null,"DATBI","AZAFOV"]
[null,null,"TABELLENO"]
[null,null,"DATBI"]